Workbook

Sheet 1. Utility_Info_
AB1: Algoma Power Inc.
AB2: Atikokan Hydro Inc.
AB3: Attawapiskat Power Corporation
AB4: Bluewater Power Distribution Corp.
AB5: Brant County Power
AB6: Brantford Power Inc.
AB7: Burlington Hydro Inc.
AB8: Cambridge and North Dumfries Hydro
AB9: Canadian Niagara Power Inc. – Eastern Ontario Power/Fort Erie/Port Colborne
AB10: Centre Wellington Hydro Ltd.
AB11: Chapleau Public Utilities Corporation
AB12: COLLUS Power Corp.
H13: Version | I13: 4 | AB13: Cooperative Hydro Embrun Inc.
AB14: E.L.K. Energy Inc.
C15: Utility Name | D15: Niagara Peninsula Energy Inc. | AB15: Enersource Hydro Mississauga Inc.
AB16: Entegrus Powerlines Inc.
C17: Assigned EB Number | D17: EB-2013-0359 | AB17: ENWIN Utilities Ltd.
AB18: Erie Thames Powerlines Corp.
C19: Name and Title | D19: Suzanne Wilson, Vice-President Finance | AB19: Espanola Regional Hydro Distribution Corporation
AB20: Essex Powerlines Corporation
C21: Phone Number | D21: 905-353-6004 | AB21: Festival Hydro Inc.
AB22: Fort Albany Power Corporation
C23: Email Address | D23: Suzanne.Wilson@npei.ca | AB23: Fort Frances Power Corporation
AB24: Greater Sudbury Hydro Inc.
C25: Date | AB25: Grimsby Power Inc.
AB26: Guelph Hydro Electric Systems Inc.
C27: Last COS Re-based Year | D27: 2011 | AB27: Haldimand County Hydro Inc.
AB28: Halton Hills Hydro Inc.
AB29: Hearst Power Distribution Co. Ltd.
A30: Note: Drop-down lists are shaded blue; Input cells are shaded green.
AB32: Horizon Utilities Corporation
AB33: Hydro 2000 Inc.
AB34: Hydro Hawkesbury Inc.
AB35: Hydro One Brampton Networks Inc.
AB36: Hydro One Networks Inc.
AB37: Hydro One Remote Communities Inc.
AB38: Hydro Ottawa Limited
AB39: Innisfil Hydro Dist. Systems Limited
AB40: Kashechewan Power Corporation
AB41: Kenora Hydro Electric Corporation Ltd.
AB42: Kingston Hydro Corporation
AB43: Kitchener-Wilmot Hydro Inc.
AB44: Lakefront Utilities Inc.
AB45: Lakeland Power Distribution Ltd.
AB46: London Hydro Inc.
AB47: Midland Power Utility Corporation
AB48: Milton Hydro Distribution Inc.
AB49: Newmarket – Tay Power Distribution Ltd.
AB50: Niagara Peninsula Energy Inc.
AB51: Niagara-on-the-Lake Hydro Inc.
AB52: Norfolk Power Distribution Ltd.
AB53: North Bay Hydro Distribution Limited
AB54: Northern Ontario Wires Inc.
AB55: Oakville Hydro Distribution Inc.
AB56: Orangeville Hydro Limited
AB57: Orillia Power Distribution Corp.
AB58: Oshawa PUC Networks Inc.
AB59: Ottawa River Power Corporation
AB60: Parry Sound Power Corporation
AB61: Peterborough Distribution Inc.
AB62: PowerStream Inc.
AB63: PUC Distribution Inc.
AB64: Renfrew Hydro Inc.
AB65: Rideau St. Lawrence Distribution Inc.
AB66: St. Thomas Energy Inc.
AB67: Sioux Lookout Hydro Inc.
AB68: Thunder Bay Hydro Electricity Distribution
AB69: Tillsonburg Hydro Inc.
AB70: Toronto Hydro-Electric System Limited
AB71: Veridian Connections Inc.
AB72: Wasaga Distribution Inc.
AB73: Waterloo North Hydro Inc.
AB74: Welland Hydro Electric System Corp.
AB75: Wellington North Power Inc.
AB76: West Coast Huron Energy Inc.
AB77: Westario Power Inc.
AB78: Whitby Hydro Electric Corporation
AB79: Woodstock Hydro Services Inc.

Sheet 2. Smart_Meter_Costs
B13: Distributors must enter all incremental costs related to their smart meter program and all revenues recovered to date in the applicable tabs except for those costs (and associated revenues) for which the Board has approved on a final basis, i.e. capital costs have been included in rate base and OM&A costs in revenue requirement. For 2014, distributors that have completed their deployments by the end of 2013 are not expected to enter any capital costs. However, for OM&A, regardless of whether a distributor has deployments in 2014, distributors should enter the forecasted OM&A for 2014 for all smart meters in service.
G18: 2006 | I18: 2007 | K18: 2008 | M18: 2009 | O18: 2010 | Q18: 2011 | S18: 2012 | U18: 2013 | W18: 2014 | Y18: Total
B19: Smart Meter Capital Cost and Operational Expense Data | G19: Audited Actual | I19: Audited Actual | K19: Audited Actual | M19: Audited Actual | O19: Audited Actual | Q19: Audited Actual | S19: Audited Actual | U19: Forecast | W19: Forecast
C21: Smart Meter Installation Plan
C23: Actual/Planned number of Smart Meters installed during the Calendar Year
C25: Residential | M25: 5217 | O25: 37687 | Q25: 2521 | S25: 458 | U25: 718 | W25: 222 | Y25: =SUM(G25,I25,K25,M25,O25,Q25,S25,U25,W25) -> 46823
C27: General Service < 50 kW | M27: 300 | O27: 1685 | Q27: 481 | S27: 950 | U27: 824 | Y27: =SUM(G27,I27,K27,M27,O27,Q27,S27,U27,W27) -> 4240
C29: Actual/Planned number of Smart Meters installed (Residential and GS < 50 kW only) | G29: =G25+G27 -> 0 | I29: =I25+I27 -> 0 | K29: =K25+K27 -> 0 | M29: =M25+M27 -> 5517 | O29: =O25+O27 -> 39372 | Q29: =Q25+Q27 -> 3002 | S29: =S25+S27 -> 1408 | U29: =U25+U27 -> 1542 | W29: =W25+W27 -> 222 | Y29: =SUM(G29,I29,K29,M29,O29,Q29,S29,U29,W29) -> 51063
C31: Percentage of Residential and GS < 50 kW Smart Meter Installations Completed | G31: =IF($Y29=0,0,G29/$Y29) -> 0 | I31: =IF(G31=100%, 0, IF(ISERROR(SUM(G29:I29)/$Y29),0,SUM(G29:I29)/$Y29)) -> 0 | K31: =IF(I31=100%, 0, IF(ISERROR(SUM(G29:K29)/$Y29), 0, SUM(G29:K29)/$Y29)) -> 0 | M31: =IF(K31=100%,0,IF(ISERROR(SUM(G29:M29)/$Y29),0,SUM(G29:M29)/$Y29)) -> 0.1080430057 | O31: =IF(M31=100%,0,IF(ISERROR(SUM(G29:O29)/$Y29),0,SUM(G29:O29)/$Y29)) -> 0.8790905352 | Q31: =IF(O31=100%,0,IF(ISERROR(SUM(G29:Q29)/$Y29),0,SUM(G29:Q29)/$Y29)) -> 0.9378806572 | S31: =IF(Q31=100%,0,IF(ISERROR(SUM(G29:S29)/$Y29),0,SUM(G29:S29)/$Y29)) -> 0.9654544386 | U31: =IF(S31=100%,0,IF(ISERROR(SUM(I29:U29)/$Y29),0,SUM(I29:U29)/$Y29)) -> 0.9956524294 | W31: =IF(U31=100%,0,IF(ISERROR(SUM(K29:W29)/$Y29),0,SUM(K29:W29)/$Y29)) -> 1 | Y31: =IF($Y29=0,"",Y29/$Y29) -> 1
C33: Actual/Planned number of GS > 50 kW meters installed | S33: 1 | U33: 14 | Y33: =SUM(G33,I33,K33,M33,O33,Q33,S33,U33,W33) -> 15
C35: Other (please identify) | D35: MicroFIT | O35: 18 | Q35: 124 | S35: 71 | U35: 75 | Y35: =SUM(G35,I35,K35,M35,O35,Q35,S35,U35,W35) -> 288
C37: Total Number of Smart Meters installed or planned to be installed | G37: =SUM(G29,G33,G35) -> 0 | I37: =SUM(I29,I33,I35) -> 0 | K37: =SUM(K29,K33,K35) -> 0 | M37: =SUM(M29,M33,M35) -> 5517 | O37: =SUM(O29,O33,O35) -> 39390 | Q37: =SUM(Q29,Q33,Q35) -> 3126 | S37: =SUM(S29,S33,S35) -> 1480 | U37: =SUM(U29,U33,U35) -> 1631 | W37: =SUM(W29,W33,W35) -> 222 | Y37: =SUM(G37,I37,K37,M37,O37,Q37,S37,U37,W37) -> 51366
B39: 1 | C39: Capital Costs
E40: Asset Type
C41: 1.1 ADVANCED METERING COMMUNICATION DEVICE (AMCD) | E41: Asset type must be selected to enable calculations | G41: =IF(ISBLANK(G19),"",G19) -> Audited Actual | I41: =IF(ISBLANK(I19),"",I19) -> Audited Actual | K41: =IF(ISBLANK(K19),"",K19) -> Audited Actual | M41: =IF(ISBLANK(M19),"",M19) -> Audited Actual | O41: =IF(ISBLANK(O19),"",O19) -> Audited Actual | Q41: =IF(ISBLANK(Q19),"",Q19) -> Audited Actual | S41: =IF(ISBLANK(S19),"",S19) -> Audited Actual | U41: =IF(ISBLANK(U19),"",U19) -> Forecast | W41: =IF(ISBLANK(W19),"",W19) -> Forecast
C42: 1.1.1 Smart Meters (may include new meters and modules, etc.) | E42: Smart Meter | M42: 1153992.44 | O42: 2384965.61 | Q42: 451558.27 | S42: 739691.5 | U42: 26347.42 | Y42: =SUM(G42,I42,K42,M42,O42,Q42,S42,U42,W42) -> 4756555.24
C44: 1.1.2 Installation Costs (may include socket kits, labour, vehicle, benefits, etc.) | E44: Smart Meter | G44: 37456.97 | I44: 5665.48 | M44: 63251.21 | O44: 398956.1 | Q44: 132514.43 | S44: 26413.91 | Y44: =SUM(G44,I44,K44,M44,O44,Q44,S44,U44,W44) -> 664258.1
C46: 1.1.3a Workforce Automation Hardware (may include fieldwork handhelds, barcode hardware, etc.) | E46: Computer Hardware | Q46: 1600 | S46: 710 | U46: 2945 | Y46: =SUM(G46,I46,K46,M46,O46,Q46,S46,U46,W46) -> 5255
C48: 1.1.3b Workforce Automation Software (may include fieldwork handhelds, barcode hardware, etc.) | E48: Computer Software | O48: 29896.88 | Y48: =SUM(G48,I48,K48,M48,O48,Q48,S48,U48,W48) -> 29896.88
C50: Total Advanced Metering Communications Devices (AMCD) | G50: =SUM(G42,G44,G46,G48) -> 37456.97 | I50: =SUM(I42,I44,I46,I48) -> 5665.48 | K50: =SUM(K42,K44,K46,K48) -> 0 | M50: =SUM(M42,M44,M46,M48) -> 1217243.65 | O50: =SUM(O42,O44,O46,O48) -> 2813818.59 | Q50: =SUM(Q42,Q44,Q46,Q48) -> 585672.7 | S50: =SUM(S42,S44,S46,S48) -> 766815.41 | U50: =SUM(U42,U44,U46,U48) -> 29292.42 | W50: =SUM(W42,W44,W46,W48) -> 0 | Y50: =Y42+Y44+Y46+Y48 -> 5455965.22
E52: =E40 -> Asset Type
C53: 1.2 ADVANCED METERING REGIONAL COLLECTOR (AMRC) (includes LAN) | G53: =G41 -> Audited Actual | I53: =I41 -> Audited Actual | K53: =K41 -> Audited Actual | M53: =M41 -> Audited Actual | O53: =O41 -> Audited Actual | Q53: =Q41 -> Audited Actual | S53: =S41 -> Audited Actual | U53: =U41 -> Forecast | W53: =W41 -> Forecast
C54: 1.2.1 Collectors | E54: Smart Meter | M54: 143246.14 | Y54: =SUM(G54,I54,K54,M54,O54,Q54,S54,U54,W54) -> 143246.14
C56: 1.2.2 Repeaters (may include radio licence, etc.) | Y56: =SUM(G56,I56,K56,M56,O56,Q56,S56,U56,W56) -> 0
C58: 1.2.3 Installation (may include meter seals and rings, collector computer hardware, etc.) | E58: Smart Meter | M58: 70397.64 | O58: 37227.2 | Q58: 9072.84 | Y58: =SUM(G58,I58,K58,M58,O58,Q58,S58,U58,W58) -> 116697.68
C60: Total Advanced Metering Regional Collector (AMRC) (Includes LAN) | G60: =G54+G56+G58 -> 0 | I60: =I54+I56+I58 -> 0 | K60: =K54+K56+K58 -> 0 | M60: =M54+M56+M58 -> 213643.78 | O60: =O54+O56+O58 -> 37227.2 | Q60: =Q54+Q56+Q58 -> 9072.84 | S60: =S54+S56+S58 -> 0 | U60: =U54+U56+U58 -> 0 | W60: =W54+W56+W58 -> 0 | Y60: =Y54+Y56+Y58 -> 259943.82
E62: =E52 -> Asset Type
C63: 1.3 ADVANCED METERING CONTROL COMPUTER (AMCC) | G63: =G53 -> Audited Actual | I63: =I53 -> Audited Actual | K63: =K53 -> Audited Actual | M63: =M53 -> Audited Actual | O63: =O53 -> Audited Actual | Q63: =Q53 -> Audited Actual | S63: =S53 -> Audited Actual | U63: =U53 -> Forecast | W63: =W53 -> Forecast
C64: 1.3.1 Computer Hardware | Y64: =SUM(G64,I64,K64,M64,O64,Q64,S64,U64,W64) -> 0
C66: 1.3.2 Computer Software | Y66: =SUM(G66,I66,K66,M66,O66,Q66,S66,U66,W66) -> 0
C68: 1.3.3 Computer Software Licences & Installation (includes hardware and software) | E68: Computer Software | Q68: 11011.46 | Y68: =SUM(G68,I68,K68,M68,O68,Q68,S68,U68,W68) -> 11011.46
C69: (may include AS/400 disk space, backup and recovery computer, UPS, etc.)
C70: Total Advanced Metering Control Computer (AMCC) | G70: =G64+G66+G68 -> 0 | I70: =I64+I66+I68 -> 0 | K70: =K64+K66+K68 -> 0 | M70: =M64+M66+M68 -> 0 | O70: =O64+O66+O68 -> 0 | Q70: =Q64+Q66+Q68 -> 11011.46 | S70: =S64+S66+S68 -> 0 | U70: =U64+U66+U68 -> 0 | W70: =W64+W66+W68 -> 0 | Y70: =Y64+Y66+Y68 -> 11011.46
E72: =E62 -> Asset Type
C73: 1.4 WIDE AREA NETWORK (WAN) | G73: =G63 -> Audited Actual | I73: =I63 -> Audited Actual | K73: =K63 -> Audited Actual | M73: =M63 -> Audited Actual | O73: =O63 -> Audited Actual | Q73: =Q63 -> Audited Actual | S73: =S63 -> Audited Actual | U73: =U63 -> Forecast | W73: =W63 -> Forecast
C75: 1.4.1 Activiation Fees | Y75: =SUM(G75,I75,K75,M75,O75,Q75,S75,U75,W75) -> 0
C77: Total Wide Area Network (WAN) | G77: =G75 -> 0 | I77: =I75 -> 0 | K77: =K75 -> 0 | M77: =M75 -> 0 | O77: =O75 -> 0 | Q77: =Q75 -> 0 | S77: =S75 -> 0 | U77: =U75 -> 0 | W77: =W75 -> 0 | Y77: =Y75 -> 0
E79: =E72 -> Asset Type
C80: 1.5 OTHER AMI CAPITAL COSTS RELATED TO MINIMUM FUNCTIONALITY | G80: =G73 -> Audited Actual | I80: =I73 -> Audited Actual | K80: =K73 -> Audited Actual | M80: =M73 -> Audited Actual | O80: =O73 -> Audited Actual | Q80: =Q73 -> Audited Actual | S80: =S73 -> Audited Actual | U80: =U73 -> Forecast | W80: =W73 -> Forecast
C82: 1.5.1 Customer Equipment (including repair of damaged equipment) | E82: Smart Meter | Y82: =SUM(G82,I82,K82,M82,O82,Q82,S82,U82,W82) -> 0
C84: 1.5.2 AMI Interface to CIS | E84: Computer Software | O84: 2850 | Q84: 2250 | Y84: =SUM(G84,I84,K84,M84,O84,Q84,S84,U84,W84) -> 5100
C86: 1.5.3 Professional Fees | E86: Smart Meter | G86: 8948.66 | I86: 9017.07 | M86: 27542.6 | O86: 18300.73 | Q86: 17758.99 | S86: 17627.51 | U86: 17000 | W86: 12000 | Y86: =SUM(G86,I86,K86,M86,O86,Q86,S86,U86,W86) -> 128195.56
C88: 1.5.4 Integration | Y88: =SUM(G88,I88,K88,M88,O88,Q88,S88,U88,W88) -> 0
C90: 1.5.5 Program Management | Y90: =SUM(G90,I90,K90,M90,O90,Q90,S90,U90,W90) -> 0
C92: 1.5.6 Other AMI Capital | E92: Smart Meter | M92: 21021.25 | Q92: 5937.74 | S92: 7185.3 | U92: 790.41 | Y92: =SUM(G92,I92,K92,M92,O92,Q92,S92,U92,W92) -> 34934.7
C94: Total Other AMI Capital Costs Related to Minimum Functionality | G94: =SUM(G82,G84,G86,G88,G90,G92) -> 8948.66 | I94: =SUM(I82,I84,I86,I88,I90,I92) -> 9017.07 | K94: =SUM(K82,K84,K86,K88,K90,K92) -> 0 | M94: =SUM(M82,M84,M86,M88,M90,M92) -> 48563.85 | O94: =SUM(O82,O84,O86,O88,O90,O92) -> 21150.73 | Q94: =SUM(Q82,Q84,Q86,Q88,Q90,Q92) -> 25946.73 | S94: =SUM(S82,S84,S86,S88,S90,S92) -> 24812.81 | U94: =SUM(U82,U84,U86,U88,U90,U92) -> 17790.41 | W94: =SUM(W82,W84,W86,W88,W90,W92) -> 12000 | Y94: =SUM(Y82,Y84,Y86,Y88,Y90,Y92) -> 168230.26
C96: Total Capital Costs Related to Minimum Functionality | G96: =SUM(G50,G60,G70,G77,G94) -> 46405.63 | I96: =SUM(I50,I60,I70,I77,I94) -> 14682.55 | K96: =SUM(K50,K60,K70,K77,K94) -> 0 | M96: =SUM(M50,M60,M70,M77,M94) -> 1479451.28 | O96: =SUM(O50,O60,O70,O77,O94) -> 2872196.52 | Q96: =SUM(Q50,Q60,Q70,Q77,Q94) -> 631703.73 | S96: =SUM(S50,S60,S70,S77,S94) -> 791628.22 | U96: =SUM(U50,U60,U70,U77,U94) -> 47082.83 | W96: =SUM(W50,W60,W70,W77,W94) -> 12000 | Y96: =SUM(Y50,Y60,Y70,Y77,Y94) -> 5895150.76
E98: =E79 -> Asset Type
C99: 1.6 CAPITAL COSTS BEYOND MINIMUM FUNCTIONALITY | G99: =G80 -> Audited Actual | I99: =I80 -> Audited Actual | K99: =K80 -> Audited Actual | M99: =M80 -> Audited Actual | O99: =O80 -> Audited Actual | Q99: =Q80 -> Audited Actual | S99: =S80 -> Audited Actual | U99: =U80 -> Forecast | W99: =W80 -> Forecast
C100: (Please provide a descriptive title and identify nature of beyond minimum functionality costs)
C101: 1.6.1 Costs related to technical capabilities in the smart meters or related communications infrastructure that exceed those specified in O.Reg 425/06 | Y101: =SUM(G101,I101,K101,M101,O101,Q101,S101,U101,W101) -> 0
C103: 1.6.2 Costs for deployment of smart meters to customers other than residential and small general service | Y103: =SUM(G103,I103,K103,M103,O103,Q103,S103,U103,W103) -> 0
C105: 1.6.3 Costs for TOU rate implementation, CIS system upgrades, web presentation, integration with the MDM/R, etc. | E105: Computer Software | O105: 12957.82 | Q105: 180290 | Y105: =SUM(G105,I105,K105,M105,O105,Q105,S105,U105,W105) -> 193247.82
C107: Total Capital Costs Beyond Minimum Functionality | G107: =SUM(G101,G103,G105) -> 0 | I107: =SUM(I101,I103,I105) -> 0 | K107: =SUM(K101,K103,K105) -> 0 | M107: =SUM(M101,M103,M105) -> 0 | O107: =SUM(O101,O103,O105) -> 12957.82 | Q107: =SUM(Q101,Q103,Q105) -> 180290 | S107: =SUM(S101,S103,S105) -> 0 | U107: =SUM(U101,U103,U105) -> 0 | W107: =SUM(W101,W103,W105) -> 0 | Y107: =SUM(Y101,Y103,Y105) -> 193247.82
C109: Total Smart Meter Capital Costs | G109: =G96+G107 -> 46405.63 | I109: =I96+I107 -> 14682.55 | K109: =K96+K107 -> 0 | M109: =M96+M107 -> 1479451.28 | O109: =O96+O107 -> 2885154.34 | Q109: =Q96+Q107 -> 811993.73 | S109: =S96+S107 -> 791628.22 | U109: =U96+U107 -> 47082.83 | W109: =W96+W107 -> 12000 | Y109: =Y96+Y107 -> 6088398.58
B111: 2 | C111: OM&A Expenses
C112: 2.1 ADVANCED METERING COMMUNICATION DEVICE (AMCD) | G112: =G99 -> Audited Actual | I112: =I99 -> Audited Actual | K112: =K99 -> Audited Actual | M112: =M99 -> Audited Actual | O112: =O99 -> Audited Actual | Q112: =Q99 -> Audited Actual | S112: =S99 -> Audited Actual | U112: =U99 -> Forecast | W112: =W99 -> Forecast
C114: 2.1.1 Maintenance (may include meter reverification costs, etc.) | Y114: =SUM(G114,I114,K114,M114,O114,Q114,S114,U114,W114) -> 0
C116: 2.1.2 Other (please specifiy) | Y116: =SUM(G116,I116,K116,M116,O116,Q116,S116,U116,W116) -> 0
C118: Total Incremental AMCD OM&A Costs | G118: =SUM(G114,G116) -> 0 | I118: =SUM(I114,I116) -> 0 | K118: =SUM(K114,K116) -> 0 | M118: =SUM(M114,M116) -> 0 | O118: =SUM(O114,O116) -> 0 | Q118: =SUM(Q114,Q116) -> 0 | S118: =SUM(S114,S116) -> 0 | U118: =SUM(U114,U116) -> 0 | W118: =SUM(W114,W116) -> 0 | Y118: =SUM(Y114,Y116) -> 0
C120: 2.2 ADVANCED METERING REGIONAL COLLECTOR (AMRC) (includes LAN)
C122: 2.2.1 Maintenance | M122: 14658.45 | O122: 18565 | Y122: =SUM(G122,I122,K122,M122,O122,Q122,S122,U122,W122) -> 33223.45
C124: 2.2.2 Other (please specifiy) | Y124: =SUM(G124,I124,K124,M124,O124,Q124,S124,U124,W124) -> 0
C126: Total Incremental AMRC OM&A Costs | G126: =SUM(G122,G124) -> 0 | I126: =SUM(I122,I124) -> 0 | K126: =SUM(K122,K124) -> 0 | M126: =SUM(M122,M124) -> 14658.45 | O126: =SUM(O122,O124) -> 18565 | Q126: =SUM(Q122,Q124) -> 0 | S126: =SUM(S122,S124) -> 0 | U126: =SUM(U122,U124) -> 0 | W126: =SUM(W122,W124) -> 0 | Y126: =SUM(Y122,Y124) -> 33223.45
C128: 2.3 ADVANCED METERING CONTROL COMPUTER (AMCC)
C130: 2.3.1 Hardware Maintenance (may include server support, etc.) | Y130: =SUM(G130,I130,K130,M130,O130,Q130,S130,U130,W130) -> 0
C132: 2.3.2 Software Maintenance (may include maintenance support, etc.) | O132: 6299.59 | Q132: 40821.44 | S132: 73534.85 | U132: 138906.22 | W132: 140117.64 | Y132: =SUM(G132,I132,K132,M132,O132,Q132,S132,U132,W132) -> 399679.74
C134: 2.3.2 Other (please specifiy) | Y134: =SUM(G134,I134,K134,M134,O134,Q134,S134,U134,W134) -> 0
C136: Total Incremental AMCC OM&A Costs | G136: =SUM(G130,G132,G134) -> 0 | I136: =SUM(I130,I132,I134) -> 0 | K136: =SUM(K130,K132,K134) -> 0 | M136: =SUM(M130,M132,M134) -> 0 | O136: =SUM(O130,O132,O134) -> 6299.59 | Q136: =SUM(Q130,Q132,Q134) -> 40821.44 | S136: =SUM(S130,S132,S134) -> 73534.85 | U136: =SUM(U130,U132,U134) -> 138906.22 | W136: =SUM(W130,W132,W134) -> 140117.64 | Y136: =SUM(Y130,Y132,Y134) -> 399679.74
C138: 2.4 WIDE AREA NETWORK (WAN)
C140: 2.4.1 WAN Maintenance | Y140: =SUM(G140,I140,K140,M140,O140,Q140,S140,U140,W140) -> 0
C142: 2.4.2 Other (please specifiy) | Y142: =SUM(G142,I142,K142,M142,O142,Q142,S142,U142,W142) -> 0
C144: Total Incremental AMRC OM&A Costs | G144: =SUM(G140,G142) -> 0 | I144: =SUM(I140,I142) -> 0 | K144: =SUM(K140,K142) -> 0 | M144: =SUM(M140,M142) -> 0 | O144: =SUM(O140,O142) -> 0 | Q144: =SUM(Q140,Q142) -> 0 | S144: =SUM(S140,S142) -> 0 | U144: =SUM(U140,U142) -> 0 | W144: =SUM(W140,W142) -> 0 | Y144: =SUM(Y140,Y142) -> 0
C146: 2.5 OTHER AMI OM&A COSTS RELATED TO MINIMUM FUNCTIONALITY
C148: 2.5.1 Business Process Redesign | Y148: =SUM(G148,I148,K148,M148,O148,Q148,S148,U148,W148) -> 0
C150: 2.5.2 Customer Communication (may include project communication, etc.) | M150: 81151.6 | O150: 11423.04 | Y150: =SUM(G150,I150,K150,M150,O150,Q150,S150,U150,W150) -> 92574.64
C152: 2.5.3 Program Management | M152: 19748.85 | O152: 48828.08 | Q152: 139485.56 | S152: 152757.94 | U152: 162508.46 | W152: 167543.6 | Y152: =SUM(G152,I152,K152,M152,O152,Q152,S152,U152,W152) -> 690872.49
C154: 2.5.4 Change Management (may include training, etc.) | G154: 660 | I154: 119 | M154: 248.29 | O154: 6338.5 | Q154: 2063.4 | Y154: =SUM(G154,I154,K154,M154,O154,Q154,S154,U154,W154) -> 9429.19
C156: 2.5.5 Administration Costs | Y156: =SUM(G156,I156,K156,M156,O156,Q156,S156,U156,W156) -> 0
C158: 2.5.6 Other AMI Expenses | M158: 3236.33 | O158: 39792.08 | Q158: 9520.29 | Y158: =SUM(G158,I158,K158,M158,O158,Q158,S158,U158,W158) -> 52548.7
C159: (please specify)
C160: Total Other AMI OM&A Costs Related to Minimum Functionality | G160: =SUM(G158,G156,G154,G152,G150,G148) -> 660 | I160: =SUM(I158,I156,I154,I152,I150,I148) -> 119 | K160: =SUM(K158,K156,K154,K152,K150,K148) -> 0 | M160: =SUM(M158,M156,M154,M152,M150,M148) -> 104385.07 | O160: =SUM(O158,O156,O154,O152,O150,O148) -> 106381.7 | Q160: =SUM(Q158,Q156,Q154,Q152,Q150,Q148) -> 151069.25 | S160: =SUM(S158,S156,S154,S152,S150,S148) -> 152757.94 | U160: =SUM(U158,U156,U154,U152,U150,U148) -> 162508.46 | W160: =SUM(W158,W156,W154,W152,W150,W148) -> 167543.6 | Y160: =SUM(Y154,Y156,Y158,Y152,Y150,Y148) -> 845425.02
C162: TOTAL OM&A COSTS RELATED TO MINIMUM FUNCTIONALITY | G162: =SUM(G118,G126,G136,G144,G160) -> 660 | I162: =SUM(I118,I126,I136,I144,I160) -> 119 | K162: =SUM(K118,K126,K136,K144,K160) -> 0 | M162: =SUM(M118,M126,M136,M144,M160) -> 119043.52 | O162: =SUM(O118,O126,O136,O144,O160) -> 131246.29 | Q162: =SUM(Q118,Q126,Q136,Q144,Q160) -> 191890.69 | S162: =SUM(S118,S126,S136,S144,S160) -> 226292.79 | U162: =SUM(U118,U126,U136,U144,U160) -> 301414.68 | W162: =SUM(W118,W126,W136,W144,W160) -> 307661.24 | Y162: =SUM(Y118,Y126,Y136,Y144,Y160) -> 1278328.21
C164: 2.6 OM&A COSTS RELATED TO BEYOND MINIMUM FUNCTIONALITY | G164: =G112 -> Audited Actual | I164: =I112 -> Audited Actual | K164: =K112 -> Audited Actual | M164: =M112 -> Audited Actual | O164: =O112 -> Audited Actual | Q164: =Q112 -> Audited Actual | S164: =S112 -> Audited Actual | U164: Forecast | W164: Forecast
C165: (Please provide a descriptive title and identify nature of beyond minimum functionality costs)
C166: 2.6.1 Costs related to technical capabilities in the smart meters or related communications infrastructure that exceed those specified in O.Reg 425/06 | Y166: =SUM(G166,I166,K166,M166,O166,Q166,S166,U166,W166) -> 0
C168: 2.6.2 Costs for deployment of smart meters to customers other than residential and small general service | Y168: =SUM(G168,I168,K168,M168,O168,Q168,S168,U168,W168) -> 0
C170: 2.6.3 Costs for TOU rate implementation, CIS system upgrades, web presentation, integration with the MDM/R, etc. | O170: 22501.14 | Q170: 101198.09 | S170: 90133.66 | U170: 42293.51 | W170: 42343.56 | Y170: =SUM(G170,I170,K170,M170,O170,Q170,S170,U170,W170) -> 298469.96
C172: Total OM&A Costs Beyond Minimum Functionality | G172: =SUM(G166,G168,G170) -> 0 | I172: =SUM(I166,I168,I170) -> 0 | K172: =SUM(K166,K168,K170) -> 0 | M172: =SUM(M166,M168,M170) -> 0 | O172: =SUM(O166,O168,O170) -> 22501.14 | Q172: =SUM(Q166,Q168,Q170) -> 101198.09 | S172: =SUM(S166,S168,S170) -> 90133.66 | U172: =SUM(U166,U168,U170) -> 42293.51 | W172: =SUM(W166,W168,W170) -> 42343.56 | Y172: =SUM(Y166,Y168,Y170) -> 298469.96
C174: Total Smart Meter OM&A Costs | G174: =G162+G172 -> 660 | I174: =I162+I172 -> 119 | K174: =K162+K172 -> 0 | M174: =M162+M172 -> 119043.52 | O174: =O162+O172 -> 153747.43 | Q174: =Q162+Q172 -> 293088.78 | S174: =S162+S172 -> 316426.45 | U174: =U162+U172 -> 343708.19 | W174: =W162+W172 -> 350004.8 | Y174: =Y162+Y172 -> 1576798.17
B177: 3 | C177: Aggregate Smart Meter Costs by Category
C179: 3.1 | D179: Capital
C181: 3.1.1 | D181: Smart Meter | G181: =SUMIF($E$42:$E$105,$D181,G$42:G$105) -> 46405.63 | I181: =SUMIF($E$42:$E$105,$D181,I$42:I$105) -> 14682.55 | K181: =SUMIF($E$42:$E$105,$D181,K$42:K$105) -> 0 | M181: =SUMIF($E$42:$E$105,$D181,M$42:M$105) -> 1479451.28 | O181: =SUMIF($E$42:$E$105,$D181,O$42:O$105) -> 2839449.64 | Q181: =SUMIF($E$42:$E$105,$D181,Q$42:Q$105) -> 616842.27 | S181: =SUMIF($E$42:$E$105,$D181,S$42:S$105) -> 790918.22 | U181: =SUMIF($E$42:$E$105,$D181,U$42:U$105) -> 44137.83 | W181: =SUMIF($E$42:$E$105,$D181,W$42:W$105) -> 12000 | Y181: =SUM(G181:W181) -> 5843887.42
C183: 3.1.2 | D183: Computer Hardware | G183: =SUMIF($E$42:$E$105,$D183,G$42:G$105) -> 0 | I183: =SUMIF($E$42:$E$105,$D183,I$42:I$105) -> 0 | K183: =SUMIF($E$42:$E$105,$D183,K$42:K$105) -> 0 | M183: =SUMIF($E$42:$E$105,$D183,M$42:M$105) -> 0 | O183: =SUMIF($E$42:$E$105,$D183,O$42:O$105) -> 0 | Q183: =SUMIF($E$42:$E$105,$D183,Q$42:Q$105) -> 1600 | S183: =SUMIF($E$42:$E$105,$D183,S$42:S$105) -> 710 | U183: =SUMIF($E$42:$E$105,$D183,U$42:U$105) -> 2945 | W183: =SUMIF($E$42:$E$105,$D183,W$42:W$105) -> 0 | Y183: =SUM(G183:W183) -> 5255
C185: 3.1.3 | D185: Computer Software | G185: =SUMIF($E$42:$E$105,$D185,G$42:G$105) -> 0 | I185: =SUMIF($E$42:$E$105,$D185,I$42:I$105) -> 0 | K185: =SUMIF($E$42:$E$105,$D185,K$42:K$105) -> 0 | M185: =SUMIF($E$42:$E$105,$D185,M$42:M$105) -> 0 | O185: =SUMIF($E$42:$E$105,$D185,O$42:O$105) -> 45704.7 | Q185: =SUMIF($E$42:$E$105,$D185,Q$42:Q$105) -> 193551.46 | S185: =SUMIF($E$42:$E$105,$D185,S$42:S$105) -> 0 | U185: =SUMIF($E$42:$E$105,$D185,U$42:U$105) -> 0 | W185: =SUMIF($E$42:$E$105,$D185,W$42:W$105) -> 0 | Y185: =SUM(G185:W185) -> 239256.16
C187: 3.1.4 | D187: Tools & Equipment | G187: =SUMIF($E$42:$E$105,$D187,G$42:G$105) -> 0 | I187: =SUMIF($E$42:$E$105,$D187,I$42:I$105) -> 0 | K187: =SUMIF($E$42:$E$105,$D187,K$42:K$105) -> 0 | M187: =SUMIF($E$42:$E$105,$D187,M$42:M$105) -> 0 | O187: =SUMIF($E$42:$E$105,$D187,O$42:O$105) -> 0 | Q187: =SUMIF($E$42:$E$105,$D187,Q$42:Q$105) -> 0 | S187: =SUMIF($E$42:$E$105,$D187,S$42:S$105) -> 0 | U187: =SUMIF($E$42:$E$105,$D187,U$42:U$105) -> 0 | W187: =SUMIF($E$42:$E$105,$D187,W$42:W$105) -> 0 | Y187: =SUM(G187:W187) -> 0
C189: 3.1.5 | D189: Other Equipment | G189: =SUMIF($E$42:$E$105,$D189,G$42:G$105) -> 0 | I189: =SUMIF($E$42:$E$105,$D189,I$42:I$105) -> 0 | K189: =SUMIF($E$42:$E$105,$D189,K$42:K$105) -> 0 | M189: =SUMIF($E$42:$E$105,$D189,M$42:M$105) -> 0 | O189: =SUMIF($E$42:$E$105,$D189,O$42:O$105) -> 0 | Q189: =SUMIF($E$42:$E$105,$D189,Q$42:Q$105) -> 0 | S189: =SUMIF($E$42:$E$105,$D189,S$42:S$105) -> 0 | U189: =SUMIF($E$42:$E$105,$D189,U$42:U$105) -> 0 | W189: =SUMIF($E$42:$E$105,$D189,W$42:W$105) -> 0 | Y189: =SUM(G189:W189) -> 0
C191: 3.1.6 | D191: Applications Software | G191: =SUMIF($E$42:$E$105,$D191,G$42:G$105) -> 0 | I191: =SUMIF($E$42:$E$105,$D191,I$42:I$105) -> 0 | K191: =SUMIF($E$42:$E$105,$D191,K$42:K$105) -> 0 | M191: =SUMIF($E$42:$E$105,$D191,M$42:M$105) -> 0 | O191: =SUMIF($E$42:$E$105,$D191,O$42:O$105) -> 0 | Q191: =SUMIF($E$42:$E$105,$D191,Q$42:Q$105) -> 0 | S191: =SUMIF($E$42:$E$105,$D191,S$42:S$105) -> 0 | U191: =SUMIF($E$42:$E$105,$D191,U$42:U$105) -> 0 | W191: =SUMIF($E$42:$E$105,$D191,W$42:W$105) -> 0 | Y191: =SUM(G191:W191) -> 0
C193: 3.1.7 | D193: Total Capital Costs | G193: =SUM(G181:G191) -> 46405.63 | I193: =SUM(I181:I191) -> 14682.55 | K193: =SUM(K181:K191) -> 0 | M193: =SUM(M181:M191) -> 1479451.28 | O193: =SUM(O181:O191) -> 2885154.34 | Q193: =SUM(Q181:Q191) -> 811993.73 | S193: =SUM(S181:S191) -> 791628.22 | U193: =SUM(U181:U191) -> 47082.83 | W193: =SUM(W181:W191) -> 12000 | Y193: =SUM(Y181:Y191) -> 6088398.58
G194: =IF(G193=G109,"","Error") ->  | I194: =IF(I193=I109,"","Error") ->  | K194: =IF(K193=K109,"","Error") ->  | M194: =IF(M193=M109,"","Error") ->  | O194: =IF(O193=O109,"","Error") ->  | Q194: =IF(Q193=Q109,"","Error") ->  | S194: =IF(S193=S109,"","Error") ->  | U194: =IF(U193=U109,"","Error") ->  | W194: =IF(W193=W109,"","Error") ->  | Y194: =IF(Y193=Y109,"","Error") -> 
C195: 3.2 | D195: OM&A Costs
C197: 3.2.1 | D197: Total OM&A Costs | G197: =G174 -> 660 | I197: =I174 -> 119 | K197: =K174 -> 0 | M197: =M174 -> 119043.52 | O197: =O174 -> 153747.43 | Q197: =Q174 -> 293088.78 | S197: =S174 -> 316426.45 | U197: =U174 -> 343708.19 | W197: =W174 -> 350004.8 | Y197: =Y174 -> 1576798.17

Sheet 3. Cost_of_Service_Parameters
G19: 2006 | I19: 2007 | K19: 2008 | M19: 2009 | O19: 2010 | Q19: 2011 | S19: 2012 | U19: 2013 | W19: 2014
B20: Cost of Capital
C21: Capital Structure1
D22: Deemed Short-term Debt Capitalization | Q22: 0.04 | S22: 0.04 | U22: 0.04 | W22: 0.04
D23: Deemed Long-term Debt Capitalization | G23: 0.5 | I23: =G23 -> 0.5 | K23: =IF(I23=50%,53.3%-K22,IF(I23=55%,57.5%-K22,IF(I23=65%,62.5%-K22,60%-K22))) -> 0.533 | M23: =IF(I23=50%,56.7%-M22,60%-M22) -> 0.567 | O23: =60%-O22 -> 0.6 | Q23: =O23-(Q22-O22) -> 0.56 | S23: =Q23-(S22-Q22) -> 0.56 | U23: =S23-(U22-S22) -> 0.56 | W23: =U23-(W22-U22) -> 0.56
D24: Deemed Equity Capitalization | G24: =100%-G23-G25 -> 0.5 | I24: =100%-I23-I25-I22 -> 0.5 | K24: =100%-K23-K25-K22 -> 0.467 | M24: =100%-M23-M25-M22 -> 0.433 | O24: =100%-O23-O25-O22 -> 0.4 | Q24: =100%-Q23-Q25-Q22 -> 0.4 | S24: =100%-S23-S25-S22 -> 0.4 | U24: =100%-U23-U25-U22 -> 0.4 | W24: =100%-W23-W25-W22 -> 0.4
D25: Preferred Shares
C26: Total | G26: =SUM(G22:G25) -> 1 | I26: =SUM(I22:I25) -> 1 | K26: =SUM(K22:K25) -> 1 | M26: =SUM(M22:M25) -> 1 | O26: =SUM(O22:O25) -> 1 | Q26: =SUM(Q22:Q25) -> 1 | S26: =SUM(S22:S25) -> 1 | U26: =SUM(U22:U25) -> 1 | W26: =SUM(W22:W25) -> 1
C28: Cost of Capital Parameters
D29: Deemed Short-term Debt Rate | Q29: 0.0246 | S29: =Q29 -> 0.0246 | U29: =S29 -> 0.0246 | W29: =U29 -> 0.0246
D30: Long-term Debt Rate (actual/embedded/deemed)2 | G30: 0.0713 | I30: =G30 -> 0.0713 | K30: 0.0713 | M30: 0.0713 | O30: 0.05968960216 | Q30: 0.05155028098 | S30: =Q30 -> 0.05155028098 | U30: =S30 -> 0.05155028098 | W30: =U30 -> 0.05155028098
D31: Target Return on Equity (ROE) | G31: 0.09 | I31: =G31 -> 0.09 | K31: 0.09 | M31: 0.09 | O31: 0.09 | Q31: 0.0958 | S31: 0.0958 | U31: 0.0958 | W31: 0.0958
D32: Return on Preferred Shares
C33: WACC | G33: =SUMPRODUCT(G22:G25,G29:G32) -> 0.08065 | I33: =SUMPRODUCT(I22:I25,I29:I32) -> 0.08065 | K33: =SUMPRODUCT(K22:K25,K29:K32) -> 0.0800329 | M33: =SUMPRODUCT(M22:M25,M29:M32) -> 0.0793971 | O33: =SUMPRODUCT(O22:O25,O29:O32) -> 0.0718137613 | Q33: =SUMPRODUCT(Q22:Q25,Q29:Q32) -> 0.06817215735 | S33: =SUMPRODUCT(S22:S25,S29:S32) -> 0.06817215735 | U33: =SUMPRODUCT(U22:U25,U29:U32) -> 0.06817215735 | W33: =SUMPRODUCT(W22:W25,W29:W32) -> 0.06817215735
B35: Working Capital Allowance
C36: Working Capital Allowance Rate | G36: 0.15 | I36: 0.15 | K36: 0.15 | M36: 0.15 | O36: 0.15 | Q36: 0.15 | S36: 0.15 | U36: 0.15 | W36: 0.15
C37: (% of the sum of Cost of Power + controllable expenses)
B39: Taxes/PILs
C40: Aggregate Corporate Income Tax Rate | G40: 0.3612 | I40: 0.3612 | K40: 0.335 | M40: 0.33 | O40: 0.3099 | Q40: 0.2825 | S40: 0.2548 | U40: 0.265 | W40: 0.257
C41: Capital Tax (until July 1st, 2010) | G41: 0.003 | I41: 0.00225 | K41: 0.00225 | M41: 0.00225 | O41: 0.00075 | Q41: 0 | S41: 0 | U41: 0 | W41: 0
B43: Depreciation Rates
B44: (expressed as expected useful life in years)
C45: Smart Meters - years | G45: 15 | I45: 15 | K45: 15 | M45: 15 | O45: 15 | Q45: 15 | S45: 15 | U45: 15 | W45: 15
C46: - rate (%) | G46: =IF(G45=0,0,1/G45) -> 0.06666666667 | I46: =IF(I45=0,0,1/I45) -> 0.06666666667 | K46: =IF(K45=0,0,1/K45) -> 0.06666666667 | M46: =IF(M45=0,0,1/M45) -> 0.06666666667 | O46: =IF(O45=0,0,1/O45) -> 0.06666666667 | Q46: =IF(Q45=0,0,1/Q45) -> 0.06666666667 | S46: =IF(S45=0,0,1/S45) -> 0.06666666667 | U46: =IF(U45=0,0,1/U45) -> 0.06666666667 | W46: =IF(W45=0,0,1/W45) -> 0.06666666667
C47: Computer Hardware - years | G47: 5 | I47: 5 | K47: 5 | M47: 5 | O47: 5 | Q47: 5 | S47: 5 | U47: 5 | W47: 5
C48: - rate (%) | G48: =IF(G47=0,0,1/G47) -> 0.2 | I48: =IF(I47=0,0,1/I47) -> 0.2 | K48: =IF(K47=0,0,1/K47) -> 0.2 | M48: =IF(M47=0,0,1/M47) -> 0.2 | O48: =IF(O47=0,0,1/O47) -> 0.2 | Q48: =IF(Q47=0,0,1/Q47) -> 0.2 | S48: =IF(S47=0,0,1/S47) -> 0.2 | U48: =IF(U47=0,0,1/U47) -> 0.2 | W48: =IF(W47=0,0,1/W47) -> 0.2
C49: Computer Software - years | G49: 3 | I49: 3 | K49: 3 | M49: 3 | O49: 3 | Q49: 3 | S49: 3 | U49: 3 | W49: 3
C50: - rate (%) | G50: =IF(G49=0,0,1/G49) -> 0.3333333333 | I50: =IF(I49=0,0,1/I49) -> 0.3333333333 | K50: =IF(K49=0,0,1/K49) -> 0.3333333333 | M50: =IF(M49=0,0,1/M49) -> 0.3333333333 | O50: =IF(O49=0,0,1/O49) -> 0.3333333333 | Q50: =IF(Q49=0,0,1/Q49) -> 0.3333333333 | S50: =IF(S49=0,0,1/S49) -> 0.3333333333 | U50: =IF(U49=0,0,1/U49) -> 0.3333333333 | W50: =IF(W49=0,0,1/W49) -> 0.3333333333
C51: Tools & Equipment - years | G51: 10 | I51: 10 | K51: 10 | M51: 10 | O51: 10 | Q51: 10 | S51: 10 | U51: 10 | W51: 10
C52: - rate (%) | G52: =IF(G51=0,0,1/G51) -> 0.1 | I52: =IF(I51=0,0,1/I51) -> 0.1 | K52: =IF(K51=0,0,1/K51) -> 0.1 | M52: =IF(M51=0,0,1/M51) -> 0.1 | O52: =IF(O51=0,0,1/O51) -> 0.1 | Q52: =IF(Q51=0,0,1/Q51) -> 0.1 | S52: =IF(S51=0,0,1/S51) -> 0.1 | U52: =IF(U51=0,0,1/U51) -> 0.1 | W52: =IF(W51=0,0,1/W51) -> 0.1
C53: Other Equipment - years | G53: 10 | I53: 10 | K53: 10 | M53: 10 | O53: 10 | Q53: 10 | S53: 10 | U53: 10 | W53: 10
C54: - rate (%) | G54: =IF(G53=0,0,1/G53) -> 0.1 | I54: =IF(I53=0,0,1/I53) -> 0.1 | K54: =IF(K53=0,0,1/K53) -> 0.1 | M54: =IF(M53=0,0,1/M53) -> 0.1 | O54: =IF(O53=0,0,1/O53) -> 0.1 | Q54: =IF(Q53=0,0,1/Q53) -> 0.1 | S54: =IF(S53=0,0,1/S53) -> 0.1 | U54: =IF(U53=0,0,1/U53) -> 0.1 | W54: =IF(W53=0,0,1/W53) -> 0.1
B56: CCA Rates
C57: Smart Meters - CCA Class | G57: 47 | I57: 47 | K57: 47 | M57: 47 | O57: 47 | Q57: 47 | S57: 47 | U57: 47 | W57: 47
C58: Smart Meters - CCA Rate | G58: 0.08 | I58: 0.08 | K58: 0.08 | M58: 0.08 | O58: 0.08 | Q58: 0.08 | S58: 0.08 | U58: 0.08 | W58: 0.08
C60: Computer Equipment - CCA Class | G60: 10 | I60: 10 | K60: 10 | M60: 10 | O60: 10 | Q60: 10 | S60: 10 | U60: 10 | W60: 10
C61: Computer Equipment - CCA Rate | G61: 0.3 | I61: 0.3 | K61: 0.3 | M61: 0.3 | O61: 0.3 | Q61: 0.3 | S61: 0.3 | U61: 0.3 | W61: 0.3
C63: General Equipment - CCA Class | G63: 8 | I63: 8 | K63: 8 | M63: 8 | O63: 8 | Q63: 8 | S63: 8 | U63: 8 | W63: 8
C64: General Equipment - CCA Rate | G64: 0.2 | I64: 0.2 | K64: 0.2 | M64: 0.2 | O64: 0.2 | Q64: 0.2 | S64: 0.2 | U64: 0.2 | W64: 0.2
C66: Applications Software - CCA Class | G66: 12 | I66: 12 | K66: 12 | M66: 12 | O66: 12 | Q66: 12 | S66: 12 | U66: 12 | W66: 12
C67: Applications Software - CCA Rate | G67: 1 | I67: 1 | K67: 1 | M67: 1 | O67: 1 | Q67: 1 | S67: 1 | U67: 1 | W67: 1
B69: Assumptions
B70: 1 | C70: Planned smart meter installations occur evenly throughout the year.
B71: 2 | C71: Fiscal calendar year (January 1 to December 31) used.
B72: 3 | C72: Amortization is done on a striaght line basis and has the "half-year" rule applied.

Sheet 4. SM_Assets_and_Rate_Base
Q7: Amounts Transferred in EB-2010-0138
Q9: Smart Meters | S9: 4175010
Q10: Computer Software | S10: 0
Q11: Other Equipment | S11: 0
B13: NOTE: This model was modified on September 25, 2013 by Board staff, at the request of NPEI, to account for amounts transferred from USoA account 1555 to USoA account 1860, as per the settlement agreement in EB-2010-0138.
G18: 2006 | I18: 2007 | K18: 2008 | M18: 2009 | O18: 2010 | Q18: 2011 | S18: 2012 | U18: 2013 | W18: 2014
B19: Net Fixed Assets - Smart Meters
C21: Gross Book Value
D22: Opening Balance | I22: =G25 -> 46405.63 | K22: =I25 -> 61088.18 | M22: =K25 -> 61088.18 | O22: =M25 -> 1540539.46 | Q22: =O25-S9 -> 204979.1 | S22: =Q25 -> 821821.37 | U22: =S25 -> 1612739.59 | W22: =U25 -> 1656877.42
D23: Capital Additions during year (from Smart Meter Costs) | G23: ='2. Smart_Meter_Costs'!G181 -> 46405.63 | I23: ='2. Smart_Meter_Costs'!I181 -> 14682.55 | K23: ='2. Smart_Meter_Costs'!K181 -> 0 | M23: ='2. Smart_Meter_Costs'!M181 -> 1479451.28 | O23: ='2. Smart_Meter_Costs'!O181 -> 2839449.64 | Q23: ='2. Smart_Meter_Costs'!Q181 -> 616842.27 | S23: ='2. Smart_Meter_Costs'!S181 -> 790918.22 | U23: ='2. Smart_Meter_Costs'!U181 -> 44137.83 | W23: ='2. Smart_Meter_Costs'!W181 -> 12000
D24: Retirements/Removals (if applicable)
D25: Closing Balance | G25: =G22+G23-G24 -> 46405.63 | I25: =I22+I23-I24 -> 61088.18 | K25: =K22+K23-K24 -> 61088.18 | M25: =M22+M23-M24 -> 1540539.46 | O25: =O22+O23-O24 -> 4379989.1 | Q25: =Q22+Q23-Q24 -> 821821.37 | S25: =S22+S23-S24 -> 1612739.59 | U25: =U22+U23-U24 -> 1656877.42 | W25: =W22+W23-W24 -> 1668877.42
C27: Accumulated Depreciation
D28: Opening Balance | I28: =G31 -> -1546.854333 | K28: =I31 -> -5129.981333 | M28: =K31 -> -9202.526667 | O28: =M31 -> -62590.11467 | Q28: =O31 -> -259941.0667 | S28: =Q31 -> -294167.749 | U28: =S31 -> -375319.781 | W28: =U31 -> -484307.0147
D29: Amortization expense during year | G29: =IF(ISERROR(-G23/('3. Cost_of_Service_Parameters'!G45*2)), 0, -G23/('3. Cost_of_Service_Parameters'!G45*2)) -> -1546.854333 | I29: =IF(ISERROR(-(I23/('3. Cost_of_Service_Parameters'!I45*2)+MIN((I22/'3. Cost_of_Service_Parameters'!I45),(I22+I28)))), 0, -(I23/('3. Cost_of_Service_Parameters'!I45*2)+MIN((I22/'3. Cost_of_Service_Parameters'!I45),(I22+I28)))) -> -3583.127 | K29: =IF(ISERROR(-(K23/('3. Cost_of_Service_Parameters'!K45*2)+MIN((K22/'3. Cost_of_Service_Parameters'!K45),(K22+K28)))), 0, -(K23/('3. Cost_of_Service_Parameters'!K45*2)+MIN((K22/'3. Cost_of_Service_Parameters'!K45),(K22+K28)))) -> -4072.545333 | M29: =IF(ISERROR(-(M23/('3. Cost_of_Service_Parameters'!M45*2)+MIN((M22/'3. Cost_of_Service_Parameters'!M45),(M22+M28)))), 0,-(M23/('3. Cost_of_Service_Parameters'!M45*2)+MIN((M22/'3. Cost_of_Service_Parameters'!M45),(M22+M28)))) -> -53387.588 | O29: =IF(ISERROR(-(O23/('3. Cost_of_Service_Parameters'!O45*2)+MIN((O22/'3. Cost_of_Service_Parameters'!O45),(O22+O28)))), 0, -(O23/('3. Cost_of_Service_Parameters'!O45*2)+MIN((O22/'3. Cost_of_Service_Parameters'!O45),(O22+O28)))) -> -197350.952 | Q29: =-(Q22/'3. Cost_of_Service_Parameters'!Q45+0.5*Q23/'3. Cost_of_Service_Parameters'!Q45) -> -34226.68233 | S29: =IF(ISERROR(-(S23/('3. Cost_of_Service_Parameters'!S45*2)+MIN((S22/'3. Cost_of_Service_Parameters'!S45),(S22+S28)))), 0, -(S23/('3. Cost_of_Service_Parameters'!S45*2)+MIN((S22/'3. Cost_of_Service_Parameters'!S45),(S22+S28)))) -> -81152.032 | U29: =IF(ISERROR(-(U23/('3. Cost_of_Service_Parameters'!U45*2)+MIN((U22/'3. Cost_of_Service_Parameters'!U45),(U22+U28)))), 0, -(U23/('3. Cost_of_Service_Parameters'!U45*2)+MIN((U22/'3. Cost_of_Service_Parameters'!U45),(U22+U28)))) -> -108987.2337 | W29: =IF(ISERROR(-(W23/('3. Cost_of_Service_Parameters'!W45*2)+MIN((W22/'3. Cost_of_Service_Parameters'!W45),(W22+W28)))), 0, -(W23/('3. Cost_of_Service_Parameters'!W45*2)+MIN((W22/'3. Cost_of_Service_Parameters'!W45),(W22+W28)))) -> -110858.4947
D30: Retirements/Removals (if applicable)
D31: Closing Balance | G31: =G28+G29-G30 -> -1546.854333 | I31: =I28+I29-I30 -> -5129.981333 | K31: =K28+K29-K30 -> -9202.526667 | M31: =M28+M29-M30 -> -62590.11467 | O31: =O28+O29-O30 -> -259941.0667 | Q31: =Q28+Q29-Q30 -> -294167.749 | S31: =S28+S29-S30 -> -375319.781 | U31: =U28+U29-U30 -> -484307.0147 | W31: =W28+W29-W30 -> -595165.5093
C33: Net Book Value
D34: Opening Balance | G34: =G22+G28 -> 0 | I34: =G35 -> 44858.77567 | K34: =I35 -> 55958.19867 | M34: =K35 -> 51885.65333 | O34: =M35 -> 1477949.345 | Q34: =Q22+Q28 -> -54961.96667 | S34: =Q35 -> 527653.621 | U34: =S35 -> 1237419.809 | W34: =U35 -> 1172570.405
D35: Closing Balance | G35: =G25+G31 -> 44858.77567 | I35: =I25+I31 -> 55958.19867 | K35: =K25+K31 -> 51885.65333 | M35: =M25+M31 -> 1477949.345 | O35: =O25+O31 -> 4120048.033 | Q35: =Q25+Q31 -> 527653.621 | S35: =S25+S31 -> 1237419.809 | U35: =U25+U31 -> 1172570.405 | W35: =W25+W31 -> 1073711.911
D36: Average Net Book Value | G36: =AVERAGE(G34:G35) -> 22429.38783 | I36: =AVERAGE(I34:I35) -> 50408.48717 | K36: =AVERAGE(K34:K35) -> 53921.926 | M36: =AVERAGE(M34:M35) -> 764917.4993 | O36: =AVERAGE(O34:O35) -> 2798998.689 | Q36: =AVERAGE(Q34:Q35) -> 236345.8272 | S36: =AVERAGE(S34:S35) -> 882536.715 | U36: =AVERAGE(U34:U35) -> 1204995.107 | W36: =AVERAGE(W34:W35) -> 1123141.158
B38: Net Fixed Assets - Computer Hardware
C40: Gross Book Value
D41: Opening Balance | I41: =G44 -> 0 | K41: =I44 -> 0 | M41: =K44 -> 0 | O41: =M44 -> 0 | Q41: =O44 -> 0 | S41: =Q44 -> 1600 | U41: =S44 -> 2310 | W41: =U44 -> 5255
D42: Capital Additions during year (from Smart Meter Costs) | G42: ='2. Smart_Meter_Costs'!G183 -> 0 | I42: ='2. Smart_Meter_Costs'!I183 -> 0 | K42: ='2. Smart_Meter_Costs'!K183 -> 0 | M42: ='2. Smart_Meter_Costs'!M183 -> 0 | O42: ='2. Smart_Meter_Costs'!O183 -> 0 | Q42: ='2. Smart_Meter_Costs'!Q183 -> 1600 | S42: ='2. Smart_Meter_Costs'!S183 -> 710 | U42: ='2. Smart_Meter_Costs'!U183 -> 2945 | W42: ='2. Smart_Meter_Costs'!W183 -> 0
D43: Retirements/Removals (if applicable)
D44: Closing Balance | G44: =G41+G42-G43 -> 0 | I44: =I41+I42-I43 -> 0 | K44: =K41+K42-K43 -> 0 | M44: =M41+M42-M43 -> 0 | O44: =O41+O42-O43 -> 0 | Q44: =Q41+Q42-Q43 -> 1600 | S44: =S41+S42-S43 -> 2310 | U44: =U41+U42-U43 -> 5255 | W44: =W41+W42-W43 -> 5255
C46: Accumulated Depreciation
D47: Opening Balance | G47: 0 | I47: =G50 -> 0 | K47: =I50 -> 0 | M47: =K50 -> 0 | O47: =M50 -> 0 | Q47: =O50 -> 0 | S47: =Q50 -> -160 | U47: =S50 -> -551 | W47: =U50 -> -1307.5
D48: Amortization expense during year | G48: =IF(ISERROR(-G42/('3. Cost_of_Service_Parameters'!G47*2)), 0, -G42/('3. Cost_of_Service_Parameters'!G47*2)) -> 0 | I48: =IF(ISERROR(-(I42/('3. Cost_of_Service_Parameters'!I47*2)+MIN((I41/'3. Cost_of_Service_Parameters'!I47),(I41+I47)))), 0, -(I42/('3. Cost_of_Service_Parameters'!I47*2)+MIN((I41/'3. Cost_of_Service_Parameters'!I47),(I41+I47)))) -> 0 | K48: =IF(ISERROR(-(K42/('3. Cost_of_Service_Parameters'!K47*2)+MIN((K41/'3. Cost_of_Service_Parameters'!K47),(K41+K47)))), 0, -(K42/('3. Cost_of_Service_Parameters'!K47*2)+MIN((K41/'3. Cost_of_Service_Parameters'!K47),(K41+K47)))) -> 0 | M48: =IF(ISERROR(-(M42/('3. Cost_of_Service_Parameters'!M47*2)+MIN((M41/'3. Cost_of_Service_Parameters'!M47),(M41+M47)))), 0,-(M42/('3. Cost_of_Service_Parameters'!M47*2)+MIN((M41/'3. Cost_of_Service_Parameters'!M47),(M41+M47)))) -> 0 | O48: =IF(ISERROR(-(O42/('3. Cost_of_Service_Parameters'!O47*2)+MIN((O41/'3. Cost_of_Service_Parameters'!O47),(O41+O47)))), 0, -(O42/('3. Cost_of_Service_Parameters'!O47*2)+MIN((O41/'3. Cost_of_Service_Parameters'!O47),(O41+O47)))) -> 0 | Q48: =IF(ISERROR(-(Q42/('3. Cost_of_Service_Parameters'!Q47*2)+MIN((Q41/'3. Cost_of_Service_Parameters'!Q47),(Q41+Q47)))), 0, -(Q42/('3. Cost_of_Service_Parameters'!Q47*2)+MIN((Q41/'3. Cost_of_Service_Parameters'!Q47),(Q41+Q47)))) -> -160 | S48: =IF(ISERROR(-(S42/('3. Cost_of_Service_Parameters'!S47*2)+MIN((S41/'3. Cost_of_Service_Parameters'!S47),(S41+S47)))), 0, -(S42/('3. Cost_of_Service_Parameters'!S47*2)+MIN((S41/'3. Cost_of_Service_Parameters'!S47),(S41+S47)))) -> -391 | U48: =IF(ISERROR(-(U42/('3. Cost_of_Service_Parameters'!U47*2)+MIN((U41/'3. Cost_of_Service_Parameters'!U47),(U41+U47)))), 0, -(U42/('3. Cost_of_Service_Parameters'!U47*2)+MIN((U41/'3. Cost_of_Service_Parameters'!U47),(U41+U47)))) -> -756.5 | W48: =IF(ISERROR(-(W42/('3. Cost_of_Service_Parameters'!W47*2)+MIN((W41/'3. Cost_of_Service_Parameters'!W47),(W41+W47)))), 0, -(W42/('3. Cost_of_Service_Parameters'!W47*2)+MIN((W41/'3. Cost_of_Service_Parameters'!W47),(W41+W47)))) -> -1051
D49: Retirements/Removals (if applicable)
D50: Closing Balance | G50: =G47+G48-G49 -> 0 | I50: =I47+I48-I49 -> 0 | K50: =K47+K48-K49 -> 0 | M50: =M47+M48-M49 -> 0 | O50: =O47+O48-O49 -> 0 | Q50: =Q47+Q48-Q49 -> -160 | S50: =S47+S48-S49 -> -551 | U50: =U47+U48-U49 -> -1307.5 | W50: =W47+W48-W49 -> -2358.5
C52: Net Book Value
D53: Opening Balance | G53: =G41+G47 -> 0 | I53: =G54 -> 0 | K53: =I54 -> 0 | M53: =K54 -> 0 | O53: =M54 -> 0 | Q53: =O54 -> 0 | S53: =Q54 -> 1440 | U53: =S54 -> 1759 | W53: =U54 -> 3947.5
D54: Closing Balance | G54: =G44+G50 -> 0 | I54: =I44+I50 -> 0 | K54: =K44+K50 -> 0 | M54: =M44+M50 -> 0 | O54: =O44+O50 -> 0 | Q54: =Q44+Q50 -> 1440 | S54: =S44+S50 -> 1759 | U54: =U44+U50 -> 3947.5 | W54: =W44+W50 -> 2896.5
D55: Average Net Book Value | G55: =AVERAGE(G53:G54) -> 0 | I55: =AVERAGE(I53:I54) -> 0 | K55: =AVERAGE(K53:K54) -> 0 | M55: =AVERAGE(M53:M54) -> 0 | O55: =AVERAGE(O53:O54) -> 0 | Q55: =AVERAGE(Q53:Q54) -> 720 | S55: =AVERAGE(S53:S54) -> 1599.5 | U55: =AVERAGE(U53:U54) -> 2853.25 | W55: =AVERAGE(W53:W54) -> 3422
B57: Net Fixed Assets - Computer Software (including Applications Software)
C59: Gross Book Value
D60: Opening Balance | I60: =G63 -> 0 | K60: =I63 -> 0 | M60: =K63 -> 0 | O60: =M63 -> 0 | Q60: =O63-S10 -> 45704.7 | S60: =Q63 -> 239256.16 | U60: =S63 -> 239256.16 | W60: =U63 -> 239256.16
D61: Capital Additions during year (from Smart Meter Costs) | G61: ='2. Smart_Meter_Costs'!G185+'2. Smart_Meter_Costs'!G191 -> 0 | I61: ='2. Smart_Meter_Costs'!I185+'2. Smart_Meter_Costs'!I191 -> 0 | K61: ='2. Smart_Meter_Costs'!K185+'2. Smart_Meter_Costs'!K191 -> 0 | M61: ='2. Smart_Meter_Costs'!M185+'2. Smart_Meter_Costs'!M191 -> 0 | O61: ='2. Smart_Meter_Costs'!O185+'2. Smart_Meter_Costs'!O191 -> 45704.7 | Q61: ='2. Smart_Meter_Costs'!Q185+'2. Smart_Meter_Costs'!Q191 -> 193551.46 | S61: ='2. Smart_Meter_Costs'!S185+'2. Smart_Meter_Costs'!S191 -> 0 | U61: ='2. Smart_Meter_Costs'!U185+'2. Smart_Meter_Costs'!U191 -> 0 | W61: ='2. Smart_Meter_Costs'!W185+'2. Smart_Meter_Costs'!W191 -> 0
D62: Retirements/Removals (if applicable)
D63: Closing Balance | G63: =G60+G61-G62 -> 0 | I63: =I60+I61-I62 -> 0 | K63: =K60+K61-K62 -> 0 | M63: =M60+M61-M62 -> 0 | O63: =O60+O61-O62 -> 45704.7 | Q63: =Q60+Q61-Q62 -> 239256.16 | S63: =S60+S61-S62 -> 239256.16 | U63: =U60+U61-U62 -> 239256.16 | W63: =W60+W61-W62 -> 239256.16
C65: Accumulated Depreciation
D66: Opening Balance | G66: 0 | I66: =G69 -> 0 | K66: =I69 -> 0 | M66: =K69 -> 0 | O66: =M69 -> 0 | Q66: =O69 -> -7617.45 | S66: =Q69 -> -55110.92667 | U66: =S69 -> -134862.98 | W66: =U69 -> -214615.0333
D67: Amortization expense during year | G67: =IF(ISERROR(-G61/('3. Cost_of_Service_Parameters'!G49*2)), 0, -G61/('3. Cost_of_Service_Parameters'!G49*2)) -> 0 | I67: =IF(ISERROR(-(I61/('3. Cost_of_Service_Parameters'!I49*2)+MIN((I60/'3. Cost_of_Service_Parameters'!I49),(I60+I66)))), 0, -(I61/('3. Cost_of_Service_Parameters'!I49*2)+MIN((I60/'3. Cost_of_Service_Parameters'!I49),(I60+I66)))) -> 0 | K67: =IF(ISERROR(-(K61/('3. Cost_of_Service_Parameters'!K49*2)+MIN((K60/'3. Cost_of_Service_Parameters'!K49),(K60+K66)))), 0, -(K61/('3. Cost_of_Service_Parameters'!K49*2)+MIN((K60/'3. Cost_of_Service_Parameters'!K49),(K60+K66)))) -> 0 | M67: =IF(ISERROR(-(M61/('3. Cost_of_Service_Parameters'!M49*2)+MIN((M60/'3. Cost_of_Service_Parameters'!M49),(M60+M66)))), 0,-(M61/('3. Cost_of_Service_Parameters'!M49*2)+MIN((M60/'3. Cost_of_Service_Parameters'!M49),(M60+M66)))) -> 0 | O67: =IF(ISERROR(-(O61/('3. Cost_of_Service_Parameters'!O49*2)+MIN((O60/'3. Cost_of_Service_Parameters'!O49),(O60+O66)))), 0, -(O61/('3. Cost_of_Service_Parameters'!O49*2)+MIN((O60/'3. Cost_of_Service_Parameters'!O49),(O60+O66)))) -> -7617.45 | Q67: =IF(ISERROR(-(Q61/('3. Cost_of_Service_Parameters'!Q49*2)+MIN((Q60/'3. Cost_of_Service_Parameters'!Q49),(Q60+Q66)))), 0, -(Q61/('3. Cost_of_Service_Parameters'!Q49*2)+MIN((Q60/'3. Cost_of_Service_Parameters'!Q49),(Q60+Q66)))) -> -47493.47667 | S67: =IF(ISERROR(-(S61/('3. Cost_of_Service_Parameters'!S49*2)+MIN((S60/'3. Cost_of_Service_Parameters'!S49),(S60+S66)))), 0, -(S61/('3. Cost_of_Service_Parameters'!S49*2)+MIN((S60/'3. Cost_of_Service_Parameters'!S49),(S60+S66)))) -> -79752.05333 | U67: =IF(ISERROR(-(U61/('3. Cost_of_Service_Parameters'!U49*2)+MIN((U60/'3. Cost_of_Service_Parameters'!U49),(U60+U66)))), 0, -(U61/('3. Cost_of_Service_Parameters'!U49*2)+MIN((U60/'3. Cost_of_Service_Parameters'!U49),(U60+U66)))) -> -79752.05333 | W67: =IF(ISERROR(-(W61/('3. Cost_of_Service_Parameters'!W49*2)+MIN((W60/'3. Cost_of_Service_Parameters'!W49),(W60+W66)))), 0, -(W61/('3. Cost_of_Service_Parameters'!W49*2)+MIN((W60/'3. Cost_of_Service_Parameters'!W49),(W60+W66)))) -> -24641.12667
D68: Retirements/Removals (if applicable)
D69: Closing Balance | G69: =G66+G67-G68 -> 0 | I69: =I66+I67-I68 -> 0 | K69: =K66+K67-K68 -> 0 | M69: =M66+M67-M68 -> 0 | O69: =O66+O67-O68 -> -7617.45 | Q69: =Q66+Q67-Q68 -> -55110.92667 | S69: =S66+S67-S68 -> -134862.98 | U69: =U66+U67-U68 -> -214615.0333 | W69: =W66+W67-W68 -> -239256.16
C71: Net Book Value
D72: Opening Balance | G72: =G60+G66 -> 0 | I72: =G73 -> 0 | K72: =I73 -> 0 | M72: =K73 -> 0 | O72: =M73 -> 0 | Q72: =Q60+Q66 -> 38087.25 | S72: =Q73 -> 184145.2333 | U72: =S73 -> 104393.18 | W72: =U73 -> 24641.12667
D73: Closing Balance | G73: =G63+G69 -> 0 | I73: =I63+I69 -> 0 | K73: =K63+K69 -> 0 | M73: =M63+M69 -> 0 | O73: =O63+O69 -> 38087.25 | Q73: =Q63+Q69 -> 184145.2333 | S73: =S63+S69 -> 104393.18 | U73: =U63+U69 -> 24641.12667 | W73: =W63+W69 -> 0
D74: Average Net Book Value | G74: =AVERAGE(G72:G73) -> 0 | I74: =AVERAGE(I72:I73) -> 0 | K74: =AVERAGE(K72:K73) -> 0 | M74: =AVERAGE(M72:M73) -> 0 | O74: =AVERAGE(O72:O73) -> 19043.625 | Q74: =AVERAGE(Q72:Q73) -> 111116.2417 | S74: =AVERAGE(S72:S73) -> 144269.2067 | U74: =AVERAGE(U72:U73) -> 64517.15333 | W74: =AVERAGE(W72:W73) -> 12320.56333
B76: Net Fixed Assets - Tools and Equipment
C78: Gross Book Value
D79: Opening Balance | I79: =G82 -> 0 | K79: =I82 -> 0 | M79: =K82 -> 0 | O79: =M82 -> 0 | Q79: =O82 -> 0 | S79: =Q82 -> 0 | U79: =S82 -> 0 | W79: =U82 -> 0
D80: Capital Additions during year (from Smart Meter Costs) | G80: ='2. Smart_Meter_Costs'!G187 -> 0 | I80: ='2. Smart_Meter_Costs'!I187 -> 0 | K80: ='2. Smart_Meter_Costs'!K187 -> 0 | M80: ='2. Smart_Meter_Costs'!M187 -> 0 | O80: ='2. Smart_Meter_Costs'!O187 -> 0 | Q80: ='2. Smart_Meter_Costs'!Q187 -> 0 | S80: ='2. Smart_Meter_Costs'!S187 -> 0 | U80: ='2. Smart_Meter_Costs'!U187 -> 0 | W80: ='2. Smart_Meter_Costs'!W187 -> 0
D81: Retirements/Removals (if applicable)
D82: Closing Balance | G82: =G79+G80-G81 -> 0 | I82: =I79+I80-I81 -> 0 | K82: =K79+K80-K81 -> 0 | M82: =M79+M80-M81 -> 0 | O82: =O79+O80-O81 -> 0 | Q82: =Q79+Q80-Q81 -> 0 | S82: =S79+S80-S81 -> 0 | U82: =U79+U80-U81 -> 0 | W82: =W79+W80-W81 -> 0
C84: Accumulated Depreciation
D85: Opening Balance | G85: 0 | I85: =G88 -> 0 | K85: =I88 -> 0 | M85: =K88 -> 0 | O85: =M88 -> 0 | Q85: =O88 -> 0 | S85: =Q88 -> 0 | U85: =S88 -> 0 | W85: =U88 -> 0
D86: Amortization expense during year | G86: =IF(ISERROR(-G80/('3. Cost_of_Service_Parameters'!G51*2)), 0, -G80/('3. Cost_of_Service_Parameters'!G51*2)) -> 0 | I86: =IF(ISERROR(-(I80/('3. Cost_of_Service_Parameters'!I51*2)+MIN((I79/'3. Cost_of_Service_Parameters'!I51),(I79+I85)))), 0, -(I80/('3. Cost_of_Service_Parameters'!I51*2)+MIN((I79/'3. Cost_of_Service_Parameters'!I51),(I79+I85)))) -> 0 | K86: =IF(ISERROR(-(K80/('3. Cost_of_Service_Parameters'!K51*2)+MIN((K79/'3. Cost_of_Service_Parameters'!K51),(K79+K85)))), 0, -(K80/('3. Cost_of_Service_Parameters'!K51*2)+MIN((K79/'3. Cost_of_Service_Parameters'!K51),(K79+K85)))) -> 0 | M86: =IF(ISERROR(-(M80/('3. Cost_of_Service_Parameters'!M51*2)+MIN((M79/'3. Cost_of_Service_Parameters'!M51),(M79+M85)))), 0,-(M80/('3. Cost_of_Service_Parameters'!M51*2)+MIN((M79/'3. Cost_of_Service_Parameters'!M51),(M79+M85)))) -> 0 | O86: =IF(ISERROR(-(O80/('3. Cost_of_Service_Parameters'!O51*2)+MIN((O79/'3. Cost_of_Service_Parameters'!O51),(O79+O85)))), 0, -(O80/('3. Cost_of_Service_Parameters'!O51*2)+MIN((O79/'3. Cost_of_Service_Parameters'!O51),(O79+O85)))) -> 0 | Q86: =IF(ISERROR(-(Q80/('3. Cost_of_Service_Parameters'!Q51*2)+MIN((Q79/'3. Cost_of_Service_Parameters'!Q51),(Q79+Q85)))), 0, -(Q80/('3. Cost_of_Service_Parameters'!Q51*2)+MIN((Q79/'3. Cost_of_Service_Parameters'!Q51),(Q79+Q85)))) -> 0 | S86: =IF(ISERROR(-(S80/('3. Cost_of_Service_Parameters'!S51*2)+MIN((S79/'3. Cost_of_Service_Parameters'!S51),(S79+S85)))), 0, -(S80/('3. Cost_of_Service_Parameters'!S51*2)+MIN((S79/'3. Cost_of_Service_Parameters'!S51),(S79+S85)))) -> 0 | U86: =IF(ISERROR(-(U80/('3. Cost_of_Service_Parameters'!U51*2)+MIN((U79/'3. Cost_of_Service_Parameters'!U51),(U79+U85)))), 0, -(U80/('3. Cost_of_Service_Parameters'!U51*2)+MIN((U79/'3. Cost_of_Service_Parameters'!U51),(U79+U85)))) -> 0 | W86: =IF(ISERROR(-(W80/('3. Cost_of_Service_Parameters'!W51*2)+MIN((W79/'3. Cost_of_Service_Parameters'!W51),(W79+W85)))), 0, -(W80/('3. Cost_of_Service_Parameters'!W51*2)+MIN((W79/'3. Cost_of_Service_Parameters'!W51),(W79+W85)))) -> 0
D87: Retirements/Removals (if applicable)
D88: Closing Balance | G88: =G85+G86-G87 -> 0 | I88: =I85+I86-I87 -> 0 | K88: =K85+K86-K87 -> 0 | M88: =M85+M86-M87 -> 0 | O88: =O85+O86-O87 -> 0 | Q88: =Q85+Q86-Q87 -> 0 | S88: =S85+S86-S87 -> 0 | U88: =U85+U86-U87 -> 0 | W88: =W85+W86-W87 -> 0
C90: Net Book Value
D91: Opening Balance | G91: =G79+G85 -> 0 | I91: =G92 -> 0 | K91: =I92 -> 0 | M91: =K92 -> 0 | O91: =M92 -> 0 | Q91: =O92 -> 0 | S91: =Q92 -> 0 | U91: =S92 -> 0 | W91: =U92 -> 0
D92: Closing Balance | G92: =G82+G88 -> 0 | I92: =I82+I88 -> 0 | K92: =K82+K88 -> 0 | M92: =M82+M88 -> 0 | O92: =O82+O88 -> 0 | Q92: =Q82+Q88 -> 0 | S92: =S82+S88 -> 0 | U92: =U82+U88 -> 0 | W92: =W82+W88 -> 0
D93: Average Net Book Value | G93: =AVERAGE(G91:G92) -> 0 | I93: =AVERAGE(I91:I92) -> 0 | K93: =AVERAGE(K91:K92) -> 0 | M93: =AVERAGE(M91:M92) -> 0 | O93: =AVERAGE(O91:O92) -> 0 | Q93: =AVERAGE(Q91:Q92) -> 0 | S93: =AVERAGE(S91:S92) -> 0 | U93: =AVERAGE(U91:U92) -> 0 | W93: =AVERAGE(W91:W92) -> 0
B95: Net Fixed Assets - Other Equipment
C97: Gross Book Value
D98: Opening Balance | I98: =G101 -> 0 | K98: =I101 -> 0 | M98: =K101 -> 0 | O98: =M101 -> 0 | Q98: =O101-S11 -> 0 | S98: =Q101 -> 0 | U98: =S101 -> 0 | W98: =U101 -> 0
D99: Capital Additions during year (from Smart Meter Costs) | G99: ='2. Smart_Meter_Costs'!G189 -> 0 | I99: ='2. Smart_Meter_Costs'!I189 -> 0 | K99: ='2. Smart_Meter_Costs'!K189 -> 0 | M99: ='2. Smart_Meter_Costs'!M189 -> 0 | O99: ='2. Smart_Meter_Costs'!O189 -> 0 | Q99: ='2. Smart_Meter_Costs'!Q189 -> 0 | S99: ='2. Smart_Meter_Costs'!S189 -> 0 | U99: ='2. Smart_Meter_Costs'!U189 -> 0 | W99: ='2. Smart_Meter_Costs'!W189 -> 0
D100: Retirements/Removals (if applicable)
D101: Closing Balance | G101: =G98+G99-G100 -> 0 | I101: =I98+I99-I100 -> 0 | K101: =K98+K99-K100 -> 0 | M101: =M98+M99-M100 -> 0 | O101: =O98+O99-O100 -> 0 | Q101: =Q98+Q99-Q100 -> 0 | S101: =S98+S99-S100 -> 0 | U101: =U98+U99-U100 -> 0 | W101: =W98+W99-W100 -> 0
C103: Accumulated Depreciation
D104: Opening Balance | G104: 0 | I104: =G107 -> 0 | K104: =I107 -> 0 | M104: =K107 -> 0 | O104: =M107 -> 0 | Q104: =O107 -> 0 | S104: =Q107 -> 0 | U104: =S107 -> 0 | W104: =U107 -> 0
D105: Amortization expense during year | G105: =IF(ISERROR(-G99/('3. Cost_of_Service_Parameters'!G53*2)), 0, -G99/('3. Cost_of_Service_Parameters'!G53*2)) -> 0 | I105: =IF(ISERROR(-(I99/('3. Cost_of_Service_Parameters'!I53*2)+MIN((I98/'3. Cost_of_Service_Parameters'!I53),(I98+I104)))), 0, -(I99/('3. Cost_of_Service_Parameters'!I53*2)+MIN((I98/'3. Cost_of_Service_Parameters'!I53),(I98+I104)))) -> 0 | K105: =IF(ISERROR(-(K99/('3. Cost_of_Service_Parameters'!K53*2)+MIN((K98/'3. Cost_of_Service_Parameters'!K53),(K98+K104)))), 0, -(K99/('3. Cost_of_Service_Parameters'!K53*2)+MIN((K98/'3. Cost_of_Service_Parameters'!K53),(K98+K104)))) -> 0 | M105: =IF(ISERROR(-(M99/('3. Cost_of_Service_Parameters'!M53*2)+MIN((M98/'3. Cost_of_Service_Parameters'!M53),(M98+M104)))), 0,-(M99/('3. Cost_of_Service_Parameters'!M53*2)+MIN((M98/'3. Cost_of_Service_Parameters'!M53),(M98+M104)))) -> 0 | O105: =IF(ISERROR(-(O99/('3. Cost_of_Service_Parameters'!O53*2)+MIN((O98/'3. Cost_of_Service_Parameters'!O53),(O98+O104)))), 0, -(O99/('3. Cost_of_Service_Parameters'!O53*2)+MIN((O98/'3. Cost_of_Service_Parameters'!O53),(O98+O104)))) -> 0 | Q105: =IF(ISERROR(-(Q99/('3. Cost_of_Service_Parameters'!Q53*2)+MIN((Q98/'3. Cost_of_Service_Parameters'!Q53),(Q98+Q104)))), 0, -(Q99/('3. Cost_of_Service_Parameters'!Q53*2)+MIN((Q98/'3. Cost_of_Service_Parameters'!Q53),(Q98+Q104)))) -> 0 | S105: =IF(ISERROR(-(S99/('3. Cost_of_Service_Parameters'!S53*2)+MIN((S98/'3. Cost_of_Service_Parameters'!S53),(S98+S104)))), 0, -(S99/('3. Cost_of_Service_Parameters'!S53*2)+MIN((S98/'3. Cost_of_Service_Parameters'!S53),(S98+S104)))) -> 0 | U105: =IF(ISERROR(-(U99/('3. Cost_of_Service_Parameters'!U53*2)+MIN((U98/'3. Cost_of_Service_Parameters'!U53),(U98+U104)))), 0, -(U99/('3. Cost_of_Service_Parameters'!U53*2)+MIN((U98/'3. Cost_of_Service_Parameters'!U53),(U98+U104)))) -> 0 | W105: =IF(ISERROR(-(W99/('3. Cost_of_Service_Parameters'!W53*2)+MIN((W98/'3. Cost_of_Service_Parameters'!W53),(W98+W104)))), 0, -(W99/('3. Cost_of_Service_Parameters'!W53*2)+MIN((W98/'3. Cost_of_Service_Parameters'!W53),(W98+W104)))) -> 0
D106: Retirements/Removals (if applicable)
D107: Closing Balance | G107: =G104+G105-G106 -> 0 | I107: =I104+I105-I106 -> 0 | K107: =K104+K105-K106 -> 0 | M107: =M104+M105-M106 -> 0 | O107: =O104+O105-O106 -> 0 | Q107: =Q104+Q105-Q106 -> 0 | S107: =S104+S105-S106 -> 0 | U107: =U104+U105-U106 -> 0 | W107: =W104+W105-W106 -> 0
C109: Net Book Value
D110: Opening Balance | G110: =G98+G104 -> 0 | I110: =G111 -> 0 | K110: =I111 -> 0 | M110: =K111 -> 0 | O110: =M111 -> 0 | Q110: =Q98+Q104 -> 0 | S110: =Q111 -> 0 | U110: =S111 -> 0 | W110: =U111 -> 0
D111: Closing Balance | G111: =G101+G107 -> 0 | I111: =I101+I107 -> 0 | K111: =K101+K107 -> 0 | M111: =M101+M107 -> 0 | O111: =O101+O107 -> 0 | Q111: =Q101+Q107 -> 0 | S111: =S101+S107 -> 0 | U111: =U101+U107 -> 0 | W111: =W101+W107 -> 0
D112: Average Net Book Value | G112: =AVERAGE(G110:G111) -> 0 | I112: =AVERAGE(I110:I111) -> 0 | K112: =AVERAGE(K110:K111) -> 0 | M112: =AVERAGE(M110:M111) -> 0 | O112: =AVERAGE(O110:O111) -> 0 | Q112: =AVERAGE(Q110:Q111) -> 0 | S112: =AVERAGE(S110:S111) -> 0 | U112: =AVERAGE(U110:U111) -> 0 | W112: =AVERAGE(W110:W111) -> 0

Sheet 5. SM_Rev_Reqt
G18: 2006 | I18: 2007 | K18: 2008 | M18: 2009 | O18: 2010 | Q18: 2011 | S18: 2012 | U18: 2013 | W18: 2014
B19: Average Net Fixed Asset Values (from Sheet 4)
C20: Smart Meters | G20: ='4. SM_Assets_and_Rate_Base'!G36 -> 22429.38783 | I20: ='4. SM_Assets_and_Rate_Base'!I36 -> 50408.48717 | K20: ='4. SM_Assets_and_Rate_Base'!K36 -> 53921.926 | M20: ='4. SM_Assets_and_Rate_Base'!M36 -> 764917.4993 | O20: ='4. SM_Assets_and_Rate_Base'!O36 -> 2798998.689 | Q20: ='4. SM_Assets_and_Rate_Base'!Q36 -> 236345.8272 | S20: ='4. SM_Assets_and_Rate_Base'!S36 -> 882536.715 | U20: ='4. SM_Assets_and_Rate_Base'!U36 -> 1204995.107 | W20: ='4. SM_Assets_and_Rate_Base'!W36 -> 1123141.158
C21: Computer Hardware | G21: ='4. SM_Assets_and_Rate_Base'!G55 -> 0 | I21: ='4. SM_Assets_and_Rate_Base'!I55 -> 0 | K21: ='4. SM_Assets_and_Rate_Base'!K55 -> 0 | M21: ='4. SM_Assets_and_Rate_Base'!M55 -> 0 | O21: ='4. SM_Assets_and_Rate_Base'!O55 -> 0 | Q21: ='4. SM_Assets_and_Rate_Base'!Q55 -> 720 | S21: ='4. SM_Assets_and_Rate_Base'!S55 -> 1599.5 | U21: ='4. SM_Assets_and_Rate_Base'!U55 -> 2853.25 | W21: ='4. SM_Assets_and_Rate_Base'!W55 -> 3422
C22: Computer Software | G22: ='4. SM_Assets_and_Rate_Base'!G74 -> 0 | I22: ='4. SM_Assets_and_Rate_Base'!I74 -> 0 | K22: ='4. SM_Assets_and_Rate_Base'!K74 -> 0 | M22: ='4. SM_Assets_and_Rate_Base'!M74 -> 0 | O22: ='4. SM_Assets_and_Rate_Base'!O74 -> 19043.625 | Q22: ='4. SM_Assets_and_Rate_Base'!Q74 -> 111116.2417 | S22: ='4. SM_Assets_and_Rate_Base'!S74 -> 144269.2067 | U22: ='4. SM_Assets_and_Rate_Base'!U74 -> 64517.15333 | W22: ='4. SM_Assets_and_Rate_Base'!W74 -> 12320.56333
C23: Tools & Equipment | G23: ='4. SM_Assets_and_Rate_Base'!G93 -> 0 | I23: ='4. SM_Assets_and_Rate_Base'!I93 -> 0 | K23: ='4. SM_Assets_and_Rate_Base'!K93 -> 0 | M23: ='4. SM_Assets_and_Rate_Base'!M93 -> 0 | O23: ='4. SM_Assets_and_Rate_Base'!O93 -> 0 | Q23: ='4. SM_Assets_and_Rate_Base'!Q93 -> 0 | S23: ='4. SM_Assets_and_Rate_Base'!S93 -> 0 | U23: ='4. SM_Assets_and_Rate_Base'!U93 -> 0 | W23: ='4. SM_Assets_and_Rate_Base'!W93 -> 0
C24: Other Equipment | G24: ='4. SM_Assets_and_Rate_Base'!G112 -> 0 | I24: ='4. SM_Assets_and_Rate_Base'!I112 -> 0 | K24: ='4. SM_Assets_and_Rate_Base'!K112 -> 0 | M24: ='4. SM_Assets_and_Rate_Base'!M112 -> 0 | O24: ='4. SM_Assets_and_Rate_Base'!O112 -> 0 | Q24: ='4. SM_Assets_and_Rate_Base'!Q112 -> 0 | S24: ='4. SM_Assets_and_Rate_Base'!S112 -> 0 | U24: ='4. SM_Assets_and_Rate_Base'!U112 -> 0 | W24: ='4. SM_Assets_and_Rate_Base'!W112 -> 0
C25: Total Net Fixed Assets | G25: =SUM(G20:G24) -> 22429.38783 | I25: =SUM(I20:I24) -> 50408.48717 | K25: =SUM(K20:K24) -> 53921.926 | M25: =SUM(M20:M24) -> 764917.4993 | O25: =SUM(O20:O24) -> 2818042.314 | Q25: =SUM(Q20:Q24) -> 348182.0688 | S25: =SUM(S20:S24) -> 1028405.422 | U25: =SUM(U20:U24) -> 1272365.511 | W25: =SUM(W20:W24) -> 1138883.721
B27: Working Capital
C28: Operating Expenses (from Sheet 2) | G28: ='2. Smart_Meter_Costs'!G174 -> 660 | I28: ='2. Smart_Meter_Costs'!I174 -> 119 | K28: ='2. Smart_Meter_Costs'!K174 -> 0 | M28: ='2. Smart_Meter_Costs'!M174 -> 119043.52 | O28: ='2. Smart_Meter_Costs'!O174 -> 153747.43 | Q28: ='2. Smart_Meter_Costs'!Q174 -> 293088.78 | S28: ='2. Smart_Meter_Costs'!S174 -> 316426.45 | U28: ='2. Smart_Meter_Costs'!U174 -> 343708.19 | W28: ='2. Smart_Meter_Costs'!W174 -> 350004.8
C29: Working Capital Factor (from Sheet 3) | G29: ='3. Cost_of_Service_Parameters'!G36 -> 0.15 | I29: ='3. Cost_of_Service_Parameters'!I36 -> 0.15 | K29: ='3. Cost_of_Service_Parameters'!K36 -> 0.15 | M29: ='3. Cost_of_Service_Parameters'!M36 -> 0.15 | O29: ='3. Cost_of_Service_Parameters'!O36 -> 0.15 | Q29: ='3. Cost_of_Service_Parameters'!Q36 -> 0.15 | S29: ='3. Cost_of_Service_Parameters'!S36 -> 0.15 | U29: ='3. Cost_of_Service_Parameters'!U36 -> 0.15 | W29: ='3. Cost_of_Service_Parameters'!W36 -> 0.15
C30: Working Capital Allowance | G30: =G28*G29 -> 99 | I30: =I28*I29 -> 17.85 | K30: =K28*K29 -> 0 | M30: =M28*M29 -> 17856.528 | O30: =O28*O29 -> 23062.1145 | Q30: =Q28*Q29 -> 43963.317 | S30: =S28*S29 -> 47463.9675 | U30: =U28*U29 -> 51556.2285 | W30: =W28*W29 -> 52500.72
B32: Incremental Smart Meter Rate Base | G32: =G25+G30 -> 22528.38783 | I32: =I25+I30 -> 50426.33717 | K32: =K25+K30 -> 53921.926 | M32: =M25+M30 -> 782774.0273 | O32: =O25+O30 -> 2841104.429 | Q32: =Q25+Q30 -> 392145.3858 | S32: =S25+S30 -> 1075869.389 | U32: =U25+U30 -> 1323921.739 | W32: =W25+W30 -> 1191384.441
B34: Return on Rate Base
C35: Capital Structure
C36: Deemed Short Term Debt | G36: =G$32*'3. Cost_of_Service_Parameters'!G22 -> 0 | I36: =I$32*'3. Cost_of_Service_Parameters'!I22 -> 0 | K36: =K$32*'3. Cost_of_Service_Parameters'!K22 -> 0 | M36: =M$32*'3. Cost_of_Service_Parameters'!M22 -> 0 | O36: =O$32*'3. Cost_of_Service_Parameters'!O22 -> 0 | Q36: =Q$32*'3. Cost_of_Service_Parameters'!Q22 -> 15685.81543 | S36: =S$32*'3. Cost_of_Service_Parameters'!S22 -> 43034.77557 | U36: =U$32*'3. Cost_of_Service_Parameters'!U22 -> 52956.86956 | W36: =W$32*'3. Cost_of_Service_Parameters'!W22 -> 47655.37765
C37: Deemed Long Term Debt | G37: =G$32*'3. Cost_of_Service_Parameters'!G23 -> 11264.19392 | I37: =I$32*'3. Cost_of_Service_Parameters'!I23 -> 25213.16858 | K37: =K$32*'3. Cost_of_Service_Parameters'!K23 -> 28740.38656 | M37: =M$32*'3. Cost_of_Service_Parameters'!M23 -> 443832.8735 | O37: =O$32*'3. Cost_of_Service_Parameters'!O23 -> 1704662.657 | Q37: =Q$32*'3. Cost_of_Service_Parameters'!Q23 -> 219601.4161 | S37: =S$32*'3. Cost_of_Service_Parameters'!S23 -> 602486.8579 | U37: =U$32*'3. Cost_of_Service_Parameters'!U23 -> 741396.1738 | W37: =W$32*'3. Cost_of_Service_Parameters'!W23 -> 667175.2871
C38: Equity | G38: =G$32*'3. Cost_of_Service_Parameters'!G24 -> 11264.19392 | I38: =I$32*'3. Cost_of_Service_Parameters'!I24 -> 25213.16858 | K38: =K$32*'3. Cost_of_Service_Parameters'!K24 -> 25181.53944 | M38: =M$32*'3. Cost_of_Service_Parameters'!M24 -> 338941.1538 | O38: =O$32*'3. Cost_of_Service_Parameters'!O24 -> 1136441.772 | Q38: =Q$32*'3. Cost_of_Service_Parameters'!Q24 -> 156858.1543 | S38: =S$32*'3. Cost_of_Service_Parameters'!S24 -> 430347.7557 | U38: =U$32*'3. Cost_of_Service_Parameters'!U24 -> 529568.6956 | W38: =W$32*'3. Cost_of_Service_Parameters'!W24 -> 476553.7765
C39: Preferred Shares | G39: =G$32*'3. Cost_of_Service_Parameters'!G25 -> 0 | I39: =I$32*'3. Cost_of_Service_Parameters'!I25 -> 0 | K39: =K$32*'3. Cost_of_Service_Parameters'!K25 -> 0 | M39: =M$32*'3. Cost_of_Service_Parameters'!M25 -> 0 | O39: =O$32*'3. Cost_of_Service_Parameters'!O25 -> 0 | Q39: =Q$32*'3. Cost_of_Service_Parameters'!Q25 -> 0 | S39: =S$32*'3. Cost_of_Service_Parameters'!S25 -> 0 | U39: =U$32*'3. Cost_of_Service_Parameters'!U25 -> 0 | W39: =W$32*'3. Cost_of_Service_Parameters'!W25 -> 0
C40: Total Capitalization | G40: =SUM(G36:G39) -> 22528.38783 | I40: =SUM(I36:I39) -> 50426.33717 | K40: =SUM(K36:K39) -> 53921.926 | M40: =SUM(M36:M39) -> 782774.0273 | O40: =SUM(O36:O39) -> 2841104.429 | Q40: =SUM(Q36:Q39) -> 392145.3858 | S40: =SUM(S36:S39) -> 1075869.389 | U40: =SUM(U36:U39) -> 1323921.739 | W40: =SUM(W36:W39) -> 1191384.441
G41: =IF(G40=G32,"","Error") ->  | I41: =IF(I40=I32,"","Error") ->  | K41: =IF(K40=K32,"","Error") ->  | M41: =IF(M40=M32,"","Error") ->  | O41: =IF(O40=O32,"","Error") ->  | Q41: =IF(Q40=Q32,"","Error") ->  | S41: =IF(S40=S32,"","Error") ->  | U41: =IF(U40=U32,"","Error") ->  | W41: =IF(W40=W32,"","Error") -> 
C42: Return on
C43: Deemed Short Term Debt | G43: =G36*'3. Cost_of_Service_Parameters'!G29 -> 0 | I43: =I36*'3. Cost_of_Service_Parameters'!I29 -> 0 | K43: =K36*'3. Cost_of_Service_Parameters'!K29 -> 0 | M43: =M36*'3. Cost_of_Service_Parameters'!M29 -> 0 | O43: =O36*'3. Cost_of_Service_Parameters'!O29 -> 0 | Q43: =Q36*'3. Cost_of_Service_Parameters'!Q29 -> 385.8710597 | S43: =S36*'3. Cost_of_Service_Parameters'!S29 -> 1058.655479 | U43: =U36*'3. Cost_of_Service_Parameters'!U29 -> 1302.738991 | W43: =W36*'3. Cost_of_Service_Parameters'!W29 -> 1172.32229
C44: Deemed Long Term Debt | G44: =G37*'3. Cost_of_Service_Parameters'!G30 -> 803.1370263 | I44: =I37*'3. Cost_of_Service_Parameters'!I30 -> 1797.69892 | K44: =K37*'3. Cost_of_Service_Parameters'!K30 -> 2049.189562 | M44: =M37*'3. Cost_of_Service_Parameters'!M30 -> 31645.28388 | O44: =O37*'3. Cost_of_Service_Parameters'!O30 -> 101750.6358 | Q44: =Q37*'3. Cost_of_Service_Parameters'!Q30 -> 11320.5147 | S44: =S37*'3. Cost_of_Service_Parameters'!S30 -> 31058.36681 | U44: =U37*'3. Cost_of_Service_Parameters'!U30 -> 38219.18108 | W44: =W37*'3. Cost_of_Service_Parameters'!W30 -> 34393.07352
C45: Equity | G45: =G38*'3. Cost_of_Service_Parameters'!G31 -> 1013.777452 | I45: =I38*'3. Cost_of_Service_Parameters'!I31 -> 2269.185173 | K45: =K38*'3. Cost_of_Service_Parameters'!K31 -> 2266.33855 | M45: =M38*'3. Cost_of_Service_Parameters'!M31 -> 30504.70385 | O45: =O38*'3. Cost_of_Service_Parameters'!O31 -> 102279.7594 | Q45: =Q38*'3. Cost_of_Service_Parameters'!Q31 -> 15027.01119 | S45: =S38*'3. Cost_of_Service_Parameters'!S31 -> 41227.31499 | U45: =U38*'3. Cost_of_Service_Parameters'!U31 -> 50732.68104 | W45: =W38*'3. Cost_of_Service_Parameters'!W31 -> 45653.85179
C46: Preferred Shares | G46: =G39*'3. Cost_of_Service_Parameters'!G32 -> 0 | I46: =I39*'3. Cost_of_Service_Parameters'!I32 -> 0 | K46: =K39*'3. Cost_of_Service_Parameters'!K32 -> 0 | M46: =M39*'3. Cost_of_Service_Parameters'!M32 -> 0 | O46: =O39*'3. Cost_of_Service_Parameters'!O32 -> 0 | Q46: =Q39*'3. Cost_of_Service_Parameters'!Q32 -> 0 | S46: =S39*'3. Cost_of_Service_Parameters'!S32 -> 0 | U46: =U39*'3. Cost_of_Service_Parameters'!U32 -> 0 | W46: =W39*'3. Cost_of_Service_Parameters'!W32 -> 0
C47: Total Return on Capital | G47: =SUM(G43:G46) -> 1816.914479 | I47: =SUM(I43:I46) -> 4066.884092 | K47: =SUM(K43:K46) -> 4315.528111 | M47: =SUM(M43:M46) -> 62149.98773 | O47: =SUM(O43:O46) -> 204030.3953 | Q47: =SUM(Q43:Q46) -> 26733.39695 | S47: =SUM(S43:S46) -> 73344.33729 | U47: =SUM(U43:U46) -> 90254.60111 | W47: =SUM(W43:W46) -> 81219.2476
B50: Operating Expenses | G50: =G28 -> 660 | I50: =I28 -> 119 | K50: =K28 -> 0 | M50: =M28 -> 119043.52 | O50: =O28 -> 153747.43 | Q50: =Q28 -> 293088.78 | S50: =S28 -> 316426.45 | U50: =U28 -> 343708.19 | W50: =W28 -> 350004.8
B52: Amortization Expenses (from Sheet 4)
C53: Smart Meters | G53: =-'4. SM_Assets_and_Rate_Base'!G29 -> 1546.854333 | I53: =-'4. SM_Assets_and_Rate_Base'!I29 -> 3583.127 | K53: =-'4. SM_Assets_and_Rate_Base'!K29 -> 4072.545333 | M53: =-'4. SM_Assets_and_Rate_Base'!M29 -> 53387.588 | O53: =-'4. SM_Assets_and_Rate_Base'!O29 -> 197350.952 | Q53: =-'4. SM_Assets_and_Rate_Base'!Q29 -> 34226.68233 | S53: =-'4. SM_Assets_and_Rate_Base'!S29 -> 81152.032 | U53: =-'4. SM_Assets_and_Rate_Base'!U29 -> 108987.2337 | W53: =-'4. SM_Assets_and_Rate_Base'!W29 -> 110858.4947
C54: Computer Hardware | G54: =-'4. SM_Assets_and_Rate_Base'!G48 -> 0 | I54: =-'4. SM_Assets_and_Rate_Base'!I48 -> 0 | K54: =-'4. SM_Assets_and_Rate_Base'!K48 -> 0 | M54: =-'4. SM_Assets_and_Rate_Base'!M48 -> 0 | O54: =-'4. SM_Assets_and_Rate_Base'!O48 -> 0 | Q54: =-'4. SM_Assets_and_Rate_Base'!Q48 -> 160 | S54: =-'4. SM_Assets_and_Rate_Base'!S48 -> 391 | U54: =-'4. SM_Assets_and_Rate_Base'!U48 -> 756.5 | W54: =-'4. SM_Assets_and_Rate_Base'!W48 -> 1051
C55: Computer Software | G55: =-'4. SM_Assets_and_Rate_Base'!G67 -> 0 | I55: =-'4. SM_Assets_and_Rate_Base'!I67 -> 0 | K55: =-'4. SM_Assets_and_Rate_Base'!K67 -> 0 | M55: =-'4. SM_Assets_and_Rate_Base'!M67 -> 0 | O55: =-'4. SM_Assets_and_Rate_Base'!O67 -> 7617.45 | Q55: =-'4. SM_Assets_and_Rate_Base'!Q67 -> 47493.47667 | S55: =-'4. SM_Assets_and_Rate_Base'!S67 -> 79752.05333 | U55: =-'4. SM_Assets_and_Rate_Base'!U67 -> 79752.05333 | W55: =-'4. SM_Assets_and_Rate_Base'!W67 -> 24641.12667
C56: Tools & Equipment | G56: =-'4. SM_Assets_and_Rate_Base'!G86 -> 0 | I56: =-'4. SM_Assets_and_Rate_Base'!I86 -> 0 | K56: =-'4. SM_Assets_and_Rate_Base'!K86 -> 0 | M56: =-'4. SM_Assets_and_Rate_Base'!M86 -> 0 | O56: =-'4. SM_Assets_and_Rate_Base'!O86 -> 0 | Q56: =-'4. SM_Assets_and_Rate_Base'!Q86 -> 0 | S56: =-'4. SM_Assets_and_Rate_Base'!S86 -> 0 | U56: =-'4. SM_Assets_and_Rate_Base'!U86 -> 0 | W56: =-'4. SM_Assets_and_Rate_Base'!W86 -> 0
C57: Other Equipment | G57: =-'4. SM_Assets_and_Rate_Base'!G105 -> 0 | I57: =-'4. SM_Assets_and_Rate_Base'!I105 -> 0 | K57: =-'4. SM_Assets_and_Rate_Base'!K105 -> 0 | M57: =-'4. SM_Assets_and_Rate_Base'!M105 -> 0 | O57: =-'4. SM_Assets_and_Rate_Base'!O105 -> 0 | Q57: =-'4. SM_Assets_and_Rate_Base'!Q105 -> 0 | S57: =-'4. SM_Assets_and_Rate_Base'!S105 -> 0 | U57: =-'4. SM_Assets_and_Rate_Base'!U105 -> 0 | W57: =-'4. SM_Assets_and_Rate_Base'!W105 -> 0
C58: Total Amortization Expense in Year | G58: =SUM(G53:G57) -> 1546.854333 | I58: =SUM(I53:I57) -> 3583.127 | K58: =SUM(K53:K57) -> 4072.545333 | M58: =SUM(M53:M57) -> 53387.588 | O58: =SUM(O53:O57) -> 204968.402 | Q58: =SUM(Q53:Q57) -> 81880.159 | S58: =SUM(S53:S57) -> 161295.0853 | U58: =SUM(U53:U57) -> 189495.787 | W58: =SUM(W53:W57) -> 136550.6213
B60: Incremental Revenue Requirement before Taxes/PILs | G60: =G47+G50+G58 -> 4023.768812 | I60: =I47+I50+I58 -> 7769.011092 | K60: =K47+K50+K58 -> 8388.073445 | M60: =M47+M50+M58 -> 234581.0957 | O60: =O47+O50+O58 -> 562746.2273 | Q60: =Q47+Q50+Q58 -> 401702.3359 | S60: =S47+S50+S58 -> 551065.8726 | U60: =U47+U50+U58 -> 623458.5781 | W60: =W47+W50+W58 -> 567774.6689
B62: Calculation of Taxable Income
C63: Incremental Operating Expenses | G63: =G50 -> 660 | I63: =I50 -> 119 | K63: =K50 -> 0 | M63: =M50 -> 119043.52 | O63: =O50 -> 153747.43 | Q63: =Q50 -> 293088.78 | S63: =S50 -> 316426.45 | U63: =U50 -> 343708.19 | W63: =W50 -> 350004.8
C64: Amortization Expense | G64: =G58 -> 1546.854333 | I64: =I58 -> 3583.127 | K64: =K58 -> 4072.545333 | M64: =M58 -> 53387.588 | O64: =O58 -> 204968.402 | Q64: =Q58 -> 81880.159 | S64: =S58 -> 161295.0853 | U64: =U58 -> 189495.787 | W64: =W58 -> 136550.6213
C65: Interest Expense | G65: =G43+G44 -> 803.1370263 | I65: =I43+I44 -> 1797.69892 | K65: =K43+K44 -> 2049.189562 | M65: =M43+M44 -> 31645.28388 | O65: =O43+O44 -> 101750.6358 | Q65: =Q43+Q44 -> 11706.38576 | S65: =S43+S44 -> 32117.02229 | U65: =U43+U44 -> 39521.92007 | W65: =W43+W44 -> 35565.39581
C66: Net Income for Taxes/PILs | G66: =G60-SUM(G63:G65) -> 1013.777453 | I66: =I60-SUM(I63:I65) -> 2269.185172 | K66: =K60-SUM(K63:K65) -> 2266.33855 | M66: =M60-SUM(M63:M65) -> 30504.70385 | O66: =O60-SUM(O63:O65) -> 102279.7594 | Q66: =Q60-SUM(Q63:Q65) -> 15027.01119 | S66: =S60-SUM(S63:S65) -> 41227.31499 | U66: =U60-SUM(U63:U65) -> 50732.68104 | W66: =W60-SUM(W63:W65) -> 45653.85179
B68: Grossed-up Taxes/PILs (from Sheet 7) | G68: ='7_Taxes_PILs'!C59 -> 532.8725994 | I68: ='7_Taxes_PILs'!E59 -> 1087.743883 | K68: ='7_Taxes_PILs'!G59 -> 1090.221411 | M68: ='7_Taxes_PILs'!I59 -> 13501.35522 | O68: ='7_Taxes_PILs'!K59 -> 34312.02274 | Q68: ='7_Taxes_PILs'!M59 -> 6127.854953 | S68: ='7_Taxes_PILs'!O59 -> 17438.26672 | U68: ='7_Taxes_PILs'!Q59 -> 28715.30165 | W68: ='7_Taxes_PILs'!S59 -> 14125.24254
B70: Revenue Requirement, including Grossed-up Taxes/PILs | G70: =G60+G68 -> 4556.641411 | I70: =I60+I68 -> 8856.754975 | K70: =K60+K68 -> 9478.294856 | M70: =M60+M68 -> 248082.4509 | O70: =O60+O68 -> 597058.25 | Q70: =Q60+Q68 -> 407830.1909 | S70: =S60+S68 -> 568504.1393 | U70: =U60+U68 -> 652173.8798 | W70: =W60+W68 -> 581899.9115

Sheet 6. UCC_Calculation
N4: UCC from Amounts Transferred in EB-2010-0138
N6: Smart Meters | P6: 3878633.769
N7: Computer Software
N8: Other Equipment
A13: NOTE: This model was modified on September 25, 2013 by Board staff, at the request of NPEI, to account for amounts transferred from USoA account 1555 to USoA account 1860, as per the settlement agreement in EB-2010-0138.
A18: For PILs Calculation
A20: UCC - Smart Meters | B20: ='2. Smart_Meter_Costs'!G18 -> 2006 | D20: ='2. Smart_Meter_Costs'!I18 -> 2007 | F20: ='2. Smart_Meter_Costs'!K18 -> 2008 | H20: ='2. Smart_Meter_Costs'!M18 -> 2009 | J20: ='2. Smart_Meter_Costs'!O18 -> 2010 | L20: ='2. Smart_Meter_Costs'!Q18 -> 2011 | N20: ='2. Smart_Meter_Costs'!S18 -> 2012 | P20: ='2. Smart_Meter_Costs'!U18 -> 2013 | R20: ='2. Smart_Meter_Costs'!W18 -> 2014
B21: ='2. Smart_Meter_Costs'!G19 -> Audited Actual | D21: ='2. Smart_Meter_Costs'!I19 -> Audited Actual | F21: ='2. Smart_Meter_Costs'!K19 -> Audited Actual | H21: ='2. Smart_Meter_Costs'!M19 -> Audited Actual | J21: ='2. Smart_Meter_Costs'!O19 -> Audited Actual | L21: ='2. Smart_Meter_Costs'!Q19 -> Audited Actual | N21: ='2. Smart_Meter_Costs'!S19 -> Audited Actual | P21: ='2. Smart_Meter_Costs'!U19 -> Forecast | R21: ='2. Smart_Meter_Costs'!W19 -> Forecast
A23: Opening UCC | B23: 0 | D23: =B26-B31 -> 44549.4048 | F23: =D26-D31 -> 55080.70042 | H23: =F26-F31 -> 50674.24438 | J23: =H26-H31 -> 1466893.534 | L23: =J26-J31-P6 -> 196779.936 | N23: =L26-L31 -> 773206.1203 | P23: =N26-N31 -> 1470631.122 | R23: =P26-P31 -> 1395352.949
A24: Capital Additions | B24: ='4. SM_Assets_and_Rate_Base'!G23 -> 46405.63 | D24: ='4. SM_Assets_and_Rate_Base'!I23 -> 14682.55 | F24: ='4. SM_Assets_and_Rate_Base'!K23 -> 0 | H24: ='4. SM_Assets_and_Rate_Base'!M23 -> 1479451.28 | J24: ='4. SM_Assets_and_Rate_Base'!O23 -> 2839449.64 | L24: ='4. SM_Assets_and_Rate_Base'!Q23 -> 616842.27 | N24: ='4. SM_Assets_and_Rate_Base'!S23 -> 790918.22 | P24: ='4. SM_Assets_and_Rate_Base'!U23 -> 44137.83 | R24: ='4. SM_Assets_and_Rate_Base'!W23 -> 12000
A25: Retirements/Removals (if applicable)
A26: UCC Before Half Year Rule | B26: =SUM(B23:B24)-B25 -> 46405.63 | D26: =SUM(D23:D24)-D25 -> 59231.9548 | F26: =SUM(F23:F24)-F25 -> 55080.70042 | H26: =SUM(H23:H24)-H25 -> 1530125.524 | J26: =SUM(J23:J24)-J25 -> 4306343.174 | L26: =SUM(L23:L24)-L25 -> 813622.206 | N26: =SUM(N23:N24)-N25 -> 1564124.34 | P26: =SUM(P23:P24)-P25 -> 1514768.952 | R26: =SUM(R23:R24)-R25 -> 1407352.949
A27: Half Year Rule (1/2 Additions - Disposals) | B27: =IF(((B24-B25)/2)<0, 0, (B24-B25)/2) -> 23202.815 | D27: =IF(((D24-D25)/2)<0, 0, (D24-D25)/2) -> 7341.275 | F27: =IF(((F24-F25)/2)<0, 0, (F24-F25)/2) -> 0 | H27: =IF(((H24-H25)/2)<0, 0, (H24-H25)/2) -> 739725.64 | J27: =IF(((J24-J25)/2)<0, 0, (J24-J25)/2) -> 1419724.82 | L27: =IF(((L24-L25)/2)<0, 0, (L24-L25)/2) -> 308421.135 | N27: =IF(((N24-N25)/2)<0, 0, (N24-N25)/2) -> 395459.11 | P27: =IF(((P24-P25)/2)<0, 0, (P24-P25)/2) -> 22068.915 | R27: =IF(((R24-R25)/2)<0, 0, (R24-R25)/2) -> 6000
A28: Reduced UCC | B28: =B27+B23 -> 23202.815 | D28: =D27+D23 -> 51890.6798 | F28: =F27+F23 -> 55080.70042 | H28: =H27+H23 -> 790399.8844 | J28: =J27+J23 -> 2886618.354 | L28: =L27+L23 -> 505201.071 | N28: =N27+N23 -> 1168665.23 | P28: =P27+P23 -> 1492700.037 | R28: =R27+R23 -> 1401352.949
A29: CCA Rate Class | B29: ='3. Cost_of_Service_Parameters'!G57 -> 47 | D29: ='3. Cost_of_Service_Parameters'!I57 -> 47 | F29: ='3. Cost_of_Service_Parameters'!K57 -> 47 | H29: ='3. Cost_of_Service_Parameters'!M57 -> 47 | J29: ='3. Cost_of_Service_Parameters'!O57 -> 47 | L29: ='3. Cost_of_Service_Parameters'!Q57 -> 47 | N29: ='3. Cost_of_Service_Parameters'!S57 -> 47 | P29: ='3. Cost_of_Service_Parameters'!U57 -> 47 | R29: ='3. Cost_of_Service_Parameters'!W57 -> 47
A30: CCA Rate | B30: ='3. Cost_of_Service_Parameters'!G58 -> 0.08 | D30: ='3. Cost_of_Service_Parameters'!I58 -> 0.08 | F30: ='3. Cost_of_Service_Parameters'!K58 -> 0.08 | H30: ='3. Cost_of_Service_Parameters'!M58 -> 0.08 | J30: ='3. Cost_of_Service_Parameters'!O58 -> 0.08 | L30: ='3. Cost_of_Service_Parameters'!Q58 -> 0.08 | N30: ='3. Cost_of_Service_Parameters'!S58 -> 0.08 | P30: ='3. Cost_of_Service_Parameters'!U58 -> 0.08 | R30: ='3. Cost_of_Service_Parameters'!W58 -> 0.08
A31: CCA | B31: =B28*B30 -> 1856.2252 | D31: =D28*D30 -> 4151.254384 | F31: =F28*F30 -> 4406.456033 | H31: =H28*H30 -> 63231.99075 | J31: =J28*J30 -> 230929.4683 | L31: =L28*L30 -> 40416.08568 | N31: =N28*N30 -> 93493.21843 | P31: =P28*P30 -> 119416.003 | R31: =R28*R30 -> 112108.2359
A32: Closing UCC | B32: =IF((B26-B31)<0, 0, B26-B31) -> 44549.4048 | D32: =IF((D26-D31)<0, 0, D26-D31) -> 55080.70042 | F32: =IF((F26-F31)<0, 0, F26-F31) -> 50674.24438 | H32: =IF((H26-H31)<0, 0, H26-H31) -> 1466893.534 | J32: =IF((J26-J31)<0, 0, J26-J31) -> 4075413.705 | L32: =IF((L26-L31)<0, 0, L26-L31) -> 773206.1203 | N32: =IF((N26-N31)<0, 0, N26-N31) -> 1470631.122 | P32: =IF((P26-P31)<0, 0, P26-P31) -> 1395352.949 | R32: =IF((R26-R31)<0, 0, R26-R31) -> 1295244.713
A34: UCC - Computer Equipment | B34: =B20 -> 2006 | D34: 2007 | F34: 2008 | H34: 2009 | J34: 2010 | L34: 2011 | N34: =N20 -> 2012 | P34: =P20 -> 2013 | R34: =R20 -> 2014
B35: Audited Actual | D35: Audited Actual | F35: Audited Actual | H35: Audited Actual | J35: Audited Actual | L35: Audited Actual | N35: =N21 -> Audited Actual | P35: =P21 -> Forecast | R35: =R21 -> Forecast
A37: Opening UCC | B37: 0 | D37: =B41-B46 -> 0 | F37: =D41-D46 -> 0 | H37: =F41-F46 -> 0 | J37: =H41-H46 -> 0 | L37: =J41-J46-P7 -> 38848.995 | N37: =L41-L46 -> 193073.0375 | P37: =N41-N46 -> 135754.6263 | R37: =P41-P46 -> 97531.48838
A38: Capital Additions Computer Hardware | B38: ='2. Smart_Meter_Costs'!G183 -> 0 | D38: ='2. Smart_Meter_Costs'!I183 -> 0 | F38: ='2. Smart_Meter_Costs'!K183 -> 0 | H38: ='2. Smart_Meter_Costs'!M183 -> 0 | J38: ='2. Smart_Meter_Costs'!O183 -> 0 | L38: ='2. Smart_Meter_Costs'!Q183 -> 1600 | N38: ='2. Smart_Meter_Costs'!S183 -> 710 | P38: ='2. Smart_Meter_Costs'!U183 -> 2945 | R38: ='2. Smart_Meter_Costs'!W183 -> 0
A39: Capital Additions Computer Software | B39: ='2. Smart_Meter_Costs'!G185 -> 0 | D39: ='2. Smart_Meter_Costs'!I185 -> 0 | F39: ='2. Smart_Meter_Costs'!K185 -> 0 | H39: ='2. Smart_Meter_Costs'!M185 -> 0 | J39: ='2. Smart_Meter_Costs'!O185 -> 45704.7 | L39: ='2. Smart_Meter_Costs'!Q185 -> 193551.46 | N39: ='2. Smart_Meter_Costs'!S185 -> 0 | P39: ='2. Smart_Meter_Costs'!U185 -> 0 | R39: ='2. Smart_Meter_Costs'!W185 -> 0
A40: Retirements/Removals (if applicable)
A41: UCC Before Half Year Rule | B41: =SUM(B37:B39)-B40 -> 0 | D41: =SUM(D37:D39)-D40 -> 0 | F41: =SUM(F37:F39)-F40 -> 0 | H41: =SUM(H37:H39)-H40 -> 0 | J41: =SUM(J37:J39)-J40 -> 45704.7 | L41: =SUM(L37:L39)-L40 -> 234000.455 | N41: =SUM(N37:N39)-N40 -> 193783.0375 | P41: =SUM(P37:P39)-P40 -> 138699.6263 | R41: =SUM(R37:R39)-R40 -> 97531.48838
A42: Half Year Rule (1/2 Additions - Disposals) | B42: =IF((SUM(B38:B39)/2)<0, 0, SUM(B38:B39)/2) -> 0 | D42: =IF((SUM(D38:D39)/2)<0, 0, SUM(D38:D39)/2) -> 0 | F42: =IF((SUM(F38:F39)/2)<0, 0, SUM(F38:F39)/2) -> 0 | H42: =IF((SUM(H38:H39)/2)<0, 0, SUM(H38:H39)/2) -> 0 | J42: =IF((SUM(J38:J39)/2)<0, 0, SUM(J38:J39)/2) -> 22852.35 | L42: =IF((SUM(L38:L39)/2)<0, 0, SUM(L38:L39)/2) -> 97575.73 | N42: =IF((SUM(N38:N39)/2)<0, 0, SUM(N38:N39)/2) -> 355 | P42: =IF((SUM(P38:P39)/2)<0, 0, SUM(P38:P39)/2) -> 1472.5 | R42: =IF((SUM(R38:R39)/2)<0, 0, SUM(R38:R39)/2) -> 0
A43: Reduced UCC | B43: =B42+B37 -> 0 | D43: =D42+D37 -> 0 | F43: =F42+F37 -> 0 | H43: =H42+H37 -> 0 | J43: =J42+J37 -> 22852.35 | L43: =L42+L37 -> 136424.725 | N43: =N42+N37 -> 193428.0375 | P43: =P42+P37 -> 137227.1263 | R43: =R42+R37 -> 97531.48838
A44: CCA Rate Class | B44: ='3. Cost_of_Service_Parameters'!G60 -> 10 | D44: ='3. Cost_of_Service_Parameters'!I60 -> 10 | F44: ='3. Cost_of_Service_Parameters'!K60 -> 10 | H44: ='3. Cost_of_Service_Parameters'!M60 -> 10 | J44: ='3. Cost_of_Service_Parameters'!O60 -> 10 | L44: ='3. Cost_of_Service_Parameters'!Q60 -> 10 | N44: ='3. Cost_of_Service_Parameters'!S60 -> 10 | P44: ='3. Cost_of_Service_Parameters'!U60 -> 10 | R44: ='3. Cost_of_Service_Parameters'!W60 -> 10
A45: CCA Rate | B45: ='3. Cost_of_Service_Parameters'!G61 -> 0.3 | D45: ='3. Cost_of_Service_Parameters'!I61 -> 0.3 | F45: ='3. Cost_of_Service_Parameters'!K61 -> 0.3 | H45: ='3. Cost_of_Service_Parameters'!M61 -> 0.3 | J45: ='3. Cost_of_Service_Parameters'!O61 -> 0.3 | L45: ='3. Cost_of_Service_Parameters'!Q61 -> 0.3 | N45: ='3. Cost_of_Service_Parameters'!S61 -> 0.3 | P45: ='3. Cost_of_Service_Parameters'!U61 -> 0.3 | R45: ='3. Cost_of_Service_Parameters'!W61 -> 0.3
A46: CCA | B46: =B45*B43 -> 0 | D46: =D45*D43 -> 0 | F46: =F45*F43 -> 0 | H46: =H45*H43 -> 0 | J46: =J45*J43 -> 6855.705 | L46: =L45*L43 -> 40927.4175 | N46: =N45*N43 -> 58028.41125 | P46: =P45*P43 -> 41168.13788 | R46: =R45*R43 -> 29259.44651
A47: Closing UCC | B47: =IF((B41-B46)<0, 0, B41-B46) -> 0 | D47: =IF((D41-D46)<0, 0, D41-D46) -> 0 | F47: =IF((F41-F46)<0, 0, F41-F46) -> 0 | H47: =IF((H41-H46)<0, 0, H41-H46) -> 0 | J47: =IF((J41-J46)<0, 0, J41-J46) -> 38848.995 | L47: =IF((L41-L46)<0, 0, L41-L46) -> 193073.0375 | N47: =IF((N41-N46)<0, 0, N41-N46) -> 135754.6263 | P47: =IF((P41-P46)<0, 0, P41-P46) -> 97531.48838 | R47: =IF((R41-R46)<0, 0, R41-R46) -> 68272.04186
A49: UCC - General Equipment | B49: =B34 -> 2006 | D49: 2007 | F49: 2008 | H49: 2009 | J49: 2010 | L49: 2011 | N49: =N34 -> 2012 | P49: =P34 -> 2013 | R49: =R34 -> 2014
B50: Audited Actual | D50: Audited Actual | F50: Audited Actual | H50: Audited Actual | J50: Audited Actual | L50: Audited Actual | N50: =N35 -> Audited Actual | P50: =P35 -> Forecast | R50: =R35 -> Forecast
A52: Opening UCC | B52: 0 | D52: =B56-B61 -> 0 | F52: =D56-D61 -> 0 | H52: =F56-F61 -> 0 | J52: =H56-H61 -> 0 | L52: =J56-J61-P8 -> 0 | N52: =L56-L61 -> 0 | P52: =N56-N61 -> 0 | R52: =P56-P61 -> 0
A53: Capital Additions Tools & Equipment | B53: ='2. Smart_Meter_Costs'!G187 -> 0 | D53: ='2. Smart_Meter_Costs'!I187 -> 0 | F53: ='2. Smart_Meter_Costs'!K187 -> 0 | H53: ='2. Smart_Meter_Costs'!M187 -> 0 | J53: ='2. Smart_Meter_Costs'!O187 -> 0 | L53: ='2. Smart_Meter_Costs'!Q187 -> 0 | N53: ='2. Smart_Meter_Costs'!S187 -> 0 | P53: ='2. Smart_Meter_Costs'!U187 -> 0 | R53: ='2. Smart_Meter_Costs'!W187 -> 0
A54: Capital Additions Other Equipment | B54: ='2. Smart_Meter_Costs'!G189 -> 0 | D54: ='2. Smart_Meter_Costs'!I189 -> 0 | F54: ='2. Smart_Meter_Costs'!K189 -> 0 | H54: ='2. Smart_Meter_Costs'!M189 -> 0 | J54: ='2. Smart_Meter_Costs'!O189 -> 0 | L54: ='2. Smart_Meter_Costs'!Q189 -> 0 | N54: ='2. Smart_Meter_Costs'!S189 -> 0 | P54: ='2. Smart_Meter_Costs'!U189 -> 0 | R54: ='2. Smart_Meter_Costs'!W189 -> 0
A55: Retirements/Removals (if applicable)
A56: UCC Before Half Year Rule | B56: =SUM(B52:B54)-B55 -> 0 | D56: =SUM(D52:D54)-D55 -> 0 | F56: =SUM(F52:F54)-F55 -> 0 | H56: =SUM(H52:H54)-H55 -> 0 | J56: =SUM(J52:J54)-J55 -> 0 | L56: =SUM(L52:L54)-L55 -> 0 | N56: =SUM(N52:N54)-N55 -> 0 | P56: =SUM(P52:P54)-P55 -> 0 | R56: =SUM(R52:R54)-R55 -> 0
A57: Half Year Rule (1/2 Additions - Disposals) | B57: =IF(((SUM(B53:B54)-B55)/2)<0, 0, (SUM(B53:B54)-B55)/2) -> 0 | D57: =IF(((SUM(D53:D54)-D55)/2)<0, 0, (SUM(D53:D54)-D55)/2) -> 0 | F57: =IF(((SUM(F53:F54)-F55)/2)<0, 0, (SUM(F53:F54)-F55)/2) -> 0 | H57: =IF(((SUM(H53:H54)-H55)/2)<0, 0, (SUM(H53:H54)-H55)/2) -> 0 | J57: =IF(((SUM(J53:J54)-J55)/2)<0, 0, (SUM(J53:J54)-J55)/2) -> 0 | L57: =IF(((SUM(L53:L54)-L55)/2)<0, 0, (SUM(L53:L54)-L55)/2) -> 0 | N57: =IF(((SUM(N53:N54)-N55)/2)<0, 0, (SUM(N53:N54)-N55)/2) -> 0 | P57: =IF(((SUM(P53:P54)-P55)/2)<0, 0, (SUM(P53:P54)-P55)/2) -> 0 | R57: =IF(((SUM(R53:R54)-R55)/2)<0, 0, (SUM(R53:R54)-R55)/2) -> 0
A58: Reduced UCC | B58: =B57+B52 -> 0 | D58: =D57+D52 -> 0 | F58: =F57+F52 -> 0 | H58: =H57+H52 -> 0 | J58: =J57+J52 -> 0 | L58: =L57+L52 -> 0 | N58: =N57+N52 -> 0 | P58: =P57+P52 -> 0 | R58: =R57+R52 -> 0
A59: CCA Rate Class | B59: ='3. Cost_of_Service_Parameters'!G63 -> 8 | D59: ='3. Cost_of_Service_Parameters'!I63 -> 8 | F59: ='3. Cost_of_Service_Parameters'!K63 -> 8 | H59: ='3. Cost_of_Service_Parameters'!M63 -> 8 | J59: ='3. Cost_of_Service_Parameters'!O63 -> 8 | L59: ='3. Cost_of_Service_Parameters'!Q63 -> 8 | N59: ='3. Cost_of_Service_Parameters'!S63 -> 8 | P59: ='3. Cost_of_Service_Parameters'!U63 -> 8 | R59: ='3. Cost_of_Service_Parameters'!W63 -> 8
A60: CCA Rate | B60: ='3. Cost_of_Service_Parameters'!G64 -> 0.2 | D60: ='3. Cost_of_Service_Parameters'!I64 -> 0.2 | F60: ='3. Cost_of_Service_Parameters'!K64 -> 0.2 | H60: ='3. Cost_of_Service_Parameters'!M64 -> 0.2 | J60: ='3. Cost_of_Service_Parameters'!O64 -> 0.2 | L60: ='3. Cost_of_Service_Parameters'!Q64 -> 0.2 | N60: ='3. Cost_of_Service_Parameters'!S64 -> 0.2 | P60: ='3. Cost_of_Service_Parameters'!U64 -> 0.2 | R60: ='3. Cost_of_Service_Parameters'!W64 -> 0.2
A61: CCA | B61: =B60*B58 -> 0 | D61: =D60*D58 -> 0 | F61: =F60*F58 -> 0 | H61: =H60*H58 -> 0 | J61: =J60*J58 -> 0 | L61: =L60*L58 -> 0 | N61: =N60*N58 -> 0 | P61: =P60*P58 -> 0 | R61: =R60*R58 -> 0
A62: Closing UCC | B62: =IF((B56-B61)<0, 0, B56-B61) -> 0 | D62: =IF((D56-D61)<0, 0, D56-D61) -> 0 | F62: =IF((F56-F61)<0, 0, F56-F61) -> 0 | H62: =IF((H56-H61)<0, 0, H56-H61) -> 0 | J62: =IF((J56-J61)<0, 0, J56-J61) -> 0 | L62: =IF((L56-L61)<0, 0, L56-L61) -> 0 | N62: =IF((N56-N61)<0, 0, N56-N61) -> 0 | P62: =IF((P56-P61)<0, 0, P56-P61) -> 0 | R62: =IF((R56-R61)<0, 0, R56-R61) -> 0
A64: UCC - Applications Software | B64: =B49 -> 2006 | D64: =D49 -> 2007 | F64: =F49 -> 2008 | H64: =H49 -> 2009 | J64: =J49 -> 2010 | L64: =L49 -> 2011 | N64: =N49 -> 2012 | P64: =P49 -> 2013 | R64: =R49 -> 2014
B65: =B50 -> Audited Actual | D65: =D50 -> Audited Actual | F65: =F50 -> Audited Actual | H65: =H50 -> Audited Actual | J65: =J50 -> Audited Actual | L65: =L50 -> Audited Actual | N65: =N50 -> Audited Actual | P65: =P50 -> Forecast | R65: =R50 -> Forecast
A67: Opening UCC | B67: 0 | D67: =B70-B75 -> 0 | F67: =D70-D75 -> 0 | H67: =F70-F75 -> 0 | J67: =H70-H75 -> 0 | L67: =J70-J75 -> 0 | N67: =L70-L75 -> 0 | P67: =N70-N75 -> 0 | R67: =P70-P75 -> 0
A68: Capital Additions Applications Software | B68: ='2. Smart_Meter_Costs'!G191 -> 0 | D68: ='2. Smart_Meter_Costs'!I191 -> 0 | F68: ='2. Smart_Meter_Costs'!K191 -> 0 | H68: ='2. Smart_Meter_Costs'!M191 -> 0 | J68: ='2. Smart_Meter_Costs'!O191 -> 0 | L68: ='2. Smart_Meter_Costs'!Q191 -> 0 | N68: ='2. Smart_Meter_Costs'!S191 -> 0 | P68: ='2. Smart_Meter_Costs'!U191 -> 0 | R68: ='2. Smart_Meter_Costs'!W191 -> 0
A69: Retirements/Removals (if applicable)
A70: UCC Before Half Year Rule | B70: =SUM(B67:B68)-B69 -> 0 | D70: =SUM(D67:D68)-D69 -> 0 | F70: =SUM(F67:F68)-F69 -> 0 | H70: =SUM(H67:H68)-H69 -> 0 | J70: =SUM(J67:J68)-J69 -> 0 | L70: =SUM(L67:L68)-L69 -> 0 | N70: =SUM(N67:N68)-N69 -> 0 | P70: =SUM(P67:P68)-P69 -> 0 | R70: =SUM(R67:R68)-R69 -> 0
A71: Half Year Rule (1/2 Additions - Disposals) | B71: =IF(((SUM(B68:B68)-B69)/2)<0, 0, (SUM(B68:B68)-B69)/2) -> 0 | D71: =IF(((SUM(D68:D68)-D69)/2)<0, 0, (SUM(D68:D68)-D69)/2) -> 0 | F71: =IF(((SUM(F68:F68)-F69)/2)<0, 0, (SUM(F68:F68)-F69)/2) -> 0 | H71: =IF(((SUM(H68:H68)-H69)/2)<0, 0, (SUM(H68:H68)-H69)/2) -> 0 | J71: =IF(((SUM(J68:J68)-J69)/2)<0, 0, (SUM(J68:J68)-J69)/2) -> 0 | L71: =IF(((SUM(L68:L68)-L69)/2)<0, 0, (SUM(L68:L68)-L69)/2) -> 0 | N71: =IF(((SUM(N68:N68)-N69)/2)<0, 0, (SUM(N68:N68)-N69)/2) -> 0 | P71: =IF(((SUM(P68:P68)-P69)/2)<0, 0, (SUM(P68:P68)-P69)/2) -> 0 | R71: =IF(((SUM(R68:R68)-R69)/2)<0, 0, (SUM(R68:R68)-R69)/2) -> 0
A72: Reduced UCC | B72: =B71+B67 -> 0 | D72: =D71+D67 -> 0 | F72: =F71+F67 -> 0 | H72: =H71+H67 -> 0 | J72: =J71+J67 -> 0 | L72: =L71+L67 -> 0 | N72: =N71+N67 -> 0 | P72: =P71+P67 -> 0 | R72: =R71+R67 -> 0
A73: CCA Rate Class | B73: ='3. Cost_of_Service_Parameters'!G66 -> 12 | D73: ='3. Cost_of_Service_Parameters'!I66 -> 12 | F73: ='3. Cost_of_Service_Parameters'!K66 -> 12 | H73: ='3. Cost_of_Service_Parameters'!M66 -> 12 | J73: ='3. Cost_of_Service_Parameters'!O66 -> 12 | L73: ='3. Cost_of_Service_Parameters'!Q66 -> 12 | N73: ='3. Cost_of_Service_Parameters'!S66 -> 12 | P73: ='3. Cost_of_Service_Parameters'!U66 -> 12 | R73: ='3. Cost_of_Service_Parameters'!W66 -> 12
A74: CCA Rate | B74: ='3. Cost_of_Service_Parameters'!G67 -> 1 | D74: ='3. Cost_of_Service_Parameters'!I67 -> 1 | F74: ='3. Cost_of_Service_Parameters'!K67 -> 1 | H74: ='3. Cost_of_Service_Parameters'!M67 -> 1 | J74: ='3. Cost_of_Service_Parameters'!O67 -> 1 | L74: ='3. Cost_of_Service_Parameters'!Q67 -> 1 | N74: ='3. Cost_of_Service_Parameters'!S67 -> 1 | P74: ='3. Cost_of_Service_Parameters'!U67 -> 1 | R74: ='3. Cost_of_Service_Parameters'!W67 -> 1
A75: CCA | B75: =B74*B72 -> 0 | D75: =D74*D72 -> 0 | F75: =F74*F72 -> 0 | H75: =H74*H72 -> 0 | J75: =J74*J72 -> 0 | L75: =L74*L72 -> 0 | N75: =N74*N72 -> 0 | P75: =P74*P72 -> 0 | R75: =R74*R72 -> 0
A76: Closing UCC | B76: =IF((B70-B75)<0, 0, B70-B75) -> 0 | D76: =IF((D70-D75)<0, 0, D70-D75) -> 0 | F76: =IF((F70-F75)<0, 0, F70-F75) -> 0 | H76: =IF((H70-H75)<0, 0, H70-H75) -> 0 | J76: =IF((J70-J75)<0, 0, J70-J75) -> 0 | L76: =IF((L70-L75)<0, 0, L70-L75) -> 0 | N76: =IF((N70-N75)<0, 0, N70-N75) -> 0 | P76: =IF((P70-P75)<0, 0, P70-P75) -> 0 | R76: =IF((R70-R75)<0, 0, R70-R75) -> 0

Sheet 7_Taxes_PILs
A18: PILs Calculation
C20: ='2. Smart_Meter_Costs'!G18& " " &'2. Smart_Meter_Costs'!G19 -> 2006 Audited Actual | E20: ='2. Smart_Meter_Costs'!I18& " " &'2. Smart_Meter_Costs'!I19 -> 2007 Audited Actual | G20: ='2. Smart_Meter_Costs'!K18& " " &'2. Smart_Meter_Costs'!K19 -> 2008 Audited Actual | I20: ='2. Smart_Meter_Costs'!M18& " " &'2. Smart_Meter_Costs'!M19 -> 2009 Audited Actual | K20: ='2. Smart_Meter_Costs'!O18& " " &'2. Smart_Meter_Costs'!O19 -> 2010 Audited Actual | M20: ='2. Smart_Meter_Costs'!Q18& " " &'2. Smart_Meter_Costs'!Q19 -> 2011 Audited Actual | O20: ='2. Smart_Meter_Costs'!S18& " " &'2. Smart_Meter_Costs'!S19 -> 2012 Audited Actual | Q20: ='2. Smart_Meter_Costs'!U18& " " &'2. Smart_Meter_Costs'!U19 -> 2013 Forecast | S20: ='2. Smart_Meter_Costs'!W18& " " &'2. Smart_Meter_Costs'!W19 -> 2014 Forecast
A22: INCOME TAX
B23: Net Income | C23: ='5. SM_Rev_Reqt'!G$66 -> 1013.777453 | E23: ='5. SM_Rev_Reqt'!I$66 -> 2269.185172 | G23: ='5. SM_Rev_Reqt'!K$66 -> 2266.33855 | I23: ='5. SM_Rev_Reqt'!M$66 -> 30504.70385 | K23: ='5. SM_Rev_Reqt'!O$66 -> 102279.7594 | M23: ='5. SM_Rev_Reqt'!Q$66 -> 15027.01119 | O23: ='5. SM_Rev_Reqt'!S$66 -> 41227.31499 | Q23: ='5. SM_Rev_Reqt'!U$66 -> 50732.68104 | S23: ='5. SM_Rev_Reqt'!W$66 -> 45653.85179
B24: Amortization | C24: ='5. SM_Rev_Reqt'!G$64 -> 1546.854333 | E24: ='5. SM_Rev_Reqt'!I$64 -> 3583.127 | G24: ='5. SM_Rev_Reqt'!K$64 -> 4072.545333 | I24: ='5. SM_Rev_Reqt'!M$64 -> 53387.588 | K24: ='5. SM_Rev_Reqt'!O$64 -> 204968.402 | M24: ='5. SM_Rev_Reqt'!Q$64 -> 81880.159 | O24: ='5. SM_Rev_Reqt'!S$64 -> 161295.0853 | Q24: ='5. SM_Rev_Reqt'!U$64 -> 189495.787 | S24: ='5. SM_Rev_Reqt'!W$64 -> 136550.6213
B25: CCA - Smart Meters | C25: =-'6. UCC_Calculation'!B31 -> -1856.2252 | E25: =-'6. UCC_Calculation'!D31 -> -4151.254384 | G25: =-'6. UCC_Calculation'!F31 -> -4406.456033 | I25: =-'6. UCC_Calculation'!H31 -> -63231.99075 | K25: =-'6. UCC_Calculation'!J31 -> -230929.4683 | M25: =-'6. UCC_Calculation'!L31 -> -40416.08568 | O25: =-'6. UCC_Calculation'!N31 -> -93493.21843 | Q25: =-'6. UCC_Calculation'!P31 -> -119416.003 | S25: =-'6. UCC_Calculation'!R31 -> -112108.2359
B26: CCA - Computers | C26: =-'6. UCC_Calculation'!B46 -> 0 | E26: =-'6. UCC_Calculation'!D46 -> 0 | G26: =-'6. UCC_Calculation'!F46 -> 0 | I26: =-'6. UCC_Calculation'!H46 -> 0 | K26: =-'6. UCC_Calculation'!J46 -> -6855.705 | M26: =-'6. UCC_Calculation'!L46 -> -40927.4175 | O26: =-'6. UCC_Calculation'!N46 -> -58028.41125 | Q26: =-'6. UCC_Calculation'!P46 -> -41168.13788 | S26: =-'6. UCC_Calculation'!R46 -> -29259.44651
B27: CCA - Applications Software | C27: =-'6. UCC_Calculation'!B75 -> 0 | E27: =-'6. UCC_Calculation'!D75 -> 0 | G27: =-'6. UCC_Calculation'!F75 -> 0 | I27: =-'6. UCC_Calculation'!H75 -> 0 | K27: =-'6. UCC_Calculation'!J75 -> 0 | M27: =-'6. UCC_Calculation'!L75 -> 0 | O27: =-'6. UCC_Calculation'!N75 -> 0 | Q27: =-'6. UCC_Calculation'!P75 -> 0 | S27: =-'6. UCC_Calculation'!R75 -> 0
B28: CCA - Other Equipment | C28: =-'6. UCC_Calculation'!B61 -> 0 | E28: =-'6. UCC_Calculation'!D61 -> 0 | G28: =-'6. UCC_Calculation'!F61 -> 0 | I28: =-'6. UCC_Calculation'!H61 -> 0 | K28: =-'6. UCC_Calculation'!J61 -> 0 | M28: =-'6. UCC_Calculation'!L61 -> 0 | O28: =-'6. UCC_Calculation'!N61 -> 0 | Q28: =-'6. UCC_Calculation'!P61 -> 0 | S28: =-'6. UCC_Calculation'!R61 -> 0
B29: Change in taxable income | C29: =SUM(C23:C28) -> 704.4065858 | E29: 1701.057788 | G29: 1932.42785 | I29: 20660.30109 | K29: 69462.98815 | M29: 15563.66701 | O29: 51000.77065 | Q29: 79644.32721 | S29: =SUM(S23:S28) -> 40836.7907
B31: Tax Rate (from Sheet 3) | C31: ='3. Cost_of_Service_Parameters'!G40 -> 0.3612 | E31: ='3. Cost_of_Service_Parameters'!I40 -> 0.3612 | G31: ='3. Cost_of_Service_Parameters'!K40 -> 0.335 | I31: ='3. Cost_of_Service_Parameters'!M40 -> 0.33 | K31: ='3. Cost_of_Service_Parameters'!O40 -> 0.3099 | M31: ='3. Cost_of_Service_Parameters'!Q40 -> 0.2825 | O31: ='3. Cost_of_Service_Parameters'!S40 -> 0.2548 | Q31: ='3. Cost_of_Service_Parameters'!U40 -> 0.265 | S31: ='3. Cost_of_Service_Parameters'!W40 -> 0.257
B33: Income Taxes Payable | C33: =C29*C31 -> 254.4316588 | E33: 614.4220732 | G33: 647.3633297 | I33: 6817.899361 | K33: 21526.58003 | M33: 4396.735929 | O33: 12994.99636 | Q33: =Q29*Q31 -> 21105.74671 | S33: =S29*S31 -> 10495.05521
A35: ONTARIO CAPITAL TAX
B36: Smart Meters | C36: ='4. SM_Assets_and_Rate_Base'!G35 -> 44858.77567 | E36: ='4. SM_Assets_and_Rate_Base'!I35 -> 55958.19867 | G36: ='4. SM_Assets_and_Rate_Base'!K35 -> 51885.65333 | I36: ='4. SM_Assets_and_Rate_Base'!M35 -> 1477949.345 | K36: ='4. SM_Assets_and_Rate_Base'!O35 -> 4120048.033 | M36: ='4. SM_Assets_and_Rate_Base'!Q35 -> 527653.621 | O36: ='4. SM_Assets_and_Rate_Base'!S35 -> 1237419.809 | Q36: ='4. SM_Assets_and_Rate_Base'!U35 -> 1172570.405 | S36: ='4. SM_Assets_and_Rate_Base'!W35 -> 1073711.911
B37: Computer Hardware | C37: ='4. SM_Assets_and_Rate_Base'!G54 -> 0 | E37: ='4. SM_Assets_and_Rate_Base'!I54 -> 0 | G37: ='4. SM_Assets_and_Rate_Base'!K54 -> 0 | I37: ='4. SM_Assets_and_Rate_Base'!M54 -> 0 | K37: ='4. SM_Assets_and_Rate_Base'!O54 -> 0 | M37: ='4. SM_Assets_and_Rate_Base'!Q54 -> 1440 | O37: ='4. SM_Assets_and_Rate_Base'!S54 -> 1759 | Q37: ='4. SM_Assets_and_Rate_Base'!U54 -> 3947.5 | S37: ='4. SM_Assets_and_Rate_Base'!W54 -> 2896.5
B38: Computer Software (Including Application Software) | C38: ='4. SM_Assets_and_Rate_Base'!G73 -> 0 | E38: ='4. SM_Assets_and_Rate_Base'!I73 -> 0 | G38: ='4. SM_Assets_and_Rate_Base'!K73 -> 0 | I38: ='4. SM_Assets_and_Rate_Base'!M73 -> 0 | K38: ='4. SM_Assets_and_Rate_Base'!O73 -> 38087.25 | M38: ='4. SM_Assets_and_Rate_Base'!Q73 -> 184145.2333 | O38: ='4. SM_Assets_and_Rate_Base'!S73 -> 104393.18 | Q38: ='4. SM_Assets_and_Rate_Base'!U73 -> 24641.12667 | S38: ='4. SM_Assets_and_Rate_Base'!W73 -> 0
B39: Tools & Equipment | C39: ='4. SM_Assets_and_Rate_Base'!G92 -> 0 | E39: ='4. SM_Assets_and_Rate_Base'!I92 -> 0 | G39: ='4. SM_Assets_and_Rate_Base'!K92 -> 0 | I39: ='4. SM_Assets_and_Rate_Base'!M92 -> 0 | K39: ='4. SM_Assets_and_Rate_Base'!O92 -> 0 | M39: ='4. SM_Assets_and_Rate_Base'!Q92 -> 0 | O39: ='4. SM_Assets_and_Rate_Base'!S92 -> 0 | Q39: ='4. SM_Assets_and_Rate_Base'!U92 -> 0 | S39: ='4. SM_Assets_and_Rate_Base'!W92 -> 0
B40: Other Equipment | C40: ='4. SM_Assets_and_Rate_Base'!G111 -> 0 | E40: ='4. SM_Assets_and_Rate_Base'!I111 -> 0 | G40: ='4. SM_Assets_and_Rate_Base'!K111 -> 0 | I40: ='4. SM_Assets_and_Rate_Base'!M111 -> 0 | K40: ='4. SM_Assets_and_Rate_Base'!O111 -> 0 | M40: ='4. SM_Assets_and_Rate_Base'!Q111 -> 0 | O40: ='4. SM_Assets_and_Rate_Base'!S111 -> 0 | Q40: ='4. SM_Assets_and_Rate_Base'!U111 -> 0 | S40: ='4. SM_Assets_and_Rate_Base'!W111 -> 0
B41: Rate Base | C41: =SUM(C36:C40) -> 44858.77567 | E41: =SUM(E36:E40) -> 55958.19867 | G41: =SUM(G36:G40) -> 51885.65333 | I41: =SUM(I36:I40) -> 1477949.345 | K41: =SUM(K36:K40) -> 4158135.283 | M41: =SUM(M36:M40) -> 713238.8543 | O41: =SUM(O36:O40) -> 1343571.989 | Q41: =SUM(Q36:Q40) -> 1201159.032 | S41: =SUM(S36:S40) -> 1076608.411
B42: Less: Exemption
B43: Deemed Taxable Capital | C43: =C41-C42 -> 44858.77567 | E43: 55958.19867 | G43: 51885.65333 | I43: 1477949.345 | K43: 4158135.283 | M43: 713238.8543 | O43: 1343571.989 | Q43: 1201159.032 | S43: =S41-S42 -> 1076608.411
B45: Ontario Capital Tax Rate (from Sheet 3) | C45: ='3. Cost_of_Service_Parameters'!G41 -> 0.003 | E45: ='3. Cost_of_Service_Parameters'!I41 -> 0.00225 | G45: ='3. Cost_of_Service_Parameters'!K41 -> 0.00225 | I45: ='3. Cost_of_Service_Parameters'!M41 -> 0.00225 | K45: ='3. Cost_of_Service_Parameters'!O41 -> 0.00075 | M45: ='3. Cost_of_Service_Parameters'!Q41 -> 0 | O45: ='3. Cost_of_Service_Parameters'!S41 -> 0 | Q45: ='3. Cost_of_Service_Parameters'!U41 -> 0 | S45: ='3. Cost_of_Service_Parameters'!W41 -> 0
B47: Net Amount (Taxable Capital x Rate) | C47: =C43*C45 -> 134.576327 | E47: 125.905947 | G47: 116.74272 | I47: 3325.386027 | K47: 3118.601463 | M47: 0 | O47: 0 | Q47: =Q43*Q45 -> 0 | S47: =S43*S45 -> 0
B50: Change in Income Taxes Payable | C50: =C33 -> 254.4316588 | E50: 614.4220732 | G50: 647.3633297 | I50: 6817.899361 | K50: 21526.58003 | M50: 4396.735929 | O50: 12994.99636 | Q50: =Q33 -> 21105.74671 | S50: =S33 -> 10495.05521
B51: Change in OCT | C51: =C47 -> 134.576327 | E51: 125.905947 | G51: 116.74272 | I51: 3325.386027 | K51: 3118.601463 | M51: 0 | O51: 0 | Q51: =Q47 -> 0 | S51: =S47 -> 0
B52: PILs | C52: =SUM(C50:C51) -> 389.0079858 | E52: 740.3280202 | G52: 764.1060497 | I52: 10143.28539 | K52: 24645.18149 | M52: 4396.735929 | O52: 12994.99636 | Q52: 21105.74671 | S52: =SUM(S50:S51) -> 10495.05521
A55: Gross Up PILs
B56: Tax Rate | C56: =C31 -> 0.3612 | E56: =E31 -> 0.3612 | G56: 0.335 | I56: 0.33 | K56: 0.3099 | M56: 0.2825 | O56: 0.2548 | Q56: =Q31 -> 0.265 | S56: =S31 -> 0.257
B57: Change in Income Taxes Payable | C57: =C50/(1-C56) -> 398.2962724 | E57: 961.8379355 | G57: 973.4786913 | I57: 10175.9692 | K57: 31193.42128 | M57: 6127.854953 | O57: 17438.26672 | Q57: 28715.30165 | S57: =S50/(1-S56) -> 14125.24254
B58: Change in OCT | C58: =C51 -> 134.576327 | E58: 125.905947 | G58: 116.74272 | I58: 3325.386027 | K58: 3118.601463 | M58: 0 | O58: 0 | Q58: =Q51 -> 0 | S58: =S51 -> 0
B59: PILs | C59: =SUM(C57:C58) -> 532.8725994 | E59: 1087.743883 | G59: 1090.221411 | I59: 13501.35522 | K59: 34312.02274 | M59: 6127.854953 | O59: 17438.26672 | Q59: 28715.30165 | S59: =SUM(S57:S58) -> 14125.24254

Sheet 8. Funding_Adder_Revs
B13: This worksheet calculates the funding adder revenues.
J20: Account 1555 - Sub-account Funding Adder Revenues
B22: Interest Rates | C22: Approved Deferral and Variance Accounts | D22: CWIP | F22: Date | G22: Year | H22: Quarter | J22: Opening Balance (Principal) | K22: Funding Adder Revenues | L22: Interest Rate | M22: Interest | N22: Closing Balance | O22: Annual amounts | P22: Board Approved Smart Meter Funding Adder (from Tariff)
B24: 2006 Q1 | F24: 2006-01-01 | G24: =YEAR(F24) -> 2006 | H24: =IF(MONTH(F24)=0,"",IF(MONTH(F24)<4,"Q1",IF(MONTH(F24)<7,"Q2",IF(MONTH(F24)<10,"Q3","Q4")))) -> Q1 | I24: =CONCATENATE(G24," ",H24) -> 2006 Q1 | J24: 0 | L24: =VLOOKUP(I24,$B$22:$D$59,2) -> 0 | M24: =ROUND(J24*L24/12,2) -> 0 | N24: =J24+K24+M24 -> 0
B25: 2006 Q2 | C25: 0.0414 | D25: 0.0468 | F25: 2006-02-01 | G25: =YEAR(F25) -> 2006 | H25: =IF(MONTH(F25)=0,"",IF(MONTH(F25)<4,"Q1",IF(MONTH(F25)<7,"Q2",IF(MONTH(F25)<10,"Q3","Q4")))) -> Q1 | I25: =CONCATENATE(G25," ",H25) -> 2006 Q1 | J25: =J24+K24 -> 0 | L25: 0 | M25: =ROUND(J25*L25/12,2) -> 0 | N25: =J25+K25+M25 -> 0
B26: 2006 Q3 | C26: 0.0459 | D26: 0.0505 | F26: 2006-03-01 | G26: 2006 | H26: Q1 | I26: 2006 Q1 | J26: =J25+K25 -> 0 | L26: 0 | M26: 0 | N26: 0
B27: 2006 Q4 | C27: 0.0459 | D27: 0.0472 | F27: 2006-04-01 | G27: 2006 | H27: Q2 | I27: 2006 Q2 | J27: 0 | L27: 0.0414 | M27: 0 | N27: 0
B28: 2007 Q1 | C28: 0.0459 | D28: 0.0472 | F28: 2006-05-01 | G28: 2006 | H28: Q2 | I28: 2006 Q2 | J28: 0 | L28: 0.0414 | M28: 0 | N28: 0
B29: 2007 Q2 | C29: 0.0459 | D29: 0.0472 | F29: 2006-06-01 | G29: 2006 | H29: Q2 | I29: 2006 Q2 | J29: 0 | K29: 3883.62 | L29: 0.0414 | M29: 0 | N29: 3883.62
B30: 2007 Q3 | C30: 0.0459 | D30: 0.0518 | F30: 2006-07-01 | G30: 2006 | H30: Q3 | I30: 2006 Q3 | J30: 3883.62 | K30: 12318.92 | L30: 0.0459 | M30: 14.85 | N30: 16217.39
B31: 2007 Q4 | C31: 0.0514 | D31: 0.0518 | F31: 2006-08-01 | G31: 2006 | H31: Q3 | I31: 2006 Q3 | J31: 16202.54 | K31: 13488.11 | L31: 0.0459 | M31: 61.97 | N31: 29752.62
B32: 2008 Q1 | C32: 0.0514 | D32: 0.0518 | F32: 2006-09-01 | G32: 2006 | H32: Q3 | I32: 2006 Q3 | J32: 29690.65 | K32: 13393.02 | L32: 0.0459 | M32: 113.57 | N32: 43197.24
B33: 2008 Q2 | C33: 0.0408 | D33: 0.0518 | F33: 2006-10-01 | G33: 2006 | H33: Q4 | I33: 2006 Q4 | J33: 43083.67 | K33: 12391.79 | L33: 0.0459 | M33: 164.8 | N33: 55640.26
B34: 2008 Q3 | C34: 0.0335 | D34: 0.0543 | F34: 2006-11-01 | G34: 2006 | H34: Q4 | I34: 2006 Q4 | J34: 55475.46 | K34: 13104.26 | L34: 0.0459 | M34: 212.19 | N34: 68791.91
B35: 2008 Q4 | C35: 0.0335 | D35: 0.0543 | F35: 2006-12-01 | G35: 2006 | H35: Q4 | I35: 2006 Q4 | J35: 68579.72 | K35: 19127.78 | L35: 0.0459 | M35: 262.32 | N35: 87969.82 | O35: =SUM(K24:K35)+SUM(M24:M35) -> 88537.2
B36: 2009 Q1 | C36: 0.0245 | D36: 0.0661 | F36: 2007-01-01 | G36: 2007 | H36: Q1 | I36: 2007 Q1 | J36: 87707.5 | K36: 14198.74 | L36: 0.0459 | M36: 335.48 | N36: 102241.72
B37: 2009 Q2 | C37: 0.01 | D37: 0.0661 | F37: 2007-02-01 | G37: 2007 | H37: Q1 | I37: 2007 Q1 | J37: 101906.24 | K37: 11161.19 | L37: 0.0459 | M37: 389.79 | N37: 113457.22
B38: 2009 Q3 | C38: 0.0055 | D38: 0.0567 | F38: 2007-03-01 | G38: 2007 | H38: Q1 | I38: 2007 Q1 | J38: 113067.43 | K38: 15885.16 | L38: 0.0459 | M38: 432.48 | N38: 129385.07
B39: 2009 Q4 | C39: 0.0055 | D39: 0.0466 | F39: 2007-04-01 | G39: 2007 | H39: Q2 | I39: 2007 Q2 | J39: 128952.59 | K39: 10677.9 | L39: 0.0459 | M39: 493.24 | N39: 140123.73
B40: 2010 Q1 | C40: 0.0055 | D40: 0.0434 | F40: 2007-05-01 | G40: 2007 | H40: Q2 | I40: 2007 Q2 | J40: 139630.49 | K40: 14091.1 | L40: 0.0459 | M40: 534.09 | N40: 154255.68
B41: 2010 Q2 | C41: 0.0055 | D41: 0.0434 | F41: 2007-06-01 | G41: 2007 | H41: Q2 | I41: 2007 Q2 | J41: 153721.59 | K41: 13493.77 | L41: 0.0459 | M41: 587.99 | N41: 167803.35
B42: 2010 Q3 | C42: 0.0089 | D42: 0.0466 | F42: 2007-07-01 | G42: 2007 | H42: Q3 | I42: 2007 Q3 | J42: 167215.36 | K42: 12907.54 | L42: 0.0459 | M42: 639.6 | N42: 180762.5
B43: 2010 Q4 | C43: 0.012 | D43: 0.0401 | F43: 2007-08-01 | G43: 2007 | H43: Q3 | I43: 2007 Q3 | J43: 180122.9 | K43: 14371.93 | L43: 0.0459 | M43: 688.97 | N43: 195183.8
B44: 2011 Q1 | C44: 0.0147 | D44: 0.0429 | F44: 2007-09-01 | G44: 2007 | H44: Q3 | I44: 2007 Q3 | J44: 194494.83 | K44: 11742.9 | L44: 0.0459 | M44: 743.94 | N44: 206981.67
B45: 2011 Q2 | C45: 0.0147 | D45: 0.0429 | F45: 2007-10-01 | G45: 2007 | H45: Q4 | I45: 2007 Q4 | J45: 206237.73 | K45: 13517.85 | L45: 0.0514 | M45: 883.38 | N45: 220638.96
B46: 2011 Q3 | C46: 0.0147 | D46: 0.0429 | F46: 2007-11-01 | G46: 2007 | H46: Q4 | I46: 2007 Q4 | J46: 219755.58 | K46: 13793.83 | L46: 0.0514 | M46: 941.29 | N46: 234490.7
B47: 2011 Q4 | C47: =C46 -> 0.0147 | D47: 0.0392 | F47: 2007-12-01 | G47: 2007 | H47: Q4 | I47: 2007 Q4 | J47: 233549.41 | K47: 13896.37 | L47: 0.0514 | M47: 1000.37 | N47: 248446.15 | O47: =SUM(K36:K47)+SUM(M36:M47) -> 167408.9
B48: 2012 Q1 | C48: 0.0147 | D48: 0.0392 | F48: 2008-01-01 | G48: 2008 | H48: Q1 | I48: 2008 Q1 | J48: 247445.78 | K48: 12602.91 | L48: 0.0514 | M48: 1059.89 | N48: 261108.58
B49: 2012 Q2 | C49: 0.0147 | D49: 0.0351 | F49: 2008-02-01 | G49: 2008 | H49: Q1 | I49: 2008 Q1 | J49: 260048.69 | K49: 11448.91 | L49: 0.0514 | M49: 1113.88 | N49: 272611.48
B50: 2012 Q3 | C50: 0.0147 | D50: 0.0351 | F50: 2008-03-01 | G50: 2008 | H50: Q1 | I50: 2008 Q1 | J50: 271497.6 | K50: 14653.4 | L50: 0.0514 | M50: 1162.91 | N50: 287313.91
B51: 2012 Q4 | C51: 0.0147 | D51: 0.0323 | F51: 2008-04-01 | G51: 2008 | H51: Q2 | I51: 2008 Q2 | J51: 286151 | K51: 12589.78 | L51: 0.0408 | M51: 972.91 | N51: 299713.69
B52: 2013 Q1 | C52: 0.0147 | D52: 0.0323 | F52: 2008-05-01 | G52: 2008 | H52: Q2 | I52: 2008 Q2 | J52: 298740.78 | K52: 17179.83 | L52: 0.0408 | M52: 1015.72 | N52: 316936.33
B53: 2013 Q2 | C53: 0.0147 | D53: 0.0323 | F53: 2008-06-01 | G53: 2008 | H53: Q2 | I53: 2008 Q2 | J53: 315920.61 | K53: 12671.07 | L53: 0.0408 | M53: 1074.13 | N53: 329665.81
B54: 2013 Q3 | C54: 0.0147 | D54: 0.0323 | F54: 2008-07-01 | G54: 2008 | H54: Q3 | I54: 2008 Q3 | J54: 328591.68 | K54: 13978.03 | L54: 0.0335 | M54: 917.32 | N54: 343487.03
B55: 2013 Q4 | F55: 2008-08-01 | G55: 2008 | H55: Q3 | I55: 2008 Q3 | J55: 342569.71 | K55: 12030.32 | L55: 0.0335 | M55: 956.34 | N55: 355556.37
B56: 2014 Q1 | F56: 2008-09-01 | G56: 2008 | H56: Q3 | I56: 2008 Q3 | J56: 354600.03 | K56: 14150.51 | L56: =VLOOKUP(I56,$B$22:$D$59,2) -> 0.0335 | M56: 989.93 | N56: 369740.47
B57: 2014 Q2 | F57: 2008-10-01 | G57: 2008 | H57: Q4 | I57: 2008 Q4 | J57: 368750.54 | K57: 12402.6 | L57: 0.0335 | M57: 1029.43 | N57: 382182.57
B58: 2014 Q3 | F58: 2008-11-01 | G58: 2008 | H58: Q4 | I58: 2008 Q4 | J58: 381153.14 | K58: 13534.7 | L58: 0.0335 | M58: 1064.05 | N58: 395751.89
B59: 2014 Q4 | F59: 2008-12-01 | G59: 2008 | H59: Q4 | I59: 2008 Q4 | J59: 394687.84 | K59: 13547.63 | L59: 0.0335 | M59: 1101.84 | N59: 409337.31 | O59: =SUM(K48:K59)+SUM(M48:M59) -> 173248.04
F60: 2009-01-01 | G60: 2009 | H60: Q1 | I60: 2009 Q1 | J60: 408235.47 | K60: 14371.07 | L60: 0.0245 | M60: 833.48 | N60: 423440.02
F61: 2009-02-01 | G61: 2009 | H61: Q1 | I61: 2009 Q1 | J61: 422606.54 | K61: 11716.88 | L61: 0.0245 | M61: 862.82 | N61: 435186.24
F62: 2009-03-01 | G62: 2009 | H62: Q1 | I62: 2009 Q1 | J62: 434323.42 | K62: 14139.41 | L62: 0.0245 | M62: 886.74 | N62: 449349.57
F63: 2009-04-01 | G63: 2009 | H63: Q2 | I63: 2009 Q2 | J63: 448462.83 | K63: 12367.25 | L63: 0.01 | M63: 373.72 | N63: 461203.8
F64: 2009-05-01 | G64: 2009 | H64: Q2 | I64: 2009 Q2 | J64: 460830.08 | K64: 53107.89 | L64: 0.01 | M64: 384.03 | N64: 514322
F65: 2009-06-01 | G65: 2009 | H65: Q2 | I65: 2009 Q2 | J65: 513937.97 | K65: 77620.33 | L65: 0.01 | M65: 428.28 | N65: 591986.58
F66: 2009-07-01 | G66: 2009 | H66: Q3 | I66: 2009 Q3 | J66: 591558.3 | K66: 73303.53 | L66: 0.0055 | M66: 271.13 | N66: 665132.96
F67: 2009-08-01 | G67: 2009 | H67: Q3 | I67: 2009 Q3 | J67: 664861.83 | K67: -20785.85 | L67: 0.0055 | M67: 304.73 | N67: 644380.71
F68: 2009-09-01 | G68: 2009 | H68: Q3 | I68: 2009 Q3 | J68: 644075.98 | K68: 52660.11 | L68: 0.0055 | M68: 295.2 | N68: 697031.29
F69: 2009-10-01 | G69: 2009 | H69: Q4 | I69: 2009 Q4 | J69: 696736.09 | K69: 45149 | L69: 0.0055 | M69: 319.34 | N69: 742204.43
F70: 2009-11-01 | G70: 2009 | H70: Q4 | I70: 2009 Q4 | J70: 741885.09 | K70: 48126 | L70: 0.0055 | M70: 340.03 | N70: 790351.12
F71: 2009-12-01 | G71: 2009 | H71: Q4 | I71: 2009 Q4 | J71: 790011.09 | K71: 45517.62 | L71: 0.0055 | M71: 362.09 | N71: 835890.8 | O71: =SUM(K60:K71)+SUM(M60:M71) -> 432954.83
F72: 2010-01-01 | G72: 2010 | H72: Q1 | I72: 2010 Q1 | J72: 835528.71 | K72: 50365 | L72: 0.0055 | M72: 382.95 | N72: 886276.66
F73: 2010-02-01 | G73: 2010 | H73: Q1 | I73: 2010 Q1 | J73: 885893.71 | K73: 50075 | L73: 0.0055 | M73: 406.03 | N73: 936374.74
F74: 2010-03-01 | G74: 2010 | H74: Q1 | I74: 2010 Q1 | J74: 935968.71 | K74: 49561 | L74: 0.0055 | M74: 428.99 | N74: 985958.7
F75: 2010-04-01 | G75: 2010 | H75: Q2 | I75: 2010 Q2 | J75: 985529.71 | K75: 49648 | L75: 0.0055 | M75: 451.7 | N75: 1035629.41
F76: 2010-05-01 | G76: 2010 | H76: Q2 | I76: 2010 Q2 | J76: 1035177.71 | K76: 49630 | L76: 0.0055 | M76: 474.46 | N76: 1085282.17
F77: 2010-06-01 | G77: 2010 | H77: Q2 | I77: 2010 Q2 | J77: 1084807.71 | K77: 67375 | L77: 0.0055 | M77: 497.2 | N77: 1152679.91
F78: 2010-07-01 | G78: 2010 | H78: Q3 | I78: 2010 Q3 | J78: 1152182.71 | K78: 49412 | L78: 0.0089 | M78: 854.54 | N78: 1202449.25
F79: 2010-08-01 | G79: 2010 | H79: Q3 | I79: 2010 Q3 | J79: 1201594.71 | K79: 49312 | L79: 0.0089 | M79: 891.18 | N79: 1251797.89
F80: 2010-09-01 | G80: 2010 | H80: Q3 | I80: 2010 Q3 | J80: 1250906.71 | K80: 44958 | L80: 0.0089 | M80: 927.76 | N80: 1296792.47
F81: 2010-10-01 | G81: 2010 | H81: Q4 | I81: 2010 Q4 | J81: 1295864.71 | K81: 52260 | L81: 0.012 | M81: 1295.86 | N81: 1349420.57
F82: 2010-11-01 | G82: 2010 | H82: Q4 | I82: 2010 Q4 | J82: 1348124.71 | K82: 48730 | L82: 0.012 | M82: 1348.12 | N82: 1398202.83
F83: 2010-12-01 | G83: 2010 | H83: Q4 | I83: 2010 Q4 | J83: 1396854.71 | K83: 49090 | L83: 0.012 | M83: 1396.85 | N83: 1447341.56 | O83: =SUM(K72:K83)+SUM(M72:M83) -> 619771.64
F84: 2011-01-01 | G84: 2011 | H84: Q1 | I84: 2011 Q1 | J84: 1445944.71 | K84: 49080 | L84: 0.0147 | M84: 1771.28 | N84: 1496795.99
F85: 2011-02-01 | G85: 2011 | H85: Q1 | I85: 2011 Q1 | J85: 1495024.71 | K85: 48464 | L85: 0.0147 | M85: 1831.41 | N85: 1545320.12
F86: 2011-03-01 | G86: 2011 | H86: Q1 | I86: 2011 Q1 | J86: 1543488.71 | K86: 53052 | L86: 0.0147 | M86: 1890.77 | N86: 1598431.48
F87: 2011-04-01 | G87: 2011 | H87: Q2 | I87: 2011 Q2 | J87: 1596540.71 | K87: 48446 | L87: 0.0147 | M87: 1955.76 | N87: 1646942.47
F88: 2011-05-01 | G88: 2011 | H88: Q2 | I88: 2011 Q2 | J88: 1644986.71 | K88: 54890 | L88: =VLOOKUP(I88,$B$22:$D$59,2) -> 0.0147 | M88: 2015.11 | N88: 1701891.82
F89: 2011-06-01 | G89: =YEAR(F89) -> 2011 | H89: =IF(MONTH(F89)=0,"",IF(MONTH(F89)<4,"Q1",IF(MONTH(F89)<7,"Q2",IF(MONTH(F89)<10,"Q3","Q4")))) -> Q2 | I89: =CONCATENATE(G89," ",H89) -> 2011 Q2 | J89: 1699876.71 | K89: 48016 | L89: 0.0147 | M89: =ROUND(J89*L89/12,2) -> 2082.35 | N89: =J89+K89+M89 -> 1749975.06
F90: 2011-07-01 | G90: 2011 | H90: Q3 | I90: 2011 Q3 | J90: =J89+K89 -> 1747892.71 | K90: 50971 | L90: 0.0147 | M90: 2141.17 | N90: 1801004.88
F91: 2011-08-01 | G91: 2011 | H91: Q3 | I91: 2011 Q3 | J91: 1798863.71 | K91: 50845 | L91: 0.0147 | M91: 2203.61 | N91: 1851912.32
F92: 2011-09-01 | G92: 2011 | H92: Q3 | I92: 2011 Q3 | J92: 1849708.71 | K92: 51681 | L92: 0.0147 | M92: 2265.89 | N92: 1903655.6
F93: 2011-10-01 | G93: 2011 | H93: Q4 | I93: 2011 Q4 | J93: 1901389.71 | K93: 48756 | L93: 0.0147 | M93: 2329.2 | N93: 1952474.91
F94: 2011-11-01 | G94: 2011 | H94: Q4 | I94: 2011 Q4 | J94: 1950145.71 | K94: 49603 | L94: 0.0147 | M94: 2388.93 | N94: 2002137.64
F95: 2011-12-01 | G95: 2011 | H95: Q4 | I95: 2011 Q4 | J95: 1999748.71 | K95: 50361 | L95: 0.0147 | M95: 2449.69 | N95: 2052559.4 | O95: =SUM(K84:K95)+SUM(M84:M95) -> 629490.17
F96: 2012-01-01 | G96: 2012 | H96: Q1 | I96: 2012 Q1 | J96: 2050109.71 | K96: 50292 | L96: 0.0147 | M96: 2511.38 | N96: 2102913.09
F97: 2012-02-01 | G97: 2012 | H97: Q1 | I97: 2012 Q1 | J97: 2100401.71 | K97: 50439 | L97: 0.0147 | M97: 2572.99 | N97: 2153413.7
F98: 2012-03-01 | G98: 2012 | H98: Q1 | I98: 2012 Q1 | J98: 2150840.71 | K98: 50320 | L98: 0.0147 | M98: 2634.78 | N98: 2203795.49
F99: 2012-04-01 | G99: 2012 | H99: Q2 | I99: 2012 Q2 | J99: 2201160.71 | K99: 50162 | L99: 0.0147 | M99: 2696.42 | N99: 2254019.13
F100: 2012-05-01 | G100: 2012 | H100: Q2 | I100: 2012 Q2 | J100: 2251322.71 | K100: 50317 | L100: 0.0147 | M100: 2757.87 | N100: 2304397.58
F101: 2012-06-01 | G101: 2012 | H101: Q2 | I101: 2012 Q2 | J101: 2301639.71 | L101: 0.0147 | M101: 2819.51 | N101: 2304459.22
F102: 2012-07-01 | G102: 2012 | H102: Q3 | I102: 2012 Q3 | J102: 2301639.71 | L102: 0.0147 | M102: 2819.51 | N102: 2304459.22
F103: 2012-08-01 | G103: 2012 | H103: Q3 | I103: 2012 Q3 | J103: 2301639.71 | L103: 0.0147 | M103: 2819.51 | N103: 2304459.22
F104: 2012-09-01 | G104: 2012 | H104: Q3 | I104: 2012 Q3 | J104: 2301639.71 | L104: 0.0147 | M104: 2819.51 | N104: 2304459.22
F105: 2012-10-01 | G105: 2012 | H105: Q4 | I105: 2012 Q4 | J105: 2301639.71 | L105: 0.0147 | M105: 2819.51 | N105: 2304459.22
F106: 2012-11-01 | G106: 2012 | H106: Q4 | I106: 2012 Q4 | J106: 2301639.71 | L106: 0.0147 | M106: 2819.51 | N106: 2304459.22
F107: 2012-12-01 | G107: 2012 | H107: Q4 | I107: 2012 Q4 | J107: 2301639.71 | L107: 0.0147 | M107: 2819.51 | N107: 2304459.22 | O107: =SUM(K96:K107)+SUM(M96:M107) -> 284440.01
F108: 2013-01-01 | G108: 2013 | H108: Q1 | I108: 2013 Q1 | J108: 2301639.71 | L108: 0.0147 | M108: =ROUND(J108*L108/12,2) -> 2819.51 | N108: =J108+K108+M108 -> 2304459.22
F109: 2013-02-01 | G109: 2013 | H109: Q1 | I109: 2013 Q1 | J109: 2301639.71 | L109: 0.0147 | M109: 2819.51 | N109: 2304459.22
F110: 2013-03-01 | G110: 2013 | H110: Q1 | I110: 2013 Q1 | J110: 2301639.71 | L110: 0.0147 | M110: 2819.51 | N110: 2304459.22
F111: 2013-04-01 | G111: 2013 | H111: Q2 | I111: 2013 Q2 | J111: 2301639.71 | L111: 0.0147 | M111: 2819.51 | N111: 2304459.22
F112: 2013-05-01 | G112: 2013 | H112: Q2 | I112: 2013 Q2 | J112: 2301639.71 | L112: 0.0147 | M112: 2819.51 | N112: 2304459.22
F113: 2013-06-01 | G113: 2013 | H113: Q2 | I113: 2013 Q2 | J113: 2301639.71 | L113: 0.0147 | M113: 2819.51 | N113: 2304459.22
F114: 2013-07-01 | G114: 2013 | H114: Q3 | I114: 2013 Q3 | J114: 2301639.71 | L114: 0.0147 | M114: 2819.51 | N114: 2304459.22
F115: 2013-08-01 | G115: 2013 | H115: Q3 | I115: 2013 Q3 | J115: 2301639.71 | L115: 0.0147 | M115: 2819.51 | N115: 2304459.22
F116: 2013-09-01 | G116: 2013 | H116: Q3 | I116: 2013 Q3 | J116: 2301639.71 | L116: 0.0147 | M116: 2819.51 | N116: 2304459.22
F117: 2013-10-01 | G117: 2013 | H117: Q4 | I117: 2013 Q4 | J117: 2301639.71 | L117: 0.0147 | M117: 2819.51 | N117: 2304459.22
F118: 2013-11-01 | G118: 2013 | H118: Q4 | I118: 2013 Q4 | J118: 2301639.71 | L118: 0.0147 | M118: 2819.51 | N118: 2304459.22
F119: 2013-12-01 | G119: 2013 | H119: Q4 | I119: 2013 Q4 | J119: 2301639.71 | L119: 0.0147 | M119: 2819.51 | N119: 2304459.22 | O119: =SUM(K108:K119)+SUM(M108:M119) -> 33834.12
F120: 2014-01-01 | G120: =YEAR(F120) -> 2014 | H120: =IF(MONTH(F120)=0,"",IF(MONTH(F120)<4,"Q1",IF(MONTH(F120)<7,"Q2",IF(MONTH(F120)<10,"Q3","Q4")))) -> Q1 | I120: =CONCATENATE(G120," ",H120) -> 2014 Q1 | J120: =J119+K119 -> 2301639.71 | L120: 0.0147 | M120: =ROUND(J120*L120/12,2) -> 2819.51 | N120: =J120+K120+M120 -> 2304459.22
F121: 2014-02-01 | G121: 2014 | H121: Q1 | I121: 2014 Q1 | J121: 2301639.71 | L121: 0.0147 | M121: 2819.51 | N121: 2304459.22
F122: 2014-03-01 | G122: 2014 | H122: Q1 | I122: 2014 Q1 | J122: 2301639.71 | M122: 0 | N122: 2301639.71
F123: 2014-04-01 | G123: 2014 | H123: Q2 | I123: 2014 Q2 | J123: 2301639.71 | M123: 0 | N123: 2301639.71
F124: 2014-05-01 | G124: 2014 | H124: Q2 | I124: 2014 Q2 | J124: 2301639.71 | M124: 0 | N124: 2301639.71
F125: 2014-06-01 | G125: 2014 | H125: Q2 | I125: 2014 Q2 | J125: 2301639.71 | M125: 0 | N125: 2301639.71
F126: 2014-07-01 | G126: 2014 | H126: Q3 | I126: 2014 Q3 | J126: 2301639.71 | M126: 0 | N126: 2301639.71
F127: 2014-08-01 | G127: 2014 | H127: Q3 | I127: 2014 Q3 | J127: 2301639.71 | M127: 0 | N127: 2301639.71
F128: 2014-09-01 | G128: 2014 | H128: Q3 | I128: 2014 Q3 | J128: 2301639.71 | M128: 0 | N128: 2301639.71
F129: 2014-10-01 | G129: 2014 | H129: Q4 | I129: 2014 Q4 | J129: 2301639.71 | M129: 0 | N129: 2301639.71
F130: 2014-11-01 | G130: 2014 | H130: Q4 | I130: 2014 Q4 | J130: 2301639.71 | M130: 0 | N130: 2301639.71
F131: 2014-12-01 | G131: 2014 | H131: Q4 | I131: 2014 Q4 | J131: 2301639.71 | M131: 0 | N131: 2301639.71 | O131: =SUM(K120:K131)+SUM(M120:M131) -> 5639.02
F133: Total Funding Adder Revenues Collected | K133: =SUM(K24:K131) -> 2301639.71 | M133: =SUM(M24:M131) -> 133684.22 | N133: =K133+M133 -> 2435323.93 | O133: =SUM(O24:O131) -> 2435323.93

Sheet 8A. Opex_Interest_monthly
B13: This worksheet calculates the interest on OM&A and amortization/depreciation expense, based on monthly data.
J21: Account 1556 - Sub-accounts Operating Expenses, Amortization Expenses, Carrying Charges
B23: Prescribed Interest Rates | C23: Approved Deferral and Variance Accounts | D23: CWIP | F23: Date | G23: Year | H23: Quarter | J23: Opening Balance (Principal) | K23: OM&A Expenses | L23: Amortization / Depreciation Expense | M23: Closing Balance (Principal) | N23: (Annual) Interest Rate | O23: Interest (on opening balance) | P23: Cumulative Interest
B25: ='8. Funding_Adder_Revs'!B24 -> 2006 Q1 | C25: ='8. Funding_Adder_Revs'!C24 -> 0 | D25: ='8. Funding_Adder_Revs'!D24 -> 0 | F25: ='8. Funding_Adder_Revs'!F24 -> 2006-01-01 | G25: ='8. Funding_Adder_Revs'!G24 -> 2006 | H25: ='8. Funding_Adder_Revs'!H24 -> Q1 | J25: 0 | L25: ='5. SM_Rev_Reqt'!$G$58/12 -> 128.9045278 | M25: =J25+K25+L25 -> 128.9045278 | N25: ='8. Funding_Adder_Revs'!L24 -> 0 | O25: =J25*N25/12 -> 0 | P25: =O25 -> 0
B26: ='8. Funding_Adder_Revs'!B25 -> 2006 Q2 | C26: ='8. Funding_Adder_Revs'!C25 -> 0.0414 | D26: ='8. Funding_Adder_Revs'!D25 -> 0.0468 | F26: ='8. Funding_Adder_Revs'!F25 -> 2006-02-01 | G26: ='8. Funding_Adder_Revs'!G25 -> 2006 | H26: ='8. Funding_Adder_Revs'!H25 -> Q1 | J26: =M25 -> 128.9045278 | L26: ='5. SM_Rev_Reqt'!$G$58/12 -> 128.9045278 | M26: =J26+K26+L26 -> 257.8090556 | N26: ='8. Funding_Adder_Revs'!L25 -> 0 | O26: =J26*N26/12 -> 0 | P26: =O26+P25 -> 0
B27: ='8. Funding_Adder_Revs'!B26 -> 2006 Q3 | C27: ='8. Funding_Adder_Revs'!C26 -> 0.0459 | D27: ='8. Funding_Adder_Revs'!D26 -> 0.0505 | F27: ='8. Funding_Adder_Revs'!F26 -> 2006-03-01 | G27: ='8. Funding_Adder_Revs'!G26 -> 2006 | H27: ='8. Funding_Adder_Revs'!H26 -> Q1 | J27: =M26 -> 257.8090556 | L27: ='5. SM_Rev_Reqt'!$G$58/12 -> 128.9045278 | M27: 386.7135833 | N27: ='8. Funding_Adder_Revs'!L26 -> 0 | O27: 0 | P27: =O27+P26 -> 0
B28: ='8. Funding_Adder_Revs'!B27 -> 2006 Q4 | C28: ='8. Funding_Adder_Revs'!C27 -> 0.0459 | D28: ='8. Funding_Adder_Revs'!D27 -> 0.0472 | F28: ='8. Funding_Adder_Revs'!F27 -> 2006-04-01 | G28: ='8. Funding_Adder_Revs'!G27 -> 2006 | H28: ='8. Funding_Adder_Revs'!H27 -> Q2 | J28: 386.7135833 | L28: ='5. SM_Rev_Reqt'!$G$58/12 -> 128.9045278 | M28: 515.6181111 | N28: ='8. Funding_Adder_Revs'!L27 -> 0.0414 | O28: 1.334161863 | P28: 1.334161863
B29: ='8. Funding_Adder_Revs'!B28 -> 2007 Q1 | C29: ='8. Funding_Adder_Revs'!C28 -> 0.0459 | D29: ='8. Funding_Adder_Revs'!D28 -> 0.0472 | F29: ='8. Funding_Adder_Revs'!F28 -> 2006-05-01 | G29: ='8. Funding_Adder_Revs'!G28 -> 2006 | H29: ='8. Funding_Adder_Revs'!H28 -> Q2 | J29: 515.6181111 | L29: ='5. SM_Rev_Reqt'!$G$58/12 -> 128.9045278 | M29: 644.5226389 | N29: ='8. Funding_Adder_Revs'!L28 -> 0.0414 | O29: 1.778882483 | P29: 3.113044346
B30: ='8. Funding_Adder_Revs'!B29 -> 2007 Q2 | C30: ='8. Funding_Adder_Revs'!C29 -> 0.0459 | D30: ='8. Funding_Adder_Revs'!D29 -> 0.0472 | F30: ='8. Funding_Adder_Revs'!F29 -> 2006-06-01 | G30: ='8. Funding_Adder_Revs'!G29 -> 2006 | H30: ='8. Funding_Adder_Revs'!H29 -> Q2 | J30: 644.5226389 | L30: ='5. SM_Rev_Reqt'!$G$58/12 -> 128.9045278 | M30: 773.4271667 | N30: ='8. Funding_Adder_Revs'!L29 -> 0.0414 | O30: 2.223603104 | P30: 5.33664745
B31: ='8. Funding_Adder_Revs'!B30 -> 2007 Q3 | C31: ='8. Funding_Adder_Revs'!C30 -> 0.0459 | D31: ='8. Funding_Adder_Revs'!D30 -> 0.0518 | F31: ='8. Funding_Adder_Revs'!F30 -> 2006-07-01 | G31: ='8. Funding_Adder_Revs'!G30 -> 2006 | H31: ='8. Funding_Adder_Revs'!H30 -> Q3 | J31: 773.4271667 | L31: ='5. SM_Rev_Reqt'!$G$58/12 -> 128.9045278 | M31: 902.3316944 | N31: ='8. Funding_Adder_Revs'!L30 -> 0.0459 | O31: 2.958358913 | P31: 8.295006363
B32: ='8. Funding_Adder_Revs'!B31 -> 2007 Q4 | C32: ='8. Funding_Adder_Revs'!C31 -> 0.0514 | D32: ='8. Funding_Adder_Revs'!D31 -> 0.0518 | F32: ='8. Funding_Adder_Revs'!F31 -> 2006-08-01 | G32: ='8. Funding_Adder_Revs'!G31 -> 2006 | H32: ='8. Funding_Adder_Revs'!H31 -> Q3 | J32: 902.3316944 | L32: ='5. SM_Rev_Reqt'!$G$58/12 -> 128.9045278 | M32: 1031.236222 | N32: ='8. Funding_Adder_Revs'!L31 -> 0.0459 | O32: 3.451418731 | P32: 11.74642509
B33: ='8. Funding_Adder_Revs'!B32 -> 2008 Q1 | C33: ='8. Funding_Adder_Revs'!C32 -> 0.0514 | D33: ='8. Funding_Adder_Revs'!D32 -> 0.0518 | F33: ='8. Funding_Adder_Revs'!F32 -> 2006-09-01 | G33: ='8. Funding_Adder_Revs'!G32 -> 2006 | H33: ='8. Funding_Adder_Revs'!H32 -> Q3 | J33: 1031.236222 | L33: ='5. SM_Rev_Reqt'!$G$58/12 -> 128.9045278 | M33: 1160.14075 | N33: ='8. Funding_Adder_Revs'!L32 -> 0.0459 | O33: 3.94447855 | P33: 15.69090364
B34: ='8. Funding_Adder_Revs'!B33 -> 2008 Q2 | C34: ='8. Funding_Adder_Revs'!C33 -> 0.0408 | D34: ='8. Funding_Adder_Revs'!D33 -> 0.0518 | F34: ='8. Funding_Adder_Revs'!F33 -> 2006-10-01 | G34: ='8. Funding_Adder_Revs'!G33 -> 2006 | H34: ='8. Funding_Adder_Revs'!H33 -> Q4 | J34: 1160.14075 | K34: 13800 | L34: ='5. SM_Rev_Reqt'!$G$58/12 -> 128.9045278 | M34: 15089.04528 | N34: ='8. Funding_Adder_Revs'!L33 -> 0.0459 | O34: 4.437538369 | P34: 20.12844201
B35: ='8. Funding_Adder_Revs'!B34 -> 2008 Q3 | C35: ='8. Funding_Adder_Revs'!C34 -> 0.0335 | D35: ='8. Funding_Adder_Revs'!D34 -> 0.0543 | F35: ='8. Funding_Adder_Revs'!F34 -> 2006-11-01 | G35: ='8. Funding_Adder_Revs'!G34 -> 2006 | H35: ='8. Funding_Adder_Revs'!H34 -> Q4 | J35: 15089.04528 | K35: 11634 | L35: ='5. SM_Rev_Reqt'!$G$58/12 -> 128.9045278 | M35: 26851.94981 | N35: ='8. Funding_Adder_Revs'!L34 -> 0.0459 | O35: 57.71559819 | P35: 77.8440402
B36: ='8. Funding_Adder_Revs'!B35 -> 2008 Q4 | C36: ='8. Funding_Adder_Revs'!C35 -> 0.0335 | D36: ='8. Funding_Adder_Revs'!D35 -> 0.0543 | F36: ='8. Funding_Adder_Revs'!F35 -> 2006-12-01 | G36: ='8. Funding_Adder_Revs'!G35 -> 2006 | H36: ='8. Funding_Adder_Revs'!H35 -> Q4 | J36: 26851.94981 | K36: 660 | L36: ='5. SM_Rev_Reqt'!$G$58/12 -> 128.9045278 | M36: 27640.85433 | N36: ='8. Funding_Adder_Revs'!L35 -> 0.0459 | O36: 102.708708 | P36: 180.5527482
B37: ='8. Funding_Adder_Revs'!B36 -> 2009 Q1 | C37: ='8. Funding_Adder_Revs'!C36 -> 0.0245 | D37: ='8. Funding_Adder_Revs'!D36 -> 0.0661 | F37: ='8. Funding_Adder_Revs'!F36 -> 2007-01-01 | G37: ='8. Funding_Adder_Revs'!G36 -> 2007 | H37: ='8. Funding_Adder_Revs'!H36 -> Q1 | J37: 27640.85433 | L37: ='5. SM_Rev_Reqt'!$I$58/12 -> 298.5939167 | M37: 27939.44825 | N37: ='8. Funding_Adder_Revs'!L36 -> 0.0459 | O37: 105.7262678 | P37: 286.279016
B38: ='8. Funding_Adder_Revs'!B37 -> 2009 Q2 | C38: ='8. Funding_Adder_Revs'!C37 -> 0.01 | D38: ='8. Funding_Adder_Revs'!D37 -> 0.0661 | F38: ='8. Funding_Adder_Revs'!F37 -> 2007-02-01 | G38: ='8. Funding_Adder_Revs'!G37 -> 2007 | H38: ='8. Funding_Adder_Revs'!H37 -> Q1 | J38: 27939.44825 | L38: ='5. SM_Rev_Reqt'!$I$58/12 -> 298.5939167 | M38: 28238.04217 | N38: ='8. Funding_Adder_Revs'!L37 -> 0.0459 | O38: 106.8683896 | P38: 393.1474056
B39: ='8. Funding_Adder_Revs'!B38 -> 2009 Q3 | C39: ='8. Funding_Adder_Revs'!C38 -> 0.0055 | D39: ='8. Funding_Adder_Revs'!D38 -> 0.0567 | F39: ='8. Funding_Adder_Revs'!F38 -> 2007-03-01 | G39: ='8. Funding_Adder_Revs'!G38 -> 2007 | H39: ='8. Funding_Adder_Revs'!H38 -> Q1 | J39: 28238.04217 | L39: ='5. SM_Rev_Reqt'!$I$58/12 -> 298.5939167 | M39: 28536.63608 | N39: ='8. Funding_Adder_Revs'!L38 -> 0.0459 | O39: 108.0105113 | P39: 501.1579169
B40: ='8. Funding_Adder_Revs'!B39 -> 2009 Q4 | C40: ='8. Funding_Adder_Revs'!C39 -> 0.0055 | D40: ='8. Funding_Adder_Revs'!D39 -> 0.0466 | F40: ='8. Funding_Adder_Revs'!F39 -> 2007-04-01 | G40: ='8. Funding_Adder_Revs'!G39 -> 2007 | H40: ='8. Funding_Adder_Revs'!H39 -> Q2 | J40: 28536.63608 | L40: ='5. SM_Rev_Reqt'!$I$58/12 -> 298.5939167 | M40: 28835.23 | N40: ='8. Funding_Adder_Revs'!L39 -> 0.0459 | O40: 109.152633 | P40: 610.3105499
B41: ='8. Funding_Adder_Revs'!B40 -> 2010 Q1 | C41: ='8. Funding_Adder_Revs'!C40 -> 0.0055 | D41: ='8. Funding_Adder_Revs'!D40 -> 0.0434 | F41: ='8. Funding_Adder_Revs'!F40 -> 2007-05-01 | G41: ='8. Funding_Adder_Revs'!G40 -> 2007 | H41: ='8. Funding_Adder_Revs'!H40 -> Q2 | J41: 28835.23 | L41: ='5. SM_Rev_Reqt'!$I$58/12 -> 298.5939167 | M41: 29133.82392 | N41: ='8. Funding_Adder_Revs'!L40 -> 0.0459 | O41: 110.2947547 | P41: 720.6053046
B42: ='8. Funding_Adder_Revs'!B41 -> 2010 Q2 | C42: ='8. Funding_Adder_Revs'!C41 -> 0.0055 | D42: ='8. Funding_Adder_Revs'!D41 -> 0.0434 | F42: ='8. Funding_Adder_Revs'!F41 -> 2007-06-01 | G42: ='8. Funding_Adder_Revs'!G41 -> 2007 | H42: ='8. Funding_Adder_Revs'!H41 -> Q2 | J42: 29133.82392 | L42: ='5. SM_Rev_Reqt'!$I$58/12 -> 298.5939167 | M42: 29432.41783 | N42: ='8. Funding_Adder_Revs'!L41 -> 0.0459 | O42: 111.4368765 | P42: 832.0421811
B43: ='8. Funding_Adder_Revs'!B42 -> 2010 Q3 | C43: ='8. Funding_Adder_Revs'!C42 -> 0.0089 | D43: ='8. Funding_Adder_Revs'!D42 -> 0.0466 | F43: ='8. Funding_Adder_Revs'!F42 -> 2007-07-01 | G43: ='8. Funding_Adder_Revs'!G42 -> 2007 | H43: ='8. Funding_Adder_Revs'!H42 -> Q3 | J43: 29432.41783 | L43: ='5. SM_Rev_Reqt'!$I$58/12 -> 298.5939167 | M43: 29731.01175 | N43: ='8. Funding_Adder_Revs'!L42 -> 0.0459 | O43: 112.5789982 | P43: 944.6211793
B44: ='8. Funding_Adder_Revs'!B43 -> 2010 Q4 | C44: ='8. Funding_Adder_Revs'!C43 -> 0.012 | D44: ='8. Funding_Adder_Revs'!D43 -> 0.0401 | F44: ='8. Funding_Adder_Revs'!F43 -> 2007-08-01 | G44: ='8. Funding_Adder_Revs'!G43 -> 2007 | H44: ='8. Funding_Adder_Revs'!H43 -> Q3 | J44: 29731.01175 | L44: ='5. SM_Rev_Reqt'!$I$58/12 -> 298.5939167 | M44: 30029.60567 | N44: ='8. Funding_Adder_Revs'!L43 -> 0.0459 | O44: 113.7211199 | P44: 1058.342299
B45: ='8. Funding_Adder_Revs'!B44 -> 2011 Q1 | C45: ='8. Funding_Adder_Revs'!C44 -> 0.0147 | D45: ='8. Funding_Adder_Revs'!D44 -> 0.0429 | F45: ='8. Funding_Adder_Revs'!F44 -> 2007-09-01 | G45: ='8. Funding_Adder_Revs'!G44 -> 2007 | H45: ='8. Funding_Adder_Revs'!H44 -> Q3 | J45: 30029.60567 | L45: ='5. SM_Rev_Reqt'!$I$58/12 -> 298.5939167 | M45: 30328.19958 | N45: ='8. Funding_Adder_Revs'!L44 -> 0.0459 | O45: 114.8632417 | P45: 1173.205541
B46: ='8. Funding_Adder_Revs'!B45 -> 2011 Q2 | C46: ='8. Funding_Adder_Revs'!C45 -> 0.0147 | D46: ='8. Funding_Adder_Revs'!D45 -> 0.0429 | F46: ='8. Funding_Adder_Revs'!F45 -> 2007-10-01 | G46: ='8. Funding_Adder_Revs'!G45 -> 2007 | H46: ='8. Funding_Adder_Revs'!H45 -> Q4 | J46: 30328.19958 | L46: ='5. SM_Rev_Reqt'!$I$58/12 -> 298.5939167 | M46: 30626.7935 | N46: ='8. Funding_Adder_Revs'!L45 -> 0.0514 | O46: 129.9057882 | P46: 1303.111329
B47: ='8. Funding_Adder_Revs'!B46 -> 2011 Q3 | C47: ='8. Funding_Adder_Revs'!C46 -> 0.0147 | D47: ='8. Funding_Adder_Revs'!D46 -> 0.0429 | F47: ='8. Funding_Adder_Revs'!F46 -> 2007-11-01 | G47: ='8. Funding_Adder_Revs'!G46 -> 2007 | H47: ='8. Funding_Adder_Revs'!H46 -> Q4 | J47: 30626.7935 | L47: ='5. SM_Rev_Reqt'!$I$58/12 -> 298.5939167 | M47: 30925.38742 | N47: ='8. Funding_Adder_Revs'!L46 -> 0.0514 | O47: 131.1847655 | P47: 1434.296095
B48: ='8. Funding_Adder_Revs'!B47 -> 2011 Q4 | C48: ='8. Funding_Adder_Revs'!C47 -> 0.0147 | D48: ='8. Funding_Adder_Revs'!D47 -> 0.0392 | F48: ='8. Funding_Adder_Revs'!F47 -> 2007-12-01 | G48: ='8. Funding_Adder_Revs'!G47 -> 2007 | H48: ='8. Funding_Adder_Revs'!H47 -> Q4 | J48: 30925.38742 | K48: 119 | L48: ='5. SM_Rev_Reqt'!$I$58/12 -> 298.5939167 | M48: 31342.98133 | N48: ='8. Funding_Adder_Revs'!L47 -> 0.0514 | O48: 132.4637428 | P48: 1566.759837
B49: ='8. Funding_Adder_Revs'!B48 -> 2012 Q1 | C49: ='8. Funding_Adder_Revs'!C48 -> 0.0147 | D49: ='8. Funding_Adder_Revs'!D48 -> 0.0392 | F49: ='8. Funding_Adder_Revs'!F48 -> 2008-01-01 | G49: ='8. Funding_Adder_Revs'!G48 -> 2008 | H49: ='8. Funding_Adder_Revs'!H48 -> Q1 | J49: 31342.98133 | L49: ='5. SM_Rev_Reqt'!$K$58/12 -> 339.3787778 | M49: 31682.36011 | N49: ='8. Funding_Adder_Revs'!L48 -> 0.0514 | O49: 134.2524367 | P49: 1701.012274
B50: ='8. Funding_Adder_Revs'!B49 -> 2012 Q2 | C50: ='8. Funding_Adder_Revs'!C49 -> 0.0147 | D50: ='8. Funding_Adder_Revs'!D49 -> 0.0351 | F50: ='8. Funding_Adder_Revs'!F49 -> 2008-02-01 | G50: ='8. Funding_Adder_Revs'!G49 -> 2008 | H50: ='8. Funding_Adder_Revs'!H49 -> Q1 | J50: 31682.36011 | L50: ='5. SM_Rev_Reqt'!$K$58/12 -> 339.3787778 | M50: 32021.73889 | N50: ='8. Funding_Adder_Revs'!L49 -> 0.0514 | O50: 135.7061091 | P50: 1836.718383
B51: ='8. Funding_Adder_Revs'!B50 -> 2012 Q3 | C51: ='8. Funding_Adder_Revs'!C50 -> 0.0147 | D51: ='8. Funding_Adder_Revs'!D50 -> 0.0351 | F51: ='8. Funding_Adder_Revs'!F50 -> 2008-03-01 | G51: ='8. Funding_Adder_Revs'!G50 -> 2008 | H51: ='8. Funding_Adder_Revs'!H50 -> Q1 | J51: 32021.73889 | L51: ='5. SM_Rev_Reqt'!$K$58/12 -> 339.3787778 | M51: 32361.11767 | N51: ='8. Funding_Adder_Revs'!L50 -> 0.0514 | O51: 137.1597816 | P51: 1973.878165
B52: ='8. Funding_Adder_Revs'!B51 -> 2012 Q4 | C52: ='8. Funding_Adder_Revs'!C51 -> 0.0147 | D52: ='8. Funding_Adder_Revs'!D51 -> 0.0323 | F52: ='8. Funding_Adder_Revs'!F51 -> 2008-04-01 | G52: ='8. Funding_Adder_Revs'!G51 -> 2008 | H52: ='8. Funding_Adder_Revs'!H51 -> Q2 | J52: 32361.11767 | L52: ='5. SM_Rev_Reqt'!$K$58/12 -> 339.3787778 | M52: 32700.49644 | N52: ='8. Funding_Adder_Revs'!L51 -> 0.0408 | O52: 110.0278001 | P52: 2083.905965
B53: ='8. Funding_Adder_Revs'!B52 -> 2013 Q1 | C53: ='8. Funding_Adder_Revs'!C52 -> 0.0147 | D53: ='8. Funding_Adder_Revs'!D52 -> 0.0323 | F53: ='8. Funding_Adder_Revs'!F52 -> 2008-05-01 | G53: ='8. Funding_Adder_Revs'!G52 -> 2008 | H53: ='8. Funding_Adder_Revs'!H52 -> Q2 | J53: 32700.49644 | L53: ='5. SM_Rev_Reqt'!$K$58/12 -> 339.3787778 | M53: 33039.87522 | N53: ='8. Funding_Adder_Revs'!L52 -> 0.0408 | O53: 111.1816879 | P53: 2195.087653
B54: ='8. Funding_Adder_Revs'!B53 -> 2013 Q2 | C54: ='8. Funding_Adder_Revs'!C53 -> 0.0147 | D54: ='8. Funding_Adder_Revs'!D53 -> 0.0323 | F54: ='8. Funding_Adder_Revs'!F53 -> 2008-06-01 | G54: ='8. Funding_Adder_Revs'!G53 -> 2008 | H54: ='8. Funding_Adder_Revs'!H53 -> Q2 | J54: 33039.87522 | L54: ='5. SM_Rev_Reqt'!$K$58/12 -> 339.3787778 | M54: 33379.254 | N54: ='8. Funding_Adder_Revs'!L53 -> 0.0408 | O54: 112.3355758 | P54: 2307.423229
B55: ='8. Funding_Adder_Revs'!B54 -> 2013 Q3 | C55: ='8. Funding_Adder_Revs'!C54 -> 0.0147 | D55: ='8. Funding_Adder_Revs'!D54 -> 0.0323 | F55: ='8. Funding_Adder_Revs'!F54 -> 2008-07-01 | G55: ='8. Funding_Adder_Revs'!G54 -> 2008 | H55: ='8. Funding_Adder_Revs'!H54 -> Q3 | J55: 33379.254 | L55: ='5. SM_Rev_Reqt'!$K$58/12 -> 339.3787778 | M55: 33718.63278 | N55: ='8. Funding_Adder_Revs'!L54 -> 0.0335 | O55: 93.18375075 | P55: 2400.606979
B56: ='8. Funding_Adder_Revs'!B55 -> 2013 Q4 | C56: ='8. Funding_Adder_Revs'!C55 -> 0 | D56: ='8. Funding_Adder_Revs'!D55 -> 0 | F56: ='8. Funding_Adder_Revs'!F55 -> 2008-08-01 | G56: ='8. Funding_Adder_Revs'!G55 -> 2008 | H56: ='8. Funding_Adder_Revs'!H55 -> Q3 | J56: 33718.63278 | L56: ='5. SM_Rev_Reqt'!$K$58/12 -> 339.3787778 | M56: 34058.01156 | N56: ='8. Funding_Adder_Revs'!L55 -> 0.0335 | O56: 94.13118317 | P56: 2494.738163
B57: ='8. Funding_Adder_Revs'!B56 -> 2014 Q1 | C57: ='8. Funding_Adder_Revs'!C56 -> 0 | D57: ='8. Funding_Adder_Revs'!D56 -> 0 | F57: ='8. Funding_Adder_Revs'!F56 -> 2008-09-01 | G57: ='8. Funding_Adder_Revs'!G56 -> 2008 | H57: ='8. Funding_Adder_Revs'!H56 -> Q3 | J57: 34058.01156 | L57: ='5. SM_Rev_Reqt'!$K$58/12 -> 339.3787778 | M57: 34397.39033 | N57: ='8. Funding_Adder_Revs'!L56 -> 0.0335 | O57: 95.07861559 | P57: 2589.816778
B58: ='8. Funding_Adder_Revs'!B57 -> 2014 Q2 | C58: ='8. Funding_Adder_Revs'!C57 -> 0 | D58: ='8. Funding_Adder_Revs'!D57 -> 0 | F58: ='8. Funding_Adder_Revs'!F57 -> 2008-10-01 | G58: ='8. Funding_Adder_Revs'!G57 -> 2008 | H58: ='8. Funding_Adder_Revs'!H57 -> Q4 | J58: 34397.39033 | L58: ='5. SM_Rev_Reqt'!$K$58/12 -> 339.3787778 | M58: 34736.76911 | N58: ='8. Funding_Adder_Revs'!L57 -> 0.0335 | O58: 96.02604801 | P58: 2685.842826
B59: ='8. Funding_Adder_Revs'!B58 -> 2014 Q3 | C59: ='8. Funding_Adder_Revs'!C58 -> 0 | D59: ='8. Funding_Adder_Revs'!D58 -> 0 | F59: ='8. Funding_Adder_Revs'!F58 -> 2008-11-01 | G59: ='8. Funding_Adder_Revs'!G58 -> 2008 | H59: ='8. Funding_Adder_Revs'!H58 -> Q4 | J59: 34736.76911 | L59: ='5. SM_Rev_Reqt'!$K$58/12 -> 339.3787778 | M59: 35076.14789 | N59: ='8. Funding_Adder_Revs'!L58 -> 0.0335 | O59: 96.97348044 | P59: 2782.816307
B60: ='8. Funding_Adder_Revs'!B59 -> 2014 Q4 | C60: ='8. Funding_Adder_Revs'!C59 -> 0 | D60: ='8. Funding_Adder_Revs'!D59 -> 0 | F60: ='8. Funding_Adder_Revs'!F59 -> 2008-12-01 | G60: ='8. Funding_Adder_Revs'!G59 -> 2008 | H60: ='8. Funding_Adder_Revs'!H59 -> Q4 | J60: 35076.14789 | L60: ='5. SM_Rev_Reqt'!$K$58/12 -> 339.3787778 | M60: 35415.52667 | N60: ='8. Funding_Adder_Revs'!L59 -> 0.0335 | O60: 97.92091286 | P60: 2880.737219
F61: ='8. Funding_Adder_Revs'!F60 -> 2009-01-01 | G61: ='8. Funding_Adder_Revs'!G60 -> 2009 | H61: ='8. Funding_Adder_Revs'!H60 -> Q1 | J61: 35415.52667 | K61: 7926 | L61: ='5. SM_Rev_Reqt'!$M$58/12 -> 4448.965667 | M61: 47790.49233 | N61: ='8. Funding_Adder_Revs'!L60 -> 0.0245 | O61: 72.30670028 | P61: 2953.04392
F62: ='8. Funding_Adder_Revs'!F61 -> 2009-02-01 | G62: ='8. Funding_Adder_Revs'!G61 -> 2009 | H62: ='8. Funding_Adder_Revs'!H61 -> Q1 | J62: 47790.49233 | K62: 55404 | L62: ='5. SM_Rev_Reqt'!$M$58/12 -> 4448.965667 | M62: 107643.458 | N62: ='8. Funding_Adder_Revs'!L61 -> 0.0245 | O62: 97.57225518 | P62: 3050.616175
F63: ='8. Funding_Adder_Revs'!F62 -> 2009-03-01 | G63: ='8. Funding_Adder_Revs'!G62 -> 2009 | H63: ='8. Funding_Adder_Revs'!H62 -> Q1 | J63: 107643.458 | L63: ='5. SM_Rev_Reqt'!$M$58/12 -> 4448.965667 | M63: 112092.4237 | N63: ='8. Funding_Adder_Revs'!L62 -> 0.0245 | O63: 219.7720601 | P63: 3270.388235
F64: ='8. Funding_Adder_Revs'!F63 -> 2009-04-01 | G64: ='8. Funding_Adder_Revs'!G63 -> 2009 | H64: ='8. Funding_Adder_Revs'!H63 -> Q2 | J64: 112092.4237 | K64: 401.76 | L64: ='5. SM_Rev_Reqt'!$M$58/12 -> 4448.965667 | M64: 116943.1493 | N64: ='8. Funding_Adder_Revs'!L63 -> 0.01 | O64: 93.41035306 | P64: 3363.798588
F65: ='8. Funding_Adder_Revs'!F64 -> 2009-05-01 | G65: ='8. Funding_Adder_Revs'!G64 -> 2009 | H65: ='8. Funding_Adder_Revs'!H64 -> Q2 | J65: 116943.1493 | L65: ='5. SM_Rev_Reqt'!$M$58/12 -> 4448.965667 | M65: 121392.115 | N65: ='8. Funding_Adder_Revs'!L64 -> 0.01 | O65: 97.45262444 | P65: 3461.251212
F66: ='8. Funding_Adder_Revs'!F65 -> 2009-06-01 | G66: ='8. Funding_Adder_Revs'!G65 -> 2009 | H66: ='8. Funding_Adder_Revs'!H65 -> Q2 | J66: 121392.115 | L66: ='5. SM_Rev_Reqt'!$M$58/12 -> 4448.965667 | M66: 125841.0807 | N66: ='8. Funding_Adder_Revs'!L65 -> 0.01 | O66: 101.1600958 | P66: 3562.411308
F67: ='8. Funding_Adder_Revs'!F66 -> 2009-07-01 | G67: ='8. Funding_Adder_Revs'!G66 -> 2009 | H67: ='8. Funding_Adder_Revs'!H66 -> Q3 | J67: 125841.0807 | K67: 4133.68 | L67: ='5. SM_Rev_Reqt'!$M$58/12 -> 4448.965667 | M67: 134423.7263 | N67: ='8. Funding_Adder_Revs'!L66 -> 0.0055 | O67: 57.67716197 | P67: 3620.08847
F68: ='8. Funding_Adder_Revs'!F67 -> 2009-08-01 | G68: ='8. Funding_Adder_Revs'!G67 -> 2009 | H68: ='8. Funding_Adder_Revs'!H67 -> Q3 | J68: 134423.7263 | K68: 2428.16 | L68: ='5. SM_Rev_Reqt'!$M$58/12 -> 4448.965667 | M68: 141300.852 | N68: ='8. Funding_Adder_Revs'!L67 -> 0.0055 | O68: 61.61087457 | P68: 3681.699345
F69: ='8. Funding_Adder_Revs'!F68 -> 2009-09-01 | G69: ='8. Funding_Adder_Revs'!G68 -> 2009 | H69: ='8. Funding_Adder_Revs'!H68 -> Q3 | J69: 141300.852 | K69: 2329.48 | L69: ='5. SM_Rev_Reqt'!$M$58/12 -> 4448.965667 | M69: 148079.2977 | N69: ='8. Funding_Adder_Revs'!L68 -> 0.0055 | O69: 64.7628905 | P69: 3746.462235
F70: ='8. Funding_Adder_Revs'!F69 -> 2009-10-01 | G70: ='8. Funding_Adder_Revs'!G69 -> 2009 | H70: ='8. Funding_Adder_Revs'!H69 -> Q4 | J70: 148079.2977 | K70: 8398.68 | L70: ='5. SM_Rev_Reqt'!$M$58/12 -> 4448.965667 | M70: 160926.9433 | N70: ='8. Funding_Adder_Revs'!L69 -> 0.0055 | O70: 67.8696781 | P70: 3814.331913
F71: ='8. Funding_Adder_Revs'!F70 -> 2009-11-01 | G71: ='8. Funding_Adder_Revs'!G70 -> 2009 | H71: ='8. Funding_Adder_Revs'!H70 -> Q4 | J71: 160926.9433 | K71: 28000.05 | L71: ='5. SM_Rev_Reqt'!$M$58/12 -> 4448.965667 | M71: 193375.959 | N71: ='8. Funding_Adder_Revs'!L70 -> 0.0055 | O71: 73.75818236 | P71: 3888.090096
F72: ='8. Funding_Adder_Revs'!F71 -> 2009-12-01 | G72: ='8. Funding_Adder_Revs'!G71 -> 2009 | H72: ='8. Funding_Adder_Revs'!H71 -> Q4 | J72: 193375.959 | K72: 10021.71 | L72: ='5. SM_Rev_Reqt'!$M$58/12 -> 4448.965667 | M72: 207846.6347 | N72: ='8. Funding_Adder_Revs'!L71 -> 0.0055 | O72: 88.63064787 | P72: 3976.720744
F73: ='8. Funding_Adder_Revs'!F72 -> 2010-01-01 | G73: ='8. Funding_Adder_Revs'!G72 -> 2010 | H73: ='8. Funding_Adder_Revs'!H72 -> Q1 | J73: 207846.6347 | K73: 7958.95 | L73: ='5. SM_Rev_Reqt'!$O$58/12 -> 17080.70017 | M73: 232886.2848 | N73: ='8. Funding_Adder_Revs'!L72 -> 0.0055 | O73: 95.26304089 | P73: 4071.983785
F74: ='8. Funding_Adder_Revs'!F73 -> 2010-02-01 | G74: ='8. Funding_Adder_Revs'!G73 -> 2010 | H74: ='8. Funding_Adder_Revs'!H73 -> Q1 | J74: 232886.2848 | K74: 4978.58 | L74: ='5. SM_Rev_Reqt'!$O$58/12 -> 17080.70017 | M74: 254945.565 | N74: ='8. Funding_Adder_Revs'!L73 -> 0.0055 | O74: 106.7395472 | P74: 4178.723332
F75: ='8. Funding_Adder_Revs'!F74 -> 2010-03-01 | G75: ='8. Funding_Adder_Revs'!G74 -> 2010 | H75: ='8. Funding_Adder_Revs'!H74 -> Q1 | J75: 254945.565 | K75: 9438.31 | L75: ='5. SM_Rev_Reqt'!$O$58/12 -> 17080.70017 | M75: 281464.5752 | N75: ='8. Funding_Adder_Revs'!L74 -> 0.0055 | O75: 116.8500506 | P75: 4295.573382
F76: ='8. Funding_Adder_Revs'!F75 -> 2010-04-01 | G76: ='8. Funding_Adder_Revs'!G75 -> 2010 | H76: ='8. Funding_Adder_Revs'!H75 -> Q2 | J76: 281464.5752 | K76: 3689.99 | L76: ='5. SM_Rev_Reqt'!$O$58/12 -> 17080.70017 | M76: 302235.2653 | N76: ='8. Funding_Adder_Revs'!L75 -> 0.0055 | O76: 129.004597 | P76: 4424.577979
F77: ='8. Funding_Adder_Revs'!F76 -> 2010-05-01 | G77: ='8. Funding_Adder_Revs'!G76 -> 2010 | H77: ='8. Funding_Adder_Revs'!H76 -> Q2 | J77: 302235.2653 | K77: 11106.81 | L77: ='5. SM_Rev_Reqt'!$O$58/12 -> 17080.70017 | M77: 330422.7755 | N77: ='8. Funding_Adder_Revs'!L76 -> 0.0055 | O77: 138.5244966 | P77: 4563.102476
F78: ='8. Funding_Adder_Revs'!F77 -> 2010-06-01 | G78: ='8. Funding_Adder_Revs'!G77 -> 2010 | H78: ='8. Funding_Adder_Revs'!H77 -> Q2 | J78: 330422.7755 | K78: 7674.95 | L78: ='5. SM_Rev_Reqt'!$O$58/12 -> 17080.70017 | M78: 355178.4257 | N78: ='8. Funding_Adder_Revs'!L77 -> 0.0055 | O78: 151.4437721 | P78: 4714.546248
F79: ='8. Funding_Adder_Revs'!F78 -> 2010-07-01 | G79: ='8. Funding_Adder_Revs'!G78 -> 2010 | H79: ='8. Funding_Adder_Revs'!H78 -> Q3 | J79: 355178.4257 | K79: 8369.26 | L79: ='5. SM_Rev_Reqt'!$O$58/12 -> 17080.70017 | M79: 380628.3858 | N79: ='8. Funding_Adder_Revs'!L78 -> 0.0089 | O79: 263.423999 | P79: 4977.970247
F80: ='8. Funding_Adder_Revs'!F79 -> 2010-08-01 | G80: ='8. Funding_Adder_Revs'!G79 -> 2010 | H80: ='8. Funding_Adder_Revs'!H79 -> Q3 | J80: 380628.3858 | K80: 7123.06 | L80: ='5. SM_Rev_Reqt'!$O$58/12 -> 17080.70017 | M80: 404832.146 | N80: ='8. Funding_Adder_Revs'!L79 -> 0.0089 | O80: 282.2993862 | P80: 5260.269633
F81: ='8. Funding_Adder_Revs'!F80 -> 2010-09-01 | G81: ='8. Funding_Adder_Revs'!G80 -> 2010 | H81: ='8. Funding_Adder_Revs'!H80 -> Q3 | J81: 404832.146 | K81: 7779.83 | L81: ='5. SM_Rev_Reqt'!$O$58/12 -> 17080.70017 | M81: 429692.6762 | N81: ='8. Funding_Adder_Revs'!L80 -> 0.0089 | O81: 300.2505083 | P81: 5560.520142
F82: ='8. Funding_Adder_Revs'!F81 -> 2010-10-01 | G82: ='8. Funding_Adder_Revs'!G81 -> 2010 | H82: ='8. Funding_Adder_Revs'!H81 -> Q4 | J82: 429692.6762 | K82: 10611.72 | L82: ='5. SM_Rev_Reqt'!$O$58/12 -> 17080.70017 | M82: 457385.0963 | N82: ='8. Funding_Adder_Revs'!L81 -> 0.012 | O82: 429.6926762 | P82: 5990.212818
F83: ='8. Funding_Adder_Revs'!F82 -> 2010-11-01 | G83: ='8. Funding_Adder_Revs'!G82 -> 2010 | H83: ='8. Funding_Adder_Revs'!H82 -> Q4 | J83: 457385.0963 | K83: 7777.54 | L83: ='5. SM_Rev_Reqt'!$O$58/12 -> 17080.70017 | M83: 482243.3365 | N83: ='8. Funding_Adder_Revs'!L82 -> 0.012 | O83: 457.3850963 | P83: 6447.597914
F84: ='8. Funding_Adder_Revs'!F83 -> 2010-12-01 | G84: ='8. Funding_Adder_Revs'!G83 -> 2010 | H84: ='8. Funding_Adder_Revs'!H83 -> Q4 | J84: 482243.3365 | K84: 67238.43 | L84: ='5. SM_Rev_Reqt'!$O$58/12 -> 17080.70017 | M84: 566562.4667 | N84: ='8. Funding_Adder_Revs'!L83 -> 0.012 | O84: 482.2433365 | P84: 6929.841251
F85: ='8. Funding_Adder_Revs'!F84 -> 2011-01-01 | G85: ='8. Funding_Adder_Revs'!G84 -> 2011 | H85: ='8. Funding_Adder_Revs'!H84 -> Q1 | J85: 566562.4667 | K85: 16788.62 | L85: ='5. SM_Rev_Reqt'!$Q$58/12 -> 6823.346583 | M85: 590174.4332 | N85: ='8. Funding_Adder_Revs'!L84 -> 0.0147 | O85: 694.0390217 | P85: 7623.880272
F86: ='8. Funding_Adder_Revs'!F85 -> 2011-02-01 | G86: ='8. Funding_Adder_Revs'!G85 -> 2011 | H86: ='8. Funding_Adder_Revs'!H85 -> Q1 | J86: 590174.4332 | K86: 19512.63 | L86: ='5. SM_Rev_Reqt'!$Q$58/12 -> 6823.346583 | M86: 616510.4098 | N86: ='8. Funding_Adder_Revs'!L85 -> 0.0147 | O86: 722.9636807 | P86: 8346.843953
F87: ='8. Funding_Adder_Revs'!F86 -> 2011-03-01 | G87: ='8. Funding_Adder_Revs'!G86 -> 2011 | H87: ='8. Funding_Adder_Revs'!H86 -> Q1 | J87: 616510.4098 | K87: 24747.84 | L87: ='5. SM_Rev_Reqt'!$Q$58/12 -> 6823.346583 | M87: 648081.5964 | N87: ='8. Funding_Adder_Revs'!L86 -> 0.0147 | O87: 755.225252 | P87: 9102.069205
F88: ='8. Funding_Adder_Revs'!F87 -> 2011-04-01 | G88: ='8. Funding_Adder_Revs'!G87 -> 2011 | H88: ='8. Funding_Adder_Revs'!H87 -> Q2 | J88: 648081.5964 | K88: 20474.42 | L88: ='5. SM_Rev_Reqt'!$Q$58/12 -> 6823.346583 | M88: 675379.363 | N88: ='8. Funding_Adder_Revs'!L87 -> 0.0147 | O88: 793.8999556 | P88: 9895.969161
F89: ='8. Funding_Adder_Revs'!F88 -> 2011-05-01 | G89: ='8. Funding_Adder_Revs'!G88 -> 2011 | H89: ='8. Funding_Adder_Revs'!H88 -> Q2 | J89: 675379.363 | K89: 19074.57 | L89: ='5. SM_Rev_Reqt'!$Q$58/12 -> 6823.346583 | M89: 701277.2796 | N89: ='8. Funding_Adder_Revs'!L88 -> 0.0147 | O89: 827.3397197 | P89: 10723.30888
F90: ='8. Funding_Adder_Revs'!F89 -> 2011-06-01 | G90: ='8. Funding_Adder_Revs'!G89 -> 2011 | H90: ='8. Funding_Adder_Revs'!H89 -> Q2 | J90: 701277.2796 | K90: 24310.65 | L90: ='5. SM_Rev_Reqt'!$Q$58/12 -> 6823.346583 | M90: =J90+K90+L90 -> 732411.2762 | N90: ='8. Funding_Adder_Revs'!L89 -> 0.0147 | O90: =J90*N90/12 -> 859.0646675 | P90: 11582.37355
F91: ='8. Funding_Adder_Revs'!F90 -> 2011-07-01 | G91: ='8. Funding_Adder_Revs'!G90 -> 2011 | H91: ='8. Funding_Adder_Revs'!H90 -> Q3 | J91: =M90 -> 732411.2762 | K91: 15639.73 | L91: ='5. SM_Rev_Reqt'!$Q$58/12 -> 6823.346583 | M91: 754874.3527 | N91: ='8. Funding_Adder_Revs'!L90 -> 0.0147 | O91: 897.2038133 | P91: =O91+P90 -> 12479.57736
F92: ='8. Funding_Adder_Revs'!F91 -> 2011-08-01 | G92: ='8. Funding_Adder_Revs'!G91 -> 2011 | H92: ='8. Funding_Adder_Revs'!H91 -> Q3 | J92: 754874.3527 | K92: 31111.41 | L92: ='5. SM_Rev_Reqt'!$Q$58/12 -> 6823.346583 | M92: 792809.1093 | N92: ='8. Funding_Adder_Revs'!L91 -> 0.0147 | O92: 924.7210821 | P92: 13404.29844
F93: ='8. Funding_Adder_Revs'!F92 -> 2011-09-01 | G93: ='8. Funding_Adder_Revs'!G92 -> 2011 | H93: ='8. Funding_Adder_Revs'!H92 -> Q3 | J93: 792809.1093 | K93: 28574.36 | L93: ='5. SM_Rev_Reqt'!$Q$58/12 -> 6823.346583 | M93: 828206.8159 | N93: ='8. Funding_Adder_Revs'!L92 -> 0.0147 | O93: 971.1911589 | P93: 14375.4896
F94: ='8. Funding_Adder_Revs'!F93 -> 2011-10-01 | G94: ='8. Funding_Adder_Revs'!G93 -> 2011 | H94: ='8. Funding_Adder_Revs'!H93 -> Q4 | J94: 828206.8159 | K94: 25694.93 | L94: ='5. SM_Rev_Reqt'!$Q$58/12 -> 6823.346583 | M94: 860725.0925 | N94: ='8. Funding_Adder_Revs'!L93 -> 0.0147 | O94: 1014.553349 | P94: 15390.04295
F95: ='8. Funding_Adder_Revs'!F94 -> 2011-11-01 | G95: ='8. Funding_Adder_Revs'!G94 -> 2011 | H95: ='8. Funding_Adder_Revs'!H94 -> Q4 | J95: 860725.0925 | K95: 42092.9 | L95: ='5. SM_Rev_Reqt'!$Q$58/12 -> 6823.346583 | M95: 909641.3391 | N95: ='8. Funding_Adder_Revs'!L94 -> 0.0147 | O95: 1054.388238 | P95: 16444.43119
F96: ='8. Funding_Adder_Revs'!F95 -> 2011-12-01 | G96: ='8. Funding_Adder_Revs'!G95 -> 2011 | H96: ='8. Funding_Adder_Revs'!H95 -> Q4 | J96: 909641.3391 | K96: 25066.72 | L96: ='5. SM_Rev_Reqt'!$Q$58/12 -> 6823.346583 | M96: 941531.4057 | N96: ='8. Funding_Adder_Revs'!L95 -> 0.0147 | O96: 1114.31064 | P96: 17558.74183
F97: ='8. Funding_Adder_Revs'!F96 -> 2012-01-01 | G97: ='8. Funding_Adder_Revs'!G96 -> 2012 | H97: ='8. Funding_Adder_Revs'!H96 -> Q1 | J97: 941531.4057 | K97: 32037.78 | L97: ='5. SM_Rev_Reqt'!$S$58/12 -> 13441.25711 | M97: 987010.4428 | N97: ='8. Funding_Adder_Revs'!L96 -> 0.0147 | O97: 1153.375972 | P97: 18712.1178
F98: ='8. Funding_Adder_Revs'!F97 -> 2012-02-01 | G98: ='8. Funding_Adder_Revs'!G97 -> 2012 | H98: ='8. Funding_Adder_Revs'!H97 -> Q1 | J98: 987010.4428 | K98: 36289.27 | L98: ='5. SM_Rev_Reqt'!$S$58/12 -> 13441.25711 | M98: 1036740.97 | N98: ='8. Funding_Adder_Revs'!L97 -> 0.0147 | O98: 1209.087792 | P98: 19921.20559
F99: ='8. Funding_Adder_Revs'!F98 -> 2012-03-01 | G99: ='8. Funding_Adder_Revs'!G98 -> 2012 | H99: ='8. Funding_Adder_Revs'!H98 -> Q1 | J99: 1036740.97 | K99: 15566.02 | L99: ='5. SM_Rev_Reqt'!$S$58/12 -> 13441.25711 | M99: 1065748.247 | N99: ='8. Funding_Adder_Revs'!L98 -> 0.0147 | O99: 1270.007688 | P99: 21191.21328
F100: ='8. Funding_Adder_Revs'!F99 -> 2012-04-01 | G100: ='8. Funding_Adder_Revs'!G99 -> 2012 | H100: ='8. Funding_Adder_Revs'!H99 -> Q2 | J100: 1065748.247 | K100: 22680.22 | L100: ='5. SM_Rev_Reqt'!$S$58/12 -> 13441.25711 | M100: 1101869.724 | N100: ='8. Funding_Adder_Revs'!L99 -> 0.0147 | O100: 1305.541603 | P100: 22496.75489
F101: ='8. Funding_Adder_Revs'!F100 -> 2012-05-01 | G101: ='8. Funding_Adder_Revs'!G100 -> 2012 | H101: ='8. Funding_Adder_Revs'!H100 -> Q2 | J101: 1101869.724 | K101: 27064.76 | L101: ='5. SM_Rev_Reqt'!$S$58/12 -> 13441.25711 | M101: 1142375.741 | N101: ='8. Funding_Adder_Revs'!L100 -> 0.0147 | O101: 1349.790412 | P101: 23846.5453
F102: ='8. Funding_Adder_Revs'!F101 -> 2012-06-01 | G102: ='8. Funding_Adder_Revs'!G101 -> 2012 | H102: ='8. Funding_Adder_Revs'!H101 -> Q2 | J102: 1142375.741 | K102: 21541.21 | L102: ='5. SM_Rev_Reqt'!$S$58/12 -> 13441.25711 | M102: 1177358.208 | N102: ='8. Funding_Adder_Revs'!L101 -> 0.0147 | O102: 1399.410283 | P102: 25245.95558
F103: ='8. Funding_Adder_Revs'!F102 -> 2012-07-01 | G103: ='8. Funding_Adder_Revs'!G102 -> 2012 | H103: ='8. Funding_Adder_Revs'!H102 -> Q3 | J103: 1177358.208 | K103: 19733.26 | L103: ='5. SM_Rev_Reqt'!$S$58/12 -> 13441.25711 | M103: 1210532.725 | N103: ='8. Funding_Adder_Revs'!L102 -> 0.0147 | O103: 1442.263805 | P103: 26688.21939
F104: ='8. Funding_Adder_Revs'!F103 -> 2012-08-01 | G104: ='8. Funding_Adder_Revs'!G103 -> 2012 | H104: ='8. Funding_Adder_Revs'!H103 -> Q3 | J104: 1210532.725 | K104: 18697.75 | L104: ='5. SM_Rev_Reqt'!$S$58/12 -> 13441.25711 | M104: 1242671.733 | N104: ='8. Funding_Adder_Revs'!L103 -> 0.0147 | O104: 1482.902589 | P104: 28171.12197
F105: ='8. Funding_Adder_Revs'!F104 -> 2012-09-01 | G105: ='8. Funding_Adder_Revs'!G104 -> 2012 | H105: ='8. Funding_Adder_Revs'!H104 -> Q3 | J105: 1242671.733 | K105: 22112.06 | L105: ='5. SM_Rev_Reqt'!$S$58/12 -> 13441.25711 | M105: 1278225.05 | N105: ='8. Funding_Adder_Revs'!L104 -> 0.0147 | O105: 1522.272872 | P105: 29693.39485
F106: ='8. Funding_Adder_Revs'!F105 -> 2012-10-01 | G106: ='8. Funding_Adder_Revs'!G105 -> 2012 | H106: ='8. Funding_Adder_Revs'!H105 -> Q4 | J106: 1278225.05 | K106: 34715.45 | L106: ='5. SM_Rev_Reqt'!$S$58/12 -> 13441.25711 | M106: 1326381.757 | N106: ='8. Funding_Adder_Revs'!L105 -> 0.0147 | O106: 1565.825686 | P106: 31259.22053
F107: ='8. Funding_Adder_Revs'!F106 -> 2012-11-01 | G107: ='8. Funding_Adder_Revs'!G106 -> 2012 | H107: ='8. Funding_Adder_Revs'!H106 -> Q4 | J107: 1326381.757 | K107: 38943.37 | L107: ='5. SM_Rev_Reqt'!$S$58/12 -> 13441.25711 | M107: 1378766.384 | N107: ='8. Funding_Adder_Revs'!L106 -> 0.0147 | O107: 1624.817652 | P107: 32884.03818
F108: ='8. Funding_Adder_Revs'!F107 -> 2012-12-01 | G108: ='8. Funding_Adder_Revs'!G107 -> 2012 | H108: ='8. Funding_Adder_Revs'!H107 -> Q4 | J108: 1378766.384 | K108: 27045.3 | L108: ='5. SM_Rev_Reqt'!$S$58/12 -> 13441.25711 | M108: 1419252.941 | N108: ='8. Funding_Adder_Revs'!L107 -> 0.0147 | O108: 1688.98882 | P108: 34573.027
F109: ='8. Funding_Adder_Revs'!F108 -> 2013-01-01 | G109: ='8. Funding_Adder_Revs'!G108 -> 2013 | H109: ='8. Funding_Adder_Revs'!H108 -> Q1 | J109: =M108 -> 1419252.941 | K109: 18948.89 | L109: ='5. SM_Rev_Reqt'!$U$58/12 -> 15791.31558 | M109: =J109+K109+L109 -> 1453993.147 | N109: ='8. Funding_Adder_Revs'!L108 -> 0.0147 | O109: =J109*N109/12 -> 1738.584853 | P109: =O109+P108 -> 36311.61186
F110: ='8. Funding_Adder_Revs'!F109 -> 2013-02-01 | G110: ='8. Funding_Adder_Revs'!G109 -> 2013 | H110: ='8. Funding_Adder_Revs'!H109 -> Q1 | J110: 1453993.147 | K110: 23926.64 | L110: ='5. SM_Rev_Reqt'!$U$58/12 -> 15791.31558 | M110: 1493711.102 | N110: ='8. Funding_Adder_Revs'!L109 -> 0.0147 | O110: 1781.141605 | P110: 38092.75346
F111: ='8. Funding_Adder_Revs'!F110 -> 2013-03-01 | G111: ='8. Funding_Adder_Revs'!G110 -> 2013 | H111: ='8. Funding_Adder_Revs'!H110 -> Q1 | J111: 1493711.102 | K111: 28597.56 | L111: ='5. SM_Rev_Reqt'!$U$58/12 -> 15791.31558 | M111: 1538099.978 | N111: ='8. Funding_Adder_Revs'!L110 -> 0.0147 | O111: 1829.7961 | P111: 39922.54956
F112: ='8. Funding_Adder_Revs'!F111 -> 2013-04-01 | G112: ='8. Funding_Adder_Revs'!G111 -> 2013 | H112: ='8. Funding_Adder_Revs'!H111 -> Q2 | J112: 1538099.978 | K112: 28611.87 | L112: ='5. SM_Rev_Reqt'!$U$58/12 -> 15791.31558 | M112: 1582503.163 | N112: ='8. Funding_Adder_Revs'!L111 -> 0.0147 | O112: 1884.172473 | P112: 41806.72203
F113: ='8. Funding_Adder_Revs'!F112 -> 2013-05-01 | G113: ='8. Funding_Adder_Revs'!G112 -> 2013 | H113: ='8. Funding_Adder_Revs'!H112 -> Q2 | J113: 1582503.163 | K113: 27234.11 | L113: ='5. SM_Rev_Reqt'!$U$58/12 -> 15791.31558 | M113: 1625528.589 | N113: ='8. Funding_Adder_Revs'!L112 -> 0.0147 | O113: 1938.566375 | P113: 43745.28841
F114: ='8. Funding_Adder_Revs'!F113 -> 2013-06-01 | G114: ='8. Funding_Adder_Revs'!G113 -> 2013 | H114: ='8. Funding_Adder_Revs'!H113 -> Q2 | J114: 1625528.589 | K114: 27594.81 | L114: ='5. SM_Rev_Reqt'!$U$58/12 -> 15791.31558 | M114: 1668914.715 | N114: ='8. Funding_Adder_Revs'!L113 -> 0.0147 | O114: 1991.272521 | P114: 45736.56093
F115: ='8. Funding_Adder_Revs'!F114 -> 2013-07-01 | G115: ='8. Funding_Adder_Revs'!G114 -> 2013 | H115: ='8. Funding_Adder_Revs'!H114 -> Q3 | J115: 1668914.715 | K115: 31178.51 | L115: ='5. SM_Rev_Reqt'!$U$58/12 -> 15791.31558 | M115: 1715884.54 | N115: ='8. Funding_Adder_Revs'!L114 -> 0.0147 | O115: 2044.420525 | P115: 47780.98146
F116: ='8. Funding_Adder_Revs'!F115 -> 2013-08-01 | G116: ='8. Funding_Adder_Revs'!G115 -> 2013 | H116: ='8. Funding_Adder_Revs'!H115 -> Q3 | J116: 1715884.54 | K116: 27849.9 | L116: ='5. SM_Rev_Reqt'!$U$58/12 -> 15791.31558 | M116: 1759525.756 | N116: ='8. Funding_Adder_Revs'!L115 -> 0.0147 | O116: 2101.958562 | P116: 49882.94002
F117: ='8. Funding_Adder_Revs'!F116 -> 2013-09-01 | G117: ='8. Funding_Adder_Revs'!G116 -> 2013 | H117: ='8. Funding_Adder_Revs'!H116 -> Q3 | J117: 1759525.756 | K117: 27849.9 | L117: ='5. SM_Rev_Reqt'!$U$58/12 -> 15791.31558 | M117: 1803166.971 | N117: ='8. Funding_Adder_Revs'!L116 -> 0.0147 | O117: 2155.419051 | P117: 52038.35907
F118: ='8. Funding_Adder_Revs'!F117 -> 2013-10-01 | G118: ='8. Funding_Adder_Revs'!G117 -> 2013 | H118: ='8. Funding_Adder_Revs'!H117 -> Q4 | J118: 1803166.971 | K118: 31011.1 | L118: ='5. SM_Rev_Reqt'!$U$58/12 -> 15791.31558 | M118: 1849969.387 | N118: ='8. Funding_Adder_Revs'!L117 -> 0.0147 | O118: 2208.87954 | P118: 54247.23861
F119: ='8. Funding_Adder_Revs'!F118 -> 2013-11-01 | G119: ='8. Funding_Adder_Revs'!G118 -> 2013 | H119: ='8. Funding_Adder_Revs'!H118 -> Q4 | J119: 1849969.387 | K119: 27849.9 | L119: ='5. SM_Rev_Reqt'!$U$58/12 -> 15791.31558 | M119: 1893610.602 | N119: ='8. Funding_Adder_Revs'!L118 -> 0.0147 | O119: 2266.212499 | P119: 56513.45111
F120: ='8. Funding_Adder_Revs'!F119 -> 2013-12-01 | G120: ='8. Funding_Adder_Revs'!G119 -> 2013 | H120: ='8. Funding_Adder_Revs'!H119 -> Q4 | J120: 1893610.602 | K120: 43055 | L120: ='5. SM_Rev_Reqt'!$U$58/12 -> 15791.31558 | M120: 1952456.918 | N120: ='8. Funding_Adder_Revs'!L119 -> 0.0147 | O120: 2319.672988 | P120: 58833.1241
F121: ='8. Funding_Adder_Revs'!F120 -> 2014-01-01 | G121: ='8. Funding_Adder_Revs'!G120 -> 2014 | H121: ='8. Funding_Adder_Revs'!H120 -> Q1 | J121: =M120 -> 1952456.918 | K121: 31011.1 | L121: ='5. SM_Rev_Reqt'!$W$58/12 -> 11379.21844 | M121: =J121+K121+L121 -> 1994847.236 | N121: ='8. Funding_Adder_Revs'!L120 -> 0.0147 | O121: =J121*N121/12 -> 2391.759725 | P121: =O121+P120 -> 61224.88382
F122: ='8. Funding_Adder_Revs'!F121 -> 2014-02-01 | G122: ='8. Funding_Adder_Revs'!G121 -> 2014 | H122: ='8. Funding_Adder_Revs'!H121 -> Q1 | J122: 1994847.236 | K122: 27849.9 | L122: ='5. SM_Rev_Reqt'!$W$58/12 -> 11379.21844 | M122: 2034076.355 | N122: ='8. Funding_Adder_Revs'!L121 -> 0.0147 | O122: 2443.687865 | P122: 63668.57168
F123: ='8. Funding_Adder_Revs'!F122 -> 2014-03-01 | G123: ='8. Funding_Adder_Revs'!G122 -> 2014 | H123: ='8. Funding_Adder_Revs'!H122 -> Q1 | J123: 2034076.355 | K123: 27849.9 | L123: ='5. SM_Rev_Reqt'!$W$58/12 -> 11379.21844 | M123: 2073305.473 | N123: ='8. Funding_Adder_Revs'!L122 -> 0 | O123: 0 | P123: 63668.57168
F124: ='8. Funding_Adder_Revs'!F123 -> 2014-04-01 | G124: ='8. Funding_Adder_Revs'!G123 -> 2014 | H124: ='8. Funding_Adder_Revs'!H123 -> Q2 | J124: 2073305.473 | K124: 31011.1 | L124: ='5. SM_Rev_Reqt'!$W$58/12 -> 11379.21844 | M124: 2115695.792 | N124: ='8. Funding_Adder_Revs'!L123 -> 0 | O124: 0 | P124: 63668.57168
F125: ='8. Funding_Adder_Revs'!F124 -> 2014-05-01 | G125: ='8. Funding_Adder_Revs'!G124 -> 2014 | H125: ='8. Funding_Adder_Revs'!H124 -> Q2 | J125: 2115695.792 | K125: 27849.9 | L125: ='5. SM_Rev_Reqt'!$W$58/12 -> 11379.21844 | M125: 2154924.91 | N125: ='8. Funding_Adder_Revs'!L124 -> 0 | O125: 0 | P125: 63668.57168
F126: ='8. Funding_Adder_Revs'!F125 -> 2014-06-01 | G126: ='8. Funding_Adder_Revs'!G125 -> 2014 | H126: ='8. Funding_Adder_Revs'!H125 -> Q2 | J126: 2154924.91 | K126: 27849.9 | L126: ='5. SM_Rev_Reqt'!$W$58/12 -> 11379.21844 | M126: 2194154.029 | N126: ='8. Funding_Adder_Revs'!L125 -> 0 | O126: 0 | P126: 63668.57168
F127: ='8. Funding_Adder_Revs'!F126 -> 2014-07-01 | G127: ='8. Funding_Adder_Revs'!G126 -> 2014 | H127: ='8. Funding_Adder_Revs'!H126 -> Q3 | J127: 2194154.029 | K127: 31011.1 | L127: ='5. SM_Rev_Reqt'!$W$58/12 -> 11379.21844 | M127: 2236544.347 | N127: ='8. Funding_Adder_Revs'!L126 -> 0 | O127: 0 | P127: 63668.57168
F128: ='8. Funding_Adder_Revs'!F127 -> 2014-08-01 | G128: ='8. Funding_Adder_Revs'!G127 -> 2014 | H128: ='8. Funding_Adder_Revs'!H127 -> Q3 | J128: 2236544.347 | K128: 27849.9 | L128: ='5. SM_Rev_Reqt'!$W$58/12 -> 11379.21844 | M128: 2275773.466 | N128: ='8. Funding_Adder_Revs'!L127 -> 0 | O128: 0 | P128: 63668.57168
F129: ='8. Funding_Adder_Revs'!F128 -> 2014-09-01 | G129: ='8. Funding_Adder_Revs'!G128 -> 2014 | H129: ='8. Funding_Adder_Revs'!H128 -> Q3 | J129: 2275773.466 | K129: 27849.9 | L129: ='5. SM_Rev_Reqt'!$W$58/12 -> 11379.21844 | M129: 2315002.584 | N129: ='8. Funding_Adder_Revs'!L128 -> 0 | O129: 0 | P129: 63668.57168
F130: ='8. Funding_Adder_Revs'!F129 -> 2014-10-01 | G130: ='8. Funding_Adder_Revs'!G129 -> 2014 | H130: ='8. Funding_Adder_Revs'!H129 -> Q4 | J130: 2315002.584 | K130: 31011.1 | L130: ='5. SM_Rev_Reqt'!$W$58/12 -> 11379.21844 | M130: 2357392.902 | N130: ='8. Funding_Adder_Revs'!L129 -> 0 | O130: 0 | P130: 63668.57168
F131: ='8. Funding_Adder_Revs'!F130 -> 2014-11-01 | G131: ='8. Funding_Adder_Revs'!G130 -> 2014 | H131: ='8. Funding_Adder_Revs'!H130 -> Q4 | J131: 2357392.902 | K131: 27849.9 | L131: ='5. SM_Rev_Reqt'!$W$58/12 -> 11379.21844 | M131: 2396622.021 | N131: ='8. Funding_Adder_Revs'!L130 -> 0 | O131: 0 | P131: 63668.57168
F132: ='8. Funding_Adder_Revs'!F131 -> 2014-12-01 | G132: ='8. Funding_Adder_Revs'!G131 -> 2014 | H132: ='8. Funding_Adder_Revs'!H131 -> Q4 | J132: 2396622.021 | K132: 31011.1 | L132: ='5. SM_Rev_Reqt'!$W$58/12 -> 11379.21844 | M132: 2439012.339 | N132: ='8. Funding_Adder_Revs'!L131 -> 0 | O132: 0 | P132: 63668.57168
K134: =SUM(K25:K132) -> 1602232.17 | L134: =SUM(L25:L132) -> 836780.1693 | M134: =K134+L134 -> 2439012.339 | O134: =SUM(O25:O132) -> 63668.57168 | P134: =P132 -> 63668.57168

Sheet 8B. Opex_Interest_annual
B13: This worksheet calculates the interest on OM&A and amortization/depreciation expense, in the absence of monthly data.
B21: Year | D21: OM&A | F21: Amortization Expense | H21: Cumulative OM&A and Amortization Expense | J21: Average Cumulative OM&A and Amortization Expense | L21: Average Annual Prescribed Interest Rate for Deferral and Variance Accounts (from Sheets 8A and 8B) | N21: Simple Interest on OM&A and Amortization Expenses
D22: (from Sheet 5) | F22: (from Sheet 5)
B23: 2006 | D23: ='5. SM_Rev_Reqt'!G50 -> 660 | F23: ='5. SM_Rev_Reqt'!G58 -> 1546.854333 | H23: =D23+F23 -> 2206.854333 | J23: =H23/2 -> 1103.427167 | L23: =AVERAGE('8A. Opex_Interest_monthly'!$C$26:$C$28,'8A. Opex_Interest_monthly'!$C$26) -> 0.04365 | N23: =J23*L23 -> 48.16459583
B24: 2007 | D24: ='5. SM_Rev_Reqt'!I50 -> 119 | F24: ='5. SM_Rev_Reqt'!I58 -> 3583.127 | H24: =H23+D24+F24 -> 5908.981333 | J24: =(H24+H23)/2 -> 4057.917833 | L24: =AVERAGE('8A. Opex_Interest_monthly'!$C$29:$C$32) -> 0.047275 | N24: 191.8380656
B25: 2008 | D25: ='5. SM_Rev_Reqt'!K50 -> 0 | F25: ='5. SM_Rev_Reqt'!K58 -> 4072.545333 | H25: 9981.526667 | J25: 7945.254 | L25: =AVERAGE('8A. Opex_Interest_monthly'!$C$33:$C$36) -> 0.0398 | N25: 316.2211092
B26: 2009 | D26: ='5. SM_Rev_Reqt'!M50 -> 119043.52 | F26: ='5. SM_Rev_Reqt'!M58 -> 53387.588 | H26: 182412.6347 | J26: 96197.08067 | L26: =AVERAGE('8A. Opex_Interest_monthly'!$C$37:$C$40) -> 0.011375 | N26: 1094.241793
B27: 2010 | D27: ='5. SM_Rev_Reqt'!O50 -> 153747.43 | F27: ='5. SM_Rev_Reqt'!O58 -> 204968.402 | H27: 541128.4667 | J27: 361770.5507 | L27: =AVERAGE('8A. Opex_Interest_monthly'!$C$41:$C$44) -> 0.007975 | N27: 2885.120142
B28: 2011 | D28: ='5. SM_Rev_Reqt'!Q50 -> 293088.78 | F28: ='5. SM_Rev_Reqt'!Q58 -> 81880.159 | H28: 916097.4057 | J28: 728612.9362 | L28: =AVERAGE('8A. Opex_Interest_monthly'!$C$45:$C$48) -> 0.0147 | N28: 10710.61016
B29: 2012 | D29: ='5. SM_Rev_Reqt'!S50 -> 316426.45 | F29: ='5. SM_Rev_Reqt'!S58 -> 161295.0853 | H29: 1393818.941 | J29: 1154958.173 | L29: =AVERAGE('8A. Opex_Interest_monthly'!N97:N108) -> 0.0147 | N29: 16977.88515
B30: 2013 | D30: ='5. SM_Rev_Reqt'!U50 -> 343708.19 | F30: ='5. SM_Rev_Reqt'!U58 -> 189495.787 | H30: 1927022.918 | J30: 1660420.93 | L30: =AVERAGE('8A. Opex_Interest_monthly'!N109:N120) -> 0.0147 | N30: 24408.18766
B31: 2014 | D31: ='5. SM_Rev_Reqt'!W50 -> 350004.8 | F31: ='5. SM_Rev_Reqt'!W58 -> 136550.6213 | H31: =H30+D31+F31 -> 2413578.339 | J31: =(H31+H30)/2 -> 2170300.629 | L31: =AVERAGE('8A. Opex_Interest_monthly'!N121:N132) -> 0.00245 | N31: =J31*L31 -> 5317.23654
B33: Cumulative Interest to 2012 | N33: =SUM(N23:N29) -> 32224.08101
B34: Cumulative Interest to 2013 | N34: =SUM(N23:N30) -> 56632.26868
B35: Cumulative Interest to 2014 | N35: =SUM(N23:N31) -> 61949.50522

Sheet 9. SMFA_SMDR_SMIRR
B14: This worksheet calculates the Smart Meter Disposition Rider and the Smart Meter Incremental Revenue Requirement Rate Rider, if applicable. This worksheet also calculates any new Smart Meter Funding Adder that a distributor may wish to request. However, please note that in many 2011 IRM decisions, the Board noted that current funding adders will cease on April 30, 2011 and that the Board's expectation is that distributors will file for a final review of prudence at the earliest opportunity. The Board also noted that the SMFA is a tool designed to provide advance funding and to mitigate the anticipated rate impact of smart meter costs when recovery of those costs is approved by the Board. The Board observed that the SMFA was not intended to be compensatory (return on and of capital) on a cumulative basis over the term the SMFA was in effect. The SMFA was initially designed to fund future investment, and not fully fund prior capital investment. Distributors that seek a new SMFA should provide evidence to support its proposal. This would include documentation of where the distributor is with respect to its smart meter deployment program, and reasons as to why the distributor's circumstances are such that continuation of the SMFA is warranted. Press the "UPDATE WORKSHEET" button after choosing the applicable adders/riders.
B20: Check if applicable
E22: Smart Meter Funding Adder (SMFA)
C24: X | E24: Smart Meter Disposition Rider (SMDR) | G24: The SMDR is calculated based on costs to December 31, 2011
C26: X | E26: Smart Meter Incremental Revenue Requirement Rate Rider (SMIRR) | G26: The SMIRR is calculated based on the incremental revenue requirement associated with the recovery of capital related costs to December 31, 2012 and associated OM&A.
G28: 2006 | I28: 2007 | K28: 2008 | M28: 2009 | O28: 2010 | Q28: 2011 | S28: 2012 | U28: 2013 | W28: 2014 | Y28: Total
C30: Deferred and forecasted Smart Meter Incremental Revenue Requirement (from Sheet 5) | G30: ='5. SM_Rev_Reqt'!G70 -> 4556.641411 | I30: ='5. SM_Rev_Reqt'!I70 -> 8856.754975 | K30: ='5. SM_Rev_Reqt'!K70 -> 9478.294856 | M30: ='5. SM_Rev_Reqt'!M70 -> 248082.4509 | O30: ='5. SM_Rev_Reqt'!O70 -> 597058.25 | Q30: ='5. SM_Rev_Reqt'!Q70 -> 407830.1909 | S30: ='5. SM_Rev_Reqt'!S70 -> 568504.1393 | U30: ='5. SM_Rev_Reqt'!U70 -> 652173.8798 | W30: ='5. SM_Rev_Reqt'!W70 -> 581899.9115 | Y30: =SUM(G30:U30) -> 2496540.602
C32: Interest on Deferred and forecasted OM&A and Amortization Expense (Sheet 8A/8B) | G32: =IF($C35="X",G35,IF($C37="X",G37,0)) -> 180.5527482 | I32: =IF($C35="X",I35,IF($C37="X",I37,0)) -> 1386.207089 | K32: =IF($C35="X",K35,IF($C37="X",K37,0)) -> 1313.977382 | M32: =IF($C35="X",M35,IF($C37="X",M37,0)) -> 1095.983524 | O32: =IF($C35="X",O35,IF($C37="X",O37,0)) -> 2953.120507 | Q32: =IF($C35="X",Q35,IF($C37="X",Q37,0)) -> 10628.90058 | S32: =IF($C35="X",S35,IF($C37="X",S37,0)) -> 17014.28517 | U32: =IF($C35="X",U35,IF($C37="X",U37,0)) -> 24260.09709 | Y32: =SUM(G32:U32) -> 58833.1241
C33: (Check one of the boxes below)
C35: X | E35: Sheet 8A (Interest calculated on monthly balances) | G35: =IF($C35="X",SUM('8A. Opex_Interest_monthly'!O25:O36),"") -> 180.5527482 | I35: =IF($C35="X",SUM('8A. Opex_Interest_monthly'!O37:O48),"") -> 1386.207089 | K35: =IF($C35="X",SUM('8A. Opex_Interest_monthly'!O49:O60),"") -> 1313.977382 | M35: =IF($C35="X",SUM('8A. Opex_Interest_monthly'!O61:O72),"") -> 1095.983524 | O35: =IF($C35="X",SUM('8A. Opex_Interest_monthly'!O73:O84),"") -> 2953.120507 | Q35: =IF($C35="X",SUM('8A. Opex_Interest_monthly'!O85:O96),"") -> 10628.90058 | S35: =IF($C35="X",SUM('8A. Opex_Interest_monthly'!O97:O108),"") -> 17014.28517 | U35: =IF($C35="X",SUM('8A. Opex_Interest_monthly'!O109:O120),"") -> 24260.09709 | W35: =IF($C35="X",SUM('8A. Opex_Interest_monthly'!O121:O132),"") -> 4835.447589 | Y35: =IF($C$35="X",SUM(G35:U35),"") -> 58833.1241
E37: Sheet 8B (Interest calculated on average annual balances) | G37: =IF($C37="X",'8B. Opex_Interest_annual'!N23,"") ->  | I37: =IF($C37="X",'8B. Opex_Interest_annual'!N24,"") ->  | K37: =IF($C37="X",'8B. Opex_Interest_annual'!N25,"") ->  | M37: =IF($C37="X",'8B. Opex_Interest_annual'!N26,"") ->  | O37: =IF($C37="X",'8B. Opex_Interest_annual'!N27,"") ->  | Q37: =IF($C37="X",'8B. Opex_Interest_annual'!N28,"") ->  | S37: =IF($C37="X",'8B. Opex_Interest_annual'!N29,"") ->  | U37: =IF($C37="X",'8B. Opex_Interest_annual'!N30,"") ->  | W37: =IF($C37="X",'8B. Opex_Interest_annual'!N31,"") ->  | Y37: =IF($C$37="X",SUM(G37:U37),"") -> 
C40: SMFA Revenues (from Sheet 8) | G40: =SUM('8. Funding_Adder_Revs'!K24:K35) -> 87707.5 | I40: =SUM('8. Funding_Adder_Revs'!K36:K47) -> 159738.28 | K40: =SUM('8. Funding_Adder_Revs'!K48:K59) -> 160789.69 | M40: =SUM('8. Funding_Adder_Revs'!K60:K71) -> 427293.24 | O40: =SUM('8. Funding_Adder_Revs'!K72:K83) -> 610416 | Q40: =SUM('8. Funding_Adder_Revs'!K84:K95) -> 604165 | S40: =SUM('8. Funding_Adder_Revs'!K96:K107) -> 251530 | U40: =SUM('8. Funding_Adder_Revs'!K108:K119) -> 0 | W40: =SUM('8. Funding_Adder_Revs'!K120:K131) -> 0 | Y40: =SUM(G40:W40) -> 2301639.71
C42: SMFA Interest (from Sheet 8) | G42: =SUM('8. Funding_Adder_Revs'!M24:M35) -> 829.7 | I42: =SUM('8. Funding_Adder_Revs'!M36:M47) -> 7670.62 | K42: =SUM('8. Funding_Adder_Revs'!M48:M59) -> 12458.35 | M42: =SUM('8. Funding_Adder_Revs'!M60:M71) -> 5661.59 | O42: =SUM('8. Funding_Adder_Revs'!M72:M83) -> 9355.64 | Q42: =SUM('8. Funding_Adder_Revs'!M84:M95) -> 25325.17 | S42: =SUM('8. Funding_Adder_Revs'!M96:M107) -> 32910.01 | U42: =SUM('8. Funding_Adder_Revs'!M108:M119) -> 33834.12 | W42: =SUM('8. Funding_Adder_Revs'!M120:M131) -> 5639.02 | Y42: =SUM(G42:W42) -> 133684.22
C44: Net Deferred Revenue Requirement | G44: =(G30+G32)-(G40+G42) -> -83800.00584 | I44: =(I30+I32)-(I40+I42) -> -157165.9379 | K44: =(K30+K32)-(K40+K42) -> -162455.7678 | M44: =(M30+M32)-(M40+M42) -> -183776.3955 | O44: =(O30+O32)-(O40+O42) -> -19760.26947 | Q44: =(Q30+Q32)-(Q40+Q42) -> -211031.0785 | S44: =(S30+S32)-(S40+S42) -> 301078.4145 | U44: =(U30+U32)-(U40+U42) -> 642599.8568 | W44: =(W30+W32)-(W40+W42) -> 576260.8915 | Y44: =(Y30+Y32)-(Y40+Y42) -> 120049.7963
C46: Number of Metered Customers (average for 2014 test year) | W46: ='2. Smart_Meter_Costs'!Y29 -> 51063
D47: - Number of metered customers for which smart meter were deployed as part of program). Residential and GS < 50 kW customer classes and any other metered classes involved (e.g. GS 50 to 4999 kW for which interval meters were upgraded to utilize AMI and ODS assets)
C49: Calculation of Smart Meter Funding Adder (per metered customer per month)
D51: Net Deferred Revenues | F51: May 1, 2006 to December 31, 2013 | G51: =Y44 -> 120049.7963
D53: SMFA | F53: May 1, 2014 to April 30, 201X | G53: =IF(W46=0,"",ROUND(U44/(W46*12),2)) -> 1.05
D55: Check: Forecasted SMFA Revenues for 2014 test year | G55: =IF(W46=0,"",G53*W46*12) -> 643393.8
C57: Calculation of Smart Meter Disposition Rider (per metered customer per month)
D59: Years for collection or refunding | G59: =14/12 -> 1.166666667
D61: Deferred Incremental Revenue Requirement from 2006 to December 31, 2013 | G61: =SUM(G30:U30)+SUM(G32:U32) -> 2555373.726
E62: plus Interest on OM&A and Amortization
D63: SMFA Revenues collected from 2006 to 2014 test year (inclusive) | G63: =Y40+SUM(G42:W42) -> 2435323.93
E64: Plus Simple Interest on SMFA Revenues
D65: Net Deferred Revenue Requirement | G65: =G61-G63 -> 120049.7963
D67: SMDR | F67: March 1, 2014 to April 30, 2015 | G67: =IF(W46=0,"",ROUND(G65/(W46*12*G59),2)) -> 0.17 | I67: =IF(ISERROR(G69/G65), "Error", IF(G69/G65>=95%, "Match", "Error")) -> Match
D69: Check: Forecasted SMDR Revenues | G69: =IF(ISERROR(G67*W46*12*G59), "", G67*W46*12*G59) -> 121529.94
C71: Calculation of Smart Meter Incremental Revenue Requirement Rate Rider (per metered customer per month)
D73: Incremental Revenue Requirement for 2014 | G73: =W30 -> 581899.9115
D75: SMIRR | G75: =IF(ISERROR(ROUND(G73/(W46*12),2)), "", ROUND(G73/(W46*12),2)) -> 0.95 | I75: =IF(ISERROR(G77/G73), "Error", IF(G77/G73>=95%, "Match", "Error")) -> Match
D77: Check: Forecasted SMIRR Revenues | G77: =IF(ISERROR(G75*W46*12), "", G75*W46*12) -> 582118.2

Sheet 10A. Cost_Alloc_SMDR
B13: This worksheet calculates the class-specific SMDRs according to accepted practice. A distributor may choose to use its own methodology, but should provide analogous support for its allocation and derivation of class-specific SMDRs and SMIRRs.
B20: Class-specific SMDRs
B22: Revenue Requirement for Historical Years | C22: 2006 | E22: 2007 | G22: 2008 | I22: 2009 | K22: 2010 | M22: 2011 | O22: 2012 | Q22: 2013 | S22: Total 2006 to 2013 | T22: Explanation / Allocator | V22: Residential | X22: GS < 50 kW | Z22: GS 50 to 4999 kW | AB22: Other (please specify) | AD22: Total
T23: Check Row if SMDR/SMIRR apply to class | V23: X | X23: X | AD23: =COUNTIF(V23:AB23,"X") -> 2
V24: % | X24: % | Z24: % | AB24: %
T25: Weighted Meter Cost - Capital | V25: 0.7856951749 | X25: 0.2143048251 | AD25: =V25+X25+Z25+AB25 -> 1
B26: Return on Capital | C26: ='5. SM_Rev_Reqt'!G47 -> 1816.914479 | E26: ='5. SM_Rev_Reqt'!I47 -> 4066.884092 | G26: ='5. SM_Rev_Reqt'!K47 -> 4315.528111 | I26: ='5. SM_Rev_Reqt'!M47 -> 62149.98773 | K26: ='5. SM_Rev_Reqt'!O47 -> 204030.3953 | M26: ='5. SM_Rev_Reqt'!Q47 -> 26733.39695 | O26: ='5. SM_Rev_Reqt'!S47 -> 73344.33729 | Q26: ='5. SM_Rev_Reqt'!U47 -> 90254.60111 | S26: =SUM(C26,E26,G26,I26,K26,M26,O26,Q26) -> 466712.045 | T26: Allocated per class | V26: =S26*V25 -> 366693.4018 | X26: =S26*X25 -> 100018.6432 | Z26: =S26*Z25 -> 0 | AB26: =S26*AB25 -> 0
B28: Depreciation/Amortization expense and related interest | C28: ='5. SM_Rev_Reqt'!G58 -> 1546.854333 | E28: ='5. SM_Rev_Reqt'!I58 -> 3583.127 | G28: ='5. SM_Rev_Reqt'!K58 -> 4072.545333 | I28: ='5. SM_Rev_Reqt'!M58 -> 53387.588 | K28: ='5. SM_Rev_Reqt'!O58 -> 204968.402 | M28: ='5. SM_Rev_Reqt'!Q58 -> 81880.159 | O28: ='5. SM_Rev_Reqt'!S58 -> 161295.0853 | Q28: ='5. SM_Rev_Reqt'!U58 -> 189495.787
C29: =IF(C28+C32=0,0,'9. SMFA_SMDR_SMIRR'!G32*C28/(C28+C32)) -> 126.555159 | E29: =IF(E28+E32=0,0,'9. SMFA_SMDR_SMIRR'!I32*E28/(E28+E32)) -> 1341.649287 | G29: =IF(G28+G32=0,0,'9. SMFA_SMDR_SMIRR'!K32*G28/(G28+G32)) -> 1313.977382 | I29: =IF(I28+I32=0,0,'9. SMFA_SMDR_SMIRR'!M32*I28/(I28+I32)) -> 339.3350395 | K29: =IF(K28+K32=0,0,'9. SMFA_SMDR_SMIRR'!O32*K28/(K28+K32)) -> 1687.398038 | M29: =IF(M28+M32=0,0,'9. SMFA_SMDR_SMIRR'!Q32*M28/(M28+M32)) -> 2320.981764 | O29: =IF(O28+O32=0,0,'9. SMFA_SMDR_SMIRR'!S32*O28/(O28+O32)) -> 5744.603029 | Q29: =IF(Q28+Q32=0,0,'9. SMFA_SMDR_SMIRR'!U32*Q28/(Q28+Q32)) -> 8621.81527 | T29: =T25 -> Weighted Meter Cost - Capital | V29: =V25 -> 0.7856951749 | X29: =X25 -> 0.2143048251 | Z29: =Z25 -> 0 | AB29: =AB25 -> 0 | AD29: =V29+X29+Z29+AB29 -> 1
C30: =C28+C29 -> 1673.409492 | E30: =E28+E29 -> 4924.776287 | G30: =G28+G29 -> 5386.522715 | I30: =I28+I29 -> 53726.92304 | K30: =K28+K29 -> 206655.8 | M30: =M28+M29 -> 84201.14076 | O30: =O28+O29 -> 167039.6884 | Q30: =Q28+Q29 -> 198117.6023 | S30: =SUM(C30,E30,G30,I30,K30,M30,O30,Q30) -> 721725.863 | T30: =T26 -> Allocated per class | V30: =S30*V29 -> 567056.5281 | X30: =S30*X29 -> 154669.3348 | Z30: =S30*Z29 -> 0 | AB30: =S30*AB29 -> 0
B32: Operating Expenses and related interest | C32: ='5. SM_Rev_Reqt'!G50 -> 660 | E32: ='5. SM_Rev_Reqt'!I50 -> 119 | G32: ='5. SM_Rev_Reqt'!K50 -> 0 | I32: ='5. SM_Rev_Reqt'!M50 -> 119043.52 | K32: ='5. SM_Rev_Reqt'!O50 -> 153747.43 | M32: ='5. SM_Rev_Reqt'!Q50 -> 293088.78 | O32: ='5. SM_Rev_Reqt'!S50 -> 316426.45 | Q32: ='5. SM_Rev_Reqt'!U50 -> 343708.19 | T32: Number of Smart Meters installed by Class | V32: # | X32: # | Z32: # | AB32: #
C33: ='9. SMFA_SMDR_SMIRR'!G32 -> 180.5527482 | E33: ='9. SMFA_SMDR_SMIRR'!I32 -> 1386.207089 | G33: =IF((G28+G32)=0,0,'9. SMFA_SMDR_SMIRR'!K32*G32/(G28+G32)) -> 0 | I33: =IF((I28+I32)=0,0,'9. SMFA_SMDR_SMIRR'!M32*I32/(I28+I32)) -> 756.6484847 | K33: =IF((K28+K32)=0,0,'9. SMFA_SMDR_SMIRR'!O32*K32/(K28+K32)) -> 1265.722469 | M33: =IF((M28+M32)=0,0,'9. SMFA_SMDR_SMIRR'!Q32*M32/(M28+M32)) -> 8307.918816 | O33: =IF((O28+O32)=0,0,'9. SMFA_SMDR_SMIRR'!S32*O32/(O28+O32)) -> 11269.68215 | Q33: =IF((Q28+Q32)=0,0,'9. SMFA_SMDR_SMIRR'!U32*Q32/(Q28+Q32)) -> 15638.28182 | V33: ='2. Smart_Meter_Costs'!Y25 -> 46823 | X33: ='2. Smart_Meter_Costs'!Y27 -> 4240
C34: =C32+C33 -> 840.5527482 | E34: =E32+E33 -> 1505.207089 | G34: =G32+G33 -> 0 | I34: =I32+I33 -> 119800.1685 | K34: =K32+K33 -> 155013.1525 | M34: =M32+M33 -> 301396.6988 | O34: =O32+O33 -> 327696.1321 | Q34: =Q32+Q33 -> 359346.4718 | S34: =SUM(C34,E34,G34,I34,K34,M34,O34,Q34) -> 1265598.384 | T34: Allocated per class | V34: =IF(SUM($V33,$X33,$Z33,$AB33)=0,0,$S34*V33/(SUM($V33,$X33,$Z33,$AB33))) -> 1160509.823 | X34: =IF(SUM($V33,$X33,$Z33,$AB33)=0,0,$S34*X33/(SUM($V33,$X33,$Z33,$AB33))) -> 105088.5601 | Z34: =IF(SUM($V33,$X33,$Z33,$AB33)=0,0,$S34*Z33/(SUM($V33,$X33,$Z33,$AB33))) -> 0 | AB34: =IF(SUM($V33,$X33,$Z33,$AB33)=0,0,$S34*AB33/(SUM($V33,$X33,$Z33,$AB33))) -> 0
B36: Revenue Requirement before Taxes/PILs | S36: =S26+S30+S34 -> 2454036.292 | V36: =V26+V30+V34 -> 2094259.753 | X36: =X26+X30+X34 -> 359776.5381 | Z36: =Z26+Z30+Z34 -> 0 | AB36: =AB26+AB30+AB34 -> 0 | AD36: =S36-SUM(V36,X36,Z36,AB36) -> 0
T38: Revenue Requirement before PILs | V38: =IF(V36=0,0,V36/SUM($V36,$X36,$Z36,$AB36)) -> 0.8533939619 | X38: =IF(X36=0,0,X36/SUM($V36,$X36,$Z36,$AB36)) -> 0.1466060381 | Z38: =IF(Z36=0,0,Z36/SUM($V36,$X36,$Z36,$AB36)) -> 0 | AB38: =IF(AB36=0,0,AB36/SUM($V36,$X36,$Z36,$AB36)) -> 0 | AD38: =V38+X38+Z38+AB38 -> 1
B40: Grossed-up Taxes/PILs | C40: ='5. SM_Rev_Reqt'!G68 -> 532.8725994 | E40: ='5. SM_Rev_Reqt'!I68 -> 1087.743883 | G40: ='5. SM_Rev_Reqt'!K68 -> 1090.221411 | I40: ='5. SM_Rev_Reqt'!M68 -> 13501.35522 | K40: ='5. SM_Rev_Reqt'!O68 -> 34312.02274 | M40: ='5. SM_Rev_Reqt'!Q68 -> 6127.854953 | O40: ='5. SM_Rev_Reqt'!S68 -> 17438.26672 | Q40: ='5. SM_Rev_Reqt'!U68 -> 28715.30165 | S40: =SUM(C40,E40,G40,I40,K40,M40,O40,Q40) -> 102805.6392 | V40: =S40*V38 -> 87733.71173 | X40: =S40*X38 -> 15071.92746 | Z40: =S40*Z38 -> 0 | AB40: =S40*AB38 -> 0
B42: Total Revenue Requirement plus interest on OM&A and depreciation expense | S42: =S36+S40 -> 2556841.931 | V42: =V36+V40 -> 2181993.465 | X42: =X36+X40 -> 374848.4656 | Z42: =Z40+Z36 -> 0 | AB42: =AB40+AB36 -> 0
T43: Percentage of costs allocated to each class | V43: =IF(SUM($V42,$X42,$Z42,$AB42)=0,0,V42/(SUM($V42,$X42,$Z42,$AB42))) -> 0.8533939619 | X43: =IF(SUM($V42,$X42,$Z42,$AB42)=0,0,X42/(SUM($V42,$X42,$Z42,$AB42))) -> 0.1466060381 | Z43: =IF(SUM($V42,$X42,$Z42,$AB42)=0,0,Z42/(SUM($V42,$X42,$Z42,$AB42))) -> 0 | AB43: =IF(SUM($V42,$X42,$Z42,$AB42)=0,0,AB42/(SUM($V42,$X42,$Z42,$AB42))) -> 0
S44: =S42-'9. SMFA_SMDR_SMIRR'!G61 -> 1468.204446 | T44: Percentage of costs for classes with SMDR/SMIRR | V44: =IF(V23="X",V43,0) -> 0.8533939619 | X44: =IF(X23="X",X43,0) -> 0.1466060381 | Z44: =IF(Z23="X",Z43,0) -> 0 | AB44: =IF(AB23="X",AB43,0) -> 0
V45: =IF(SUM($V44,$X44,$Z44,$AB44)=0,0,V44/SUM($V44,$X44,$Z44,$AB44)) -> 0.8533939619 | X45: =IF(SUM($V44,$X44,$Z44,$AB44)=0,0,X44/SUM($V44,$X44,$Z44,$AB44)) -> 0.1466060381 | Z45: =IF(SUM($V44,$X44,$Z44,$AB44)=0,0,Z44/SUM($V44,$X44,$Z44,$AB44)) -> 0 | AB45: =IF(SUM($V44,$X44,$Z44,$AB44)=0,0,AB44/SUM($V44,$X44,$Z44,$AB44)) -> 0
V47: % | X47: % | Z47: % | AB47: %
O48: SMFA Revenues directly attributable to class | V48: 0.8982785686 | X48: 0.08466061159 | Z48: =1-V48-X48 -> 0.01706081977 | AD48: =V48+X48+Z48+AB48 -> 1
O49: Residual SMFA Revenues (from other metered classes) attributed evenly | V49: =IF(V23="X",V48,0) -> 0.8982785686 | X49: =IF(X23="X",X48,0) -> 0.08466061159 | Z49: =IF(Z23="X",Z48,0) -> 0 | AB49: =IF(AB23="X",AB48,0) -> 0 | AD49: =V49+X49+Z49+AB49 -> 0.9829391802
V50: =IF(V23="X",(100%-$AD49)/$AD$23,0) -> 0.008530409885 | X50: =IF(X23="X",(100%-$AD49)/$AD$23,0) -> 0.008530409885 | Z50: =IF(Z23="X",(100%-$AD49)/$AD$23,0) -> 0 | AB50: =IF(AB23="X",(100%-$AD49)/$AD$23,0) -> 0
O51: Total | V51: =V48+V50 -> 0.9068089785 | X51: =X48+X50 -> 0.09319102148 | Z51: =Z48+Z50 -> 0.01706081977 | AB51: =AB48+AB50 -> 0
B53: SMFA Revenues plus interest expense | S53: ='9. SMFA_SMDR_SMIRR'!G63 -> 2435323.93 | V53: =S53*V51 -> 2208373.605 | X53: =S53*X51 -> 226950.3247 | Z53: =S53*Z51 -> 41548.62265 | AB53: =S53*AB51 -> 0
B55: Net Deferred Revenue Requirement to be recovered via SMDR | S55: =S42-S53 -> 121518.0008 | V55: =IF(V23="X",V42-V53,0) -> -26380.14019 | X55: =IF(X23="X",X42-X53,0) -> 147898.1409 | Z55: =IF(Z23="X",Z42-Z53,0) -> 0 | AB55: =IF(AB23="X",AB42-AB53,0) -> 0
B57: Average number of metered customers by class (2014), for customer classes with smart meters deployed | S57: Average number of customers (2014) | V57: =V33 -> 46823 | X57: =X33 -> 4240 | Z57: 0 | AB57: 0
B59: Number of Years for SMDR recovery | S59: =14/12 -> 1.166666667 | T59: years | V59: =S59 -> 1.166666667 | X59: =S59 -> 1.166666667 | Z59: =S59 -> 1.166666667 | AB59: =S59 -> 1.166666667
B61: Smart Meter Disposition Rider ($/month per metered customer in the customer class) | V61: =IF(V23="X",IF(V57*V59=0,"",ROUND(V55/(V57*V59*12),2)),"") -> -0.04 | X61: =IF(X23="X",IF(X57*X59=0,"",ROUND(X55/(X57*X59*12),2)),"") -> 2.49 | Z61: =IF(Z23="X",IF(Z57*Z59=0,"",ROUND(Z55/(Z57*Z59*12),2)),"") ->  | AB61: =IF(AB23="X",IF(AB57*AB59=0,"",ROUND(AB55/(AB57*AB59*12),2)),"") -> 
B63: Estimated SMDR Revenues | S63: =V63+X63+Z63+AB63 -> 121585.52 | V63: =IF(V23="X",IF(V57=0,0,V61*V59*V57*12),0) -> -26220.88 | X63: =IF(X23="X",IF(X57=0,0,X61*X59*X57*12),0) -> 147806.4 | Z63: =IF(Z23="X",IF(Z57=0,0,Z61*Z59*Z57*12),0) -> 0 | AB63: =IF(AB23="X",IF(AB57=0,0,AB61*AB59*AB57*12),0) -> 0
S65: =S55-S63 -> -67.5192479

Sheet 10B. Cost_Alloc_SMIRR
B13: This worksheet calculates the class-specific SMIRRs according to accepted practice. A distributor may choose to use its own methodology, but should provide analogous support for its allocation and derivation of class-specific SMDRs and SMIRRs.
B20: Class-specific SMDRs
B22: Revenue Requirement for 2013 | C22: 2006 | E22: 2007 | G22: 2008 | I22: 2009 | K22: 2010 | M22: 2011 | O22: 2012 | Q22: 2014 | R22: Explanation / Allocator | T22: Residential | V22: GS < 50 kW | X22: GS 50 to 4999 kW | Z22: ='10A. Cost_Alloc_SMDR'!AB22 -> Other (please specify) | AB22: Total
R23: Check Row if SMDR/SMIRR apply to class | T23: =IF('10A. Cost_Alloc_SMDR'!V23="X","X","") -> X | V23: =IF('10A. Cost_Alloc_SMDR'!X23="X","X","") -> X | X23: =IF('10A. Cost_Alloc_SMDR'!Z23="X","X","") ->  | Z23: =IF('10A. Cost_Alloc_SMDR'!AB23="X","X","") ->  | AB23: =COUNTIF(T23:Z23,"X") -> 2
T24: % | V24: % | X24: % | Z24: %
R25: Weighted Meter Cost - Capital | T25: ='10A. Cost_Alloc_SMDR'!V25 -> 0.7856951749 | V25: ='10A. Cost_Alloc_SMDR'!X25 -> 0.2143048251 | X25: ='10A. Cost_Alloc_SMDR'!Z25 -> 0 | Z25: ='10A. Cost_Alloc_SMDR'!AB25 -> 0 | AB25: =T25+V25+X25+Z25 -> 1
B26: Return on Capital | C26: ='5. SM_Rev_Reqt'!G47 -> 1816.914479 | E26: ='5. SM_Rev_Reqt'!I47 -> 4066.884092 | G26: ='5. SM_Rev_Reqt'!K47 -> 4315.528111 | I26: ='5. SM_Rev_Reqt'!M47 -> 62149.98773 | K26: ='5. SM_Rev_Reqt'!O47 -> 204030.3953 | M26: ='5. SM_Rev_Reqt'!Q47 -> 26733.39695 | O26: ='5. SM_Rev_Reqt'!S47 -> 73344.33729 | Q26: ='5. SM_Rev_Reqt'!W47 -> 81219.2476 | R26: Allocated per class | T26: =Q26*T25 -> 63813.57095 | V26: =Q26*V25 -> 17405.67665 | X26: =Q26*X25 -> 0 | Z26: =Q26*Z25 -> 0
B28: Depreciation/Amortization expense | C28: ='5. SM_Rev_Reqt'!G58 -> 1546.854333 | E28: ='5. SM_Rev_Reqt'!I58 -> 3583.127 | G28: ='5. SM_Rev_Reqt'!K58 -> 4072.545333 | I28: ='5. SM_Rev_Reqt'!M58 -> 53387.588 | K28: ='5. SM_Rev_Reqt'!O58 -> 204968.402 | M28: ='5. SM_Rev_Reqt'!Q58 -> 81880.159 | O28: ='5. SM_Rev_Reqt'!S58 -> 161295.0853
C29: =IF(C28+C32=0,0,'9. SMFA_SMDR_SMIRR'!G32*C28/(C28+C32)) -> 126.555159 | E29: =IF(E28+E32=0,0,'9. SMFA_SMDR_SMIRR'!I32*E28/(E28+E32)) -> 1341.649287 | G29: =IF(G28+G32=0,0,'9. SMFA_SMDR_SMIRR'!K32*G28/(G28+G32)) -> 1313.977382 | I29: =IF(I28+I32=0,0,'9. SMFA_SMDR_SMIRR'!M32*I28/(I28+I32)) -> 339.3350395 | K29: =IF(K28+K32=0,0,'9. SMFA_SMDR_SMIRR'!O32*K28/(K28+K32)) -> 1687.398038 | M29: =IF(M28+M32=0,0,'9. SMFA_SMDR_SMIRR'!Q32*M28/(M28+M32)) -> 2320.981764 | O29: =IF(O28+O32=0,0,'9. SMFA_SMDR_SMIRR'!S32*O28/(O28+O32)) -> 5744.603029 | R29: =R25 -> Weighted Meter Cost - Capital | T29: =T25 -> 0.7856951749 | V29: =V25 -> 0.2143048251 | X29: =X25 -> 0 | Z29: =Z25 -> 0 | AB29: =T29+V29+X29+Z29 -> 1
C30: =C28+C29 -> 1673.409492 | E30: =E28+E29 -> 4924.776287 | G30: =G28+G29 -> 5386.522715 | I30: =I28+I29 -> 53726.92304 | K30: =K28+K29 -> 206655.8 | M30: =M28+M29 -> 84201.14076 | O30: =O28+O29 -> 167039.6884 | Q30: ='5. SM_Rev_Reqt'!W58 -> 136550.6213 | R30: =R26 -> Allocated per class | T30: =Q30*T29 -> 107287.1643 | V30: =Q30*V29 -> 29263.45702 | X30: =Q30*X29 -> 0 | Z30: =Q30*Z29 -> 0
B32: Operating Expenses | C32: ='5. SM_Rev_Reqt'!G50 -> 660 | E32: ='5. SM_Rev_Reqt'!I50 -> 119 | G32: ='5. SM_Rev_Reqt'!K50 -> 0 | I32: ='5. SM_Rev_Reqt'!M50 -> 119043.52 | K32: ='5. SM_Rev_Reqt'!O50 -> 153747.43 | M32: ='5. SM_Rev_Reqt'!Q50 -> 293088.78 | O32: ='5. SM_Rev_Reqt'!S50 -> 316426.45 | Q32: ='5. SM_Rev_Reqt'!W50 -> 350004.8 | R32: Number of Smart Meters installed by Class | T32: # | V32: # | X32: # | Z32: #
C33: ='9. SMFA_SMDR_SMIRR'!G32 -> 180.5527482 | E33: ='9. SMFA_SMDR_SMIRR'!I32 -> 1386.207089 | G33: ='9. SMFA_SMDR_SMIRR'!K32 -> 1313.977382 | I33: ='9. SMFA_SMDR_SMIRR'!M32 -> 1095.983524 | K33: ='9. SMFA_SMDR_SMIRR'!O32 -> 2953.120507 | M33: ='9. SMFA_SMDR_SMIRR'!Q32 -> 10628.90058 | O33: ='9. SMFA_SMDR_SMIRR'!S32 -> 17014.28517 | T33: ='10A. Cost_Alloc_SMDR'!V33 -> 46823 | V33: ='10A. Cost_Alloc_SMDR'!X33 -> 4240 | X33: ='10A. Cost_Alloc_SMDR'!Z33 -> 0 | Z33: ='10A. Cost_Alloc_SMDR'!AB33 -> 0
C34: =C32+C33 -> 840.5527482 | E34: =E32+E33 -> 1505.207089 | G34: =G32+G33 -> 1313.977382 | I34: =I32+I33 -> 120139.5035 | K34: =K32+K33 -> 156700.5505 | M34: =M32+M33 -> 303717.6806 | O34: =O32+O33 -> 333440.7352 | Q34: =SUM(T34,V34,X34,Z34) -> 350004.8 | R34: Allocated per class | T34: =IF(SUM($T33,$V33,$X33,$Z33)=0,0,$Q32*T33/(SUM($T33,$V33,$X33,$Z33))) -> 320942.2625 | V34: =IF(SUM($T33,$V33,$X33,$Z33)=0,0,$Q32*V33/(SUM($T33,$V33,$X33,$Z33))) -> 29062.53749 | X34: =IF(SUM($T33,$V33,$X33,$Z33)=0,0,$Q32*X33/(SUM($T33,$V33,$X33,$Z33))) -> 0 | Z34: =IF(SUM($T33,$V33,$X33,$Z33)=0,0,$Q32*Z33/(SUM($T33,$V33,$X33,$Z33))) -> 0
B36: Revenue Requirement before Taxes/PILs | Q36: =Q26+Q30+Q32 -> 567774.6689 | T36: =T26+T30+T34 -> 492042.9978 | V36: =V26+V30+V34 -> 75731.67117 | X36: =X26+X30+X34 -> 0 | Z36: =Z26+Z30+Z34 -> 0 | AB36: =Q36-SUM(T36,V36,X36,Z36) -> 0
R38: Revenue Requirement before PILs | T38: =IF(T36=0,0,T36/SUM($T36,$V36,$X36,$Z36)) -> 0.8666166786 | V38: =IF(V36=0,0,V36/SUM($T36,$V36,$X36,$Z36)) -> 0.1333833214 | X38: =IF(X36=0,0,X36/SUM($T36,$V36,$X36,$Z36)) -> 0 | Z38: =IF(Z36=0,0,Z36/SUM($T36,$V36,$X36,$Z36)) -> 0 | AB38: =T38+V38+X38+Z38 -> 1
B40: Grossed-up Taxes/PILs | C40: ='5. SM_Rev_Reqt'!G68 -> 532.8725994 | E40: ='5. SM_Rev_Reqt'!I68 -> 1087.743883 | G40: ='5. SM_Rev_Reqt'!K68 -> 1090.221411 | I40: ='5. SM_Rev_Reqt'!M68 -> 13501.35522 | K40: ='5. SM_Rev_Reqt'!O68 -> 34312.02274 | M40: ='5. SM_Rev_Reqt'!Q68 -> 6127.854953 | O40: ='5. SM_Rev_Reqt'!S68 -> 17438.26672 | Q40: ='5. SM_Rev_Reqt'!W68 -> 14125.24254 | T40: =Q40*T38 -> 12241.17078 | V40: =Q40*V38 -> 1884.071766 | X40: =Q40*X38 -> 0 | Z40: =Q40*Z38 -> 0
B42: Total Revenue Requirement for 2013 | Q42: =Q36+Q40 -> 581899.9115 | T42: =T36+T40 -> 504284.1685 | V42: =V36+V40 -> 77615.74293 | X42: =X40+X36 -> 0 | Z42: =Z40+Z36 -> 0
R43: Percentage of costs allocated to each class | T43: =IF(SUM($T42,$V42,$X42,$Z42)=0,0,T42/(SUM($T42,$V42,$X42,$Z42))) -> 0.8666166786 | V43: =IF(SUM($T42,$V42,$X42,$Z42)=0,0,V42/(SUM($T42,$V42,$X42,$Z42))) -> 0.1333833214 | X43: =IF(SUM($T42,$V42,$X42,$Z42)=0,0,X42/(SUM($T42,$V42,$X42,$Z42))) -> 0 | Z43: =IF(SUM($T42,$V42,$X42,$Z42)=0,0,Z42/(SUM($T42,$V42,$X42,$Z42))) -> 0
Q44: =Q42-'9. SMFA_SMDR_SMIRR'!G73 -> 0 | R44: Percentage of costs for classes with SMDR/SMIRR | T44: =IF(T23="X",T43,0) -> 0.8666166786 | V44: =IF(V23="X",V43,0) -> 0.1333833214 | X44: =IF(X23="X",X43,0) -> 0 | Z44: =IF(Z23="X",Z43,0) -> 0
T45: =IF(SUM($T44,$V44,$X44,$Z44)=0,0,T44/SUM($T44,$V44,$X44,$Z44)) -> 0.8666166786 | V45: =IF(SUM($T44,$V44,$X44,$Z44)=0,0,V44/SUM($T44,$V44,$X44,$Z44)) -> 0.1333833214 | X45: =IF(SUM($T44,$V44,$X44,$Z44)=0,0,X44/SUM($T44,$V44,$X44,$Z44)) -> 0 | Z45: =IF(SUM($T44,$V44,$X44,$Z44)=0,0,Z44/SUM($T44,$V44,$X44,$Z44)) -> 0
B48: Average number of metered customers by class (2013) | T48: ='10A. Cost_Alloc_SMDR'!V57 -> 46823 | V48: ='10A. Cost_Alloc_SMDR'!X57 -> 4240 | X48: ='10A. Cost_Alloc_SMDR'!Z57 -> 0 | Z48: ='10A. Cost_Alloc_SMDR'!AB57 -> 0
B50: The SMIRR is recovered as an annualized rate until the effective date of the distributor's next rebased rates resulting from a cost of service application | Q50: 1 | R50: year | T50: =Q50 -> 1 | V50: =Q50 -> 1 | X50: =Q50 -> 1 | Z50: =Q50 -> 1
B52: Smart Meter Incremental Revenue Requirement Rate Rider ($/month per metered customer in the customer class) | T52: =IF(T23="X",IF(T48*T50=0,"",ROUND(T42/(T48*T50*12),2)),"") -> 0.9 | V52: =IF(V23="X",IF(V48*V50=0,"",ROUND(V42/(V48*V50*12),2)),"") -> 1.53 | X52: =IF(X23="X",IF(X48*X50=0,"",ROUND(X42/(X48*X50*12),2)),"") ->  | Z52: =IF(Z23="X",IF(Z48*Z50=0,"",ROUND(Z42/(Z48*Z50*12),2)),"") -> 
B54: Estimated SMIRR Revenues | Q54: =T54+V54+X54+Z54 -> 583534.8 | T54: =IF(T23="X",IF(T48=0,0,T52*T50*T48*12),0) -> 505688.4 | V54: =IF(V23="X",IF(V48=0,0,V52*V50*V48*12),0) -> 77846.4 | X54: =IF(X23="X",IF(X48=0,0,X52*X50*X48*12),0) -> 0 | Z54: =IF(Z23="X",IF(Z48=0,0,Z52*Z50*Z48*12),0) -> 0
Q56: =Q54-Q42 -> 1634.888526
